Workbook

Sheet Rennerslijst Giro
B2: AG2R - LA Mondiale
A3: 1 | B3: BARDET Romain | C3: 1030
A4: 2 | B4: PERAUD Jean-Christophe | C4: 938
A5: 3 | B5: POZZOVIVO Domenico | C5: 888
A6: 4 | B6: VUILLERMOZ Alexis | C6: 518
A7: 5 | B7: BAKELANTS Jan | C7: 508
A8: 6 | B8: DUMOULIN Samuel | C8: 489
A9: 7 | B9: NOCENTINI Rinaldo | C9: 371
A10: 8 | B10: GASTAUER Ben | C10: 359
A11: 9 | B11: GOUGEARD Alexis | C11: 318
A12: 10 | B12: MONTAGUTI Matteo | C12: 311
A13: 11 | B13: CHEREL Mikael | C13: 195
A14: 12 | B14: RIBLON Christophe | C14: 183
A15: 13 | B15: DUPONT Hubert | C15: 177
A16: 14 | B16: MONDORY Lloyd | C16: 172
A17: 15 | B17: KADRI Blel | C17: 125
A18: 16 | B18: HOULE Hugo | C18: 124
A19: 17 | B19: DANIEL Maxime | C19: 117
A20: 18 | B20: LATOUR Pierre-Roger | C20: 116
A21: 19 | B21: TURGOT Sébastien | C21: 99
A22: 20 | B22: BERARD Julien | C22: 97
A23: 21 | B23: MINARD Sébastien | C23: 94
A24: 22 | B24: BAGDONAS Gediminas | C24: 82
A25: 23 | B25: JAUREGUI Quentin | C25: 81
A26: 24 | B26: VANSUMMEREN Johan | C26: 80
A27: 25 | B27: GAUDIN Damien | C27: 66
A28: 26 | B28: GRETSCH Patrick | C28: 51
A29: 27 | B29: BETANCUR GOMEZ Carlos Alberto | C29: 45
A30: 28 | B30: BONNAFOND Guillaume | C30: 30
A31: 29 | B31: DOMONT Axel | C31: 30
B33: Androni Giocattoli
A34: 30 | B34: PELLIZOTTI Franco | C34: 477
A35: 31 | B35: GATTO Oscar | C35: 268
A36: 32 | B36: TVETCOV Serghei | C36: 255
A37: 33 | B37: ZILIOLI Gianfranco | C37: 177
A38: 34 | B38: APPOLLONIO Davide | C38: 120
A39: 35 | B39: BENFATTO Marco | C39: 112
A40: 36 | B40: PADOUR Frantisek | C40: 108
A41: 37 | B41: CHICCHI Francesco | C41: 80
A42: 38 | B42: TALIANI Alessio | C42: 74
A43: 39 | B43: STORTONI Simone | C43: 70
A44: 40 | B44: GALVIZ GARCIA Carlos Johan | C44: 67
A45: 41 | B45: RODRIGUEZ ORTIZ Jackson Jesus | C45: 64
A46: 42 | B46: TABORRE Fabio | C46: 55
A47: 43 | B47: DALL'ANTONIA Tiziano | C47: 37
A48: 44 | B48: GODOY Yonder Eduardo | C48: 32
A49: 45 | B49: BANDIERA Marco | C49: 30
A50: 46 | B50: FRAPPORTI Marco | C50: 27
A51: 47 | B51: SELLA Emanuele | C51: 26
A52: 48 | B52: EBSEN John Kronborg | C52: 18
B54: Astana Pro Team
A55: 49 | B55: NIBALI Vincenzo | C55: 2017
A56: 50 | B56: ARU Fabio | C56: 1123
A57: 51 | B57: BOOM Lars | C57: 634
A58: 52 | B58: FUGLSANG Jakob | C58: 586
A59: 53 | B59: TAARAMÄE Rein | C59: 509
A60: 54 | B60: SANCHEZ GIL Luis Leon | C60: 439
A61: 55 | B61: AGNOLI Valerio | C61: 409
A62: 56 | B62: GUARDINI Andrea | C62: 391
A63: 57 | B63: LUTSENKO Alexey | C63: 330
A64: 58 | B64: CATALDO Dario | C64: 329
A65: 59 | B65: LANDA MEANA Mikel | C65: 328
A66: 60 | B66: GRIVKO Andriy | C66: 291
A67: 61 | B67: SCARPONI Michele | C67: 236
A68: 62 | B68: BOZIC Borut | C68: 204
A69: 63 | B69: KANGERT Tanel | C69: 189
A70: 64 | B70: TIRALONGO Paolo | C70: 186
A71: 65 | B71: ZEITS Andrey | C71: 184
A72: 66 | B72: DE VREESE Laurens | C72: 183
A73: 67 | B73: WESTRA Lieuwe | C73: 181
A74: 68 | B74: ROSA Diego | C74: 170
A75: 69 | B75: DYACHENKO Alexandr | C75: 134
A76: 70 | B76: TLEUBAYEV Ruslan | C76: 115
A77: 71 | B77: MALACARNE Davide | C77: 94
A78: 72 | B78: LOPEZ MORENO Miguel Angel | C78: 89
A79: 73 | B79: GRUZDEV Dmitriy | C79: 79
A80: 74 | B80: KAMYSHEV Arman | C80: 65
A81: 75 | B81: FOMINYKH Daniil | C81: 54
A82: 76 | B82: KOZHATAYEV Bakhtiyar | C82: 46
A83: 77 | B83: VANOTTI Alessandro | C83: 40
A84: 78 | B84: AYAZBAYEV Maxat | C84: 39
B86: Bardiani – CSF
A87: 79 | B87: COLBRELLI Sonny | C87: 561
A88: 80 | B88: BONGIORNO Francesco Manuel | C88: 365
A89: 81 | B89: ZARDINI Edoardo | C89: 363
A90: 82 | B90: BATTAGLIN Enrico | C90: 332
A91: 83 | B91: PIRAZZI Stefano | C91: 206
A92: 84 | B92: CHIRICO Luca | C92: 174
A93: 85 | B93: RUFFONI Nicola | C93: 133
A94: 86 | B94: PIECHELE Andrea | C94: 92
A95: 87 | B95: BARBIN Enrico | C95: 84
A96: 88 | B96: BOEM Nicola | C96: 53
A97: 89 | B97: ANDREETTA Simone | C97: 26
A98: 90 | B98: SIMION Paolo | C98: 5
A99: 91 | B99: STERBINI Luca | C99: 5
A100: 92 | B100: TONELLI Alessandro | C100: 3
A101: 93 | B101: STERBINI Simone | C101: 1
B103: BMC Racing Team
A104: 94 | B104: VAN AVERMAET Greg | C104: 1689
A105: 95 | B105: GILBERT Philippe | C105: 1423
A106: 96 | B106: VAN GARDEREN Tejay | C106: 1024
A107: 97 | B107: DENNIS Rohan | C107: 803
A108: 98 | B108: EVANS Cadel | C108: 785
A109: 99 | B109: SANCHEZ GONZALEZ Samuel | C109: 596
A110: 100 | B110: DRUCKER Jempy | C110: 594
A111: 101 | B111: CARUSO Damiano | C111: 568
A112: 102 | B112: HERMANS Ben | C112: 491
A113: 103 | B113: DILLIER Silvan | C113: 461
A114: 104 | B114: OSS Daniel | C114: 356
A115: 105 | B115: DE MARCHI Alessandro | C115: 332
A116: 106 | B116: KÜNG Stefan | C116: 261
A117: 107 | B117: TEUNS Dylan | C117: 245
A118: 108 | B118: VELITS Peter | C118: 220
A119: 109 | B119: BOOKWALTER Brent | C119: 197
A120: 110 | B120: ATAPUMA HURTADO Jhon Darwin | C120: 174
A121: 111 | B121: QUINZIATO Manuel | C121: 172
A122: 112 | B122: STETINA Peter | C122: 170
A123: 113 | B123: BURGHARDT Marcus | C123: 163
A124: 114 | B124: WYSS Danilo | C124: 151
A125: 115 | B125: ROSSKOPF Joey | C125: 150
A126: 116 | B126: MOINARD Amaël | C126: 131
A127: 117 | B127: ZABEL Rick | C127: 131
A128: 118 | B128: SCHÄR Michael | C128: 126
A129: 119 | B129: FLAKEMORE Campbell | C129: 103
A130: 120 | B130: PHINNEY Taylor | C130: 90
A131: 121 | B131: SENNI Manuel | C131: 36
A132: 122 | B132: LODEWYCK Klaas | C132: 33
B134: CCC Sprandi – Polkowice
A135: 123 | B135: REBELLIN Davide | C135: 833
A136: 124 | B136: PATERSKI Maciej | C136: 792
A137: 125 | B137: BOLE Grega | C137: 723
A138: 126 | B138: RUTKIEWICZ Marek | C138: 203
A139: 127 | B139: SAMOILAU Branislau | C139: 201
A140: 128 | B140: MATYSIAK Bartlomiej | C140: 165
A141: 129 | B141: TACIAK Mateusz | C141: 162
A142: 130 | B142: KUREK Adrian | C142: 136
A143: 131 | B143: MARYCZ Jaroslaw | C143: 123
A144: 132 | B144: SZMYD Sylwester | C144: 111
A145: 133 | B145: HIRT Jan | C145: 107
A146: 134 | B146: MIHAYLOV Nikolay | C146: 83
A147: 135 | B147: KIENDYS Tomasz | C147: 64
A148: 136 | B148: OWSIAN Lukasz | C148: 62
A149: 137 | B149: SCHUMACHER Stefan | C149: 60
A150: 138 | B150: DELLE STELLE Cristian | C150: 48
A151: 139 | B151: LATON Eryk | C151: 40
A152: 140 | B152: PLUCINSKI Leszek | C152: 34
A153: 141 | B153: STEPNIAK Grzegorz | C153: 29
A154: 142 | B154: HONKISZ Adrian | C154: 27
A155: 143 | B155: CERNY Josef | C155: 22
A156: 144 | B156: STOSZ Patryk | C156: 6
B158: Ettix – Quickstep
A159: 145 | B159: KWIATKOWSKI Michal | C159: 1719
A160: 146 | B160: URAN URAN Rigoberto | C160: 1271
A161: 147 | B161: MARTIN Tony | C161: 1152
A162: 148 | B162: STYBAR Zdenek | C162: 957
A163: 149 | B163: TERPSTRA Niki | C163: 932
A164: 150 | B164: MEERSMAN Gianni | C164: 879
A165: 151 | B165: CAVENDISH Mark | C165: 873
A166: 152 | B166: ALAPHILIPPE Julian | C166: 698
A167: 153 | B167: LAMPAERT Yves | C167: 580
A168: 154 | B168: TRENTIN Matteo | C168: 452
A169: 155 | B169: BOONEN Tom | C169: 375
A170: 156 | B170: VAKOC Petr | C170: 279
A171: 157 | B171: VERMOTE Julien | C171: 276
A172: 158 | B172: RENSHAW Mark | C172: 272
A173: 159 | B173: MAES Nikolas | C173: 247
A174: 160 | B174: SERRY Pieter | C174: 225
A175: 161 | B175: VANDENBERGH Stijn | C175: 216
A176: 162 | B176: BRAMBILLA Gianluca | C176: 204
A177: 163 | B177: KEISSE Iljo | C177: 196
A178: 164 | B178: BOUET Maxime | C178: 193
A179: 165 | B179: GOLAS Michal | C179: 189
A180: 166 | B180: VAN KEIRSBULCK Guillaume | C180: 151
A181: 167 | B181: DE LA CRUZ MELGAREJO David | C181: 118
A182: 168 | B182: WISNIOWSKI Lukasz | C182: 99
A183: 169 | B183: VERONA QUINTANILLA Carlos | C183: 84
A184: 170 | B184: SABATINI Fabio | C184: 45
A185: 171 | B185: VELITS Martin | C185: 36
B187: FDJ
A188: 172 | B188: DEMARE Arnaud | C188: 1283
A189: 173 | B189: PINOT Thibaut | C189: 1270
A190: 174 | B190: VICHOT Arthur | C190: 286
A191: 175 | B191: MORABITO Steve | C191: 279
A192: 176 | B192: GENIEZ Alexandre | C192: 245
A193: 177 | B193: REZA Kévin | C193: 235
A194: 178 | B194: ROY Jérémy | C194: 219
A195: 179 | B195: LADAGNOUS Matthieu | C195: 201
A196: 180 | B196: JEANNESSON Arnold | C196: 162
A197: 181 | B197: ROUX Anthony | C197: 155
A198: 182 | B198: DELAGE Mickaël | C198: 142
A199: 183 | B199: PICHON Laurent | C199: 131
A200: 184 | B200: MANZIN Lorrenzo | C200: 123
A201: 185 | B201: OFFREDO Yoann | C201: 116
A202: 186 | B202: SARREAU Marc | C202: 104
A203: 187 | B203: ELISSONDE Kenny | C203: 100
A204: 188 | B204: LE BON Johan | C204: 84
A205: 189 | B205: VAUGRENARD Benoît | C205: 74
A206: 190 | B206: MOUREY Francis | C206: 73
A207: 191 | B207: VEIKKANEN Jussi | C207: 68
A208: 192 | B208: PINEAU Cédric | C208: 65
... 381 more rows

Sheet De Freddies
A1: ZWEMbike: GIRO 2015
A3: Naam: | B3: Fred :
A4: Ploegn: | B4: De Freddies
F6: RIT | G6: 1 | H6: 2 | I6: 3 | J6: 4 | K6: 5 | L6: 6 | M6: 7 | N6: 8 | O6: 9 | P6: 10 | Q6: 11 | R6: 12 | S6: 13 | T6: 14 | U6: 15 | V6: 16 | W6: 17 | X6: 18 | Y6: 19 | Z6: 20 | AA6: 21 | AB6: Totaal
B7: Code | C7: Naam | D7: Waarde
A8: 1 | B8: 502 | C8: =IF(B8="","",VLOOKUP(B8,'Rennerslijst Giro'!A1:C976,2)) -> CONTADOR VELASCO Alberto | D8: 1791
A9: 2 | B9: 146 | C9: =IF(B9="","",VLOOKUP(B9,'Rennerslijst Giro'!A2:C977,2)) -> URAN URAN Rigoberto | D9: 1271
A10: 3 | B10: 322 | C10: =IF(B10="","",VLOOKUP(B10,'Rennerslijst Giro'!A3:C978,2)) -> MATTHEWS Michael | D10: 1235
A11: 4 | B11: 50 | C11: =IF(B11="","",VLOOKUP(B11,'Rennerslijst Giro'!A4:C979,2)) -> ARU Fabio | D11: 1123
A12: 5 | B12: 451 | C12: =IF(B12="","",VLOOKUP(B12,'Rennerslijst Giro'!A5:C980,2)) -> KRUIJSWIJK Steven | D12: 374
A13: 6 | B13: 424 | C13: =IF(B13="","",VLOOKUP(B13,'Rennerslijst Giro'!A6:C981,2)) -> ZAKARIN Ilnur | D13: 518
A14: 7 | B14: 232 | C14: =IF(B14="","",VLOOKUP(B14,'Rennerslijst Giro'!A7:C982,2)) -> NIEMIEC Przemyslaw | D14: 406
A15: 8 | B15: 63 | C15: =IF(B15="","",VLOOKUP(B15,'Rennerslijst Giro'!A8:C983,2)) -> KANGERT Tanel | D15: 189
A16: 9 | B16: 456 | C16: =IF(B16="","",VLOOKUP(B16,'Rennerslijst Giro'!A9:C984,2)) -> HOFLAND Moreno | D16: 189
A17: 10 | B17: 298 | C17: =IF(B17="","",VLOOKUP(B17,'Rennerslijst Giro'!A10:C985,2)) -> ANTON HERNANDEZ Igor | D17: 177
A18: 11 | B18: 242 | C18: =IF(B18="","",VLOOKUP(B18,'Rennerslijst Giro'!A11:C986,2)) -> MODOLO Sacha | D18: 162
A19: 12 | B19: 27 | C19: =IF(B19="","",VLOOKUP(B19,'Rennerslijst Giro'!A12:C987,2)) -> BETANCUR GOMEZ Carlos Alberto | D19: 45
E20: roze | F20: 150 | G20: 0 | H20: 0 | I20: 0 | J20: 0 | K20: 0 | L20: 0 | M20: 0 | N20: 150 | O20: 150 | P20: 150 | Q20: 150 | R20: 150 | S20: 0 | T20: 0 | U20: 0 | V20: 0 | W20: 0 | X20: 0 | Y20: 0 | Z20: 0 | AA20: 0 | AB20: =SUM(G20:AA20) -> 750
C21: Totaal: | D21: 7480 | E21: Berg | F21: 100 | G21: 0 | H21: 0 | I21: 0 | J21: 0 | K21: 0 | L21: 0 | M21: 100 | N21: 100 | O21: 0 | P21: 0 | Q21: 0 | R21: 0 | S21: 0 | T21: 0 | U21: 0 | V21: 0 | W21: 0 | X21: 0 | Y21: 0 | Z21: 0 | AA21: 0 | AB21: 200
C22: Totaal niet boven-------> | D22: 8000 | E22: punten | F22: 100 | G22: 0 | H22: 0 | I22: 0 | J22: 0 | K22: 100 | L22: 0 | M22: 0 | N22: 0 | O22: 100 | P22: 100 | Q22: 100 | R22: 0 | S22: 0 | T22: 0 | U22: 0 | V22: 0 | W22: 0 | X22: 0 | Y22: 0 | Z22: 0 | AA22: 0 | AB22: 400
E23: Jongere | F23: 100 | G23: 0 | H23: 0 | I23: 0 | J23: 0 | K23: 0 | L23: 0 | M23: 0 | N23: 0 | O23: 0 | P23: 100 | Q23: 0 | R23: 100 | S23: 0 | T23: 0 | U23: 0 | V23: 0 | W23: 0 | X23: 0 | Y23: 0 | Z23: 0 | AA23: 0 | AB23: 200
F25: Totaal | G25: =SUM(G8:G23) -> 0 | H25: =SUM(H8:H23) -> 0 | I25: =SUM(I8:I23) -> 0 | J25: 0 | K25: 100 | L25: 0 | M25: 100 | N25: 250 | O25: 250 | P25: 350 | Q25: 250 | R25: 250 | S25: 0 | T25: 0 | U25: 0 | V25: 0 | W25: 0 | X25: 0 | Y25: 0 | Z25: 0 | AA25: 0 | AB25: =SUM(AB8:AB23) -> 1550
B27: Code | C27: Reserve | D27: Waarde
A28: 1 | B28: 473 | C28: =IF(B28="","",VLOOKUP(B28,'Rennerslijst Giro'!A1:C976,2)) -> PORTE Richie | D28: 1358
A29: 2 | B29: 509 | C29: =IF(B29="","",VLOOKUP(B29,'Rennerslijst Giro'!A2:C977,2)) -> KREUZIGER Roman | D29: 451
A30: 3 | B30: 3 | C30: =IF(B30="","",VLOOKUP(B30,'Rennerslijst Giro'!A3:C978,2)) -> POZZOVIVO Domenico | D30: 888
C31: Totaal: | D31: 2697
C32: Totaal niet boven -------> | D32: 2500

Sheet FC RAFTEN
A1: ZWEMbike: GIRO 2015
A3: Naam: | B3: Raf :
A4: Ploegn: | B4: FC RAFTEN**
F6: RIT | G6: 1 | H6: 2 | I6: 3 | J6: 4 | K6: 5 | L6: 6 | M6: 7 | N6: 8 | O6: 9 | P6: 10 | Q6: 11 | R6: 12 | S6: 13 | T6: 14 | U6: 15 | V6: 16 | W6: 17 | X6: 18 | Y6: 19 | Z6: 20 | AA6: 21 | AB6: Totaal
B7: Code | C7: Naam | D7: Waarde
A8: 1 | B8: 502 | C8: =IF(B8="","",VLOOKUP(B8,'Rennerslijst Giro'!A1:C976,2)) -> CONTADOR VELASCO Alberto | D8: 1791
A9: 2 | B9: 146 | C9: =IF(B9="","",VLOOKUP(B9,'Rennerslijst Giro'!A2:C977,2)) -> URAN URAN Rigoberto | D9: 1271
A10: 3 | B10: 322 | C10: =IF(B10="","",VLOOKUP(B10,'Rennerslijst Giro'!A3:C978,2)) -> MATTHEWS Michael | D10: 1235
A11: 4 | B11: 50 | C11: =IF(B11="","",VLOOKUP(B11,'Rennerslijst Giro'!A4:C979,2)) -> ARU Fabio | D11: 1123
A12: 5 | B12: 533 | C12: =IF(B12="","",VLOOKUP(B12,'Rennerslijst Giro'!A5:C980,2)) -> NIZZOLO Giacomo | D12: 374
A13: 6 | B13: 477 | C13: =IF(B13="","",VLOOKUP(B13,'Rennerslijst Giro'!A6:C981,2)) -> VIVIANI Elia | D13: 518
A14: 7 | B14: 236 | C14: =IF(B14="","",VLOOKUP(B14,'Rennerslijst Giro'!A7:C982,2)) -> ULISSI Diego | D14: 406
A15: 8 | B15: 237 | C15: =IF(B15="","",VLOOKUP(B15,'Rennerslijst Giro'!A8:C983,2)) -> FERRARI Roberto | D15: 189
A16: 9 | B16: 83 | C16: =IF(B16="","",VLOOKUP(B16,'Rennerslijst Giro'!A9:C984,2)) -> PIRAZZI Stefano | D16: 189
A17: 10 | B17: 110 | C17: =IF(B17="","",VLOOKUP(B17,'Rennerslijst Giro'!A10:C985,2)) -> ATAPUMA HURTADO Jhon Darwin | D17: 177
A18: 11 | B18: 34 | C18: =IF(B18="","",VLOOKUP(B18,'Rennerslijst Giro'!A11:C986,2)) -> APPOLLONIO Davide | D18: 162
A19: 12 | B19: 27 | C19: =IF(B19="","",VLOOKUP(B19,'Rennerslijst Giro'!A12:C987,2)) -> BETANCUR GOMEZ Carlos Alberto | D19: 45
E20: roze | F20: 150 | G20: 0 | H20: 0 | I20: 0 | J20: 0 | K20: 0 | L20: 0 | M20: 0 | N20: 150 | O20: 150 | P20: 150 | Q20: 150 | R20: 150 | S20: 0 | T20: 0 | U20: 0 | V20: 0 | W20: 0 | X20: 0 | Y20: 0 | Z20: 0 | AA20: 0 | AB20: =SUM(G20:AA20) -> 750
C21: Totaal: | D21: 7480 | E21: Berg | F21: 100 | G21: 0 | H21: 0 | I21: 0 | J21: 0 | K21: 0 | L21: 0 | M21: 100 | N21: 100 | O21: 0 | P21: 0 | Q21: 0 | R21: 0 | S21: 0 | T21: 0 | U21: 0 | V21: 0 | W21: 0 | X21: 0 | Y21: 0 | Z21: 0 | AA21: 0 | AB21: 200
C22: Totaal niet boven-------> | D22: 8000 | E22: punten | F22: 100 | G22: 0 | H22: 0 | I22: 0 | J22: 0 | K22: 0 | L22: 0 | M22: 0 | N22: 0 | O22: 100 | P22: 100 | Q22: 100 | R22: 100 | S22: 0 | T22: 0 | U22: 0 | V22: 0 | W22: 0 | X22: 0 | Y22: 0 | Z22: 0 | AA22: 0 | AB22: 400
E23: Jongere | F23: 100 | G23: 0 | H23: 0 | I23: 0 | J23: 0 | K23: 0 | L23: 0 | M23: 0 | N23: 0 | O23: 0 | P23: 100 | Q23: 0 | R23: 100 | S23: 0 | T23: 0 | U23: 0 | V23: 0 | W23: 0 | X23: 0 | Y23: 0 | Z23: 0 | AA23: 0 | AB23: 200
F25: Totaal | G25: =SUM(G8:G23) -> 0 | H25: =SUM(H8:H23) -> 0 | I25: =SUM(I8:I23) -> 0 | J25: 0 | K25: 0 | L25: 0 | M25: 100 | N25: 250 | O25: 250 | P25: 350 | Q25: 250 | R25: 350 | S25: 0 | T25: 0 | U25: 0 | V25: 0 | W25: 0 | X25: 0 | Y25: 0 | Z25: 0 | AA25: 0 | AB25: =SUM(AB8:AB23) -> 1550
B27: Code | C27: Reserve | D27: Waarde
A28: 1 | B28: 473 | C28: =IF(B28="","",VLOOKUP(B28,'Rennerslijst Giro'!A1:C976,2)) -> PORTE Richie | D28: 1358
A29: 2 | B29: 285 | C29: =IF(B29="","",VLOOKUP(B29,'Rennerslijst Giro'!A2:C977,2)) -> INTXAUSTI ELORRIAGA Beñat | D29: 451
A30: 3 | B30: 59 | C30: =IF(B30="","",VLOOKUP(B30,'Rennerslijst Giro'!A3:C978,2)) -> LANDA MEANA Mikel | D30: 888
C31: Totaal: | D31: 2697
C32: Totaal niet boven -------> | D32: 2500

Sheet De Roze 12
A1: ZWEMbike: GIRO 2015
A3: Naam: | B3: Janes :
A4: Ploegn: | B4: De Roze 12*
F6: RIT | G6: 1 | H6: 2 | I6: 3 | J6: 4 | K6: 5 | L6: 6 | M6: 7 | N6: 8 | O6: 9 | P6: 10 | Q6: 11 | R6: 12 | S6: 13 | T6: 14 | U6: 15 | V6: 16 | W6: 17 | X6: 18 | Y6: 19 | Z6: 20 | AA6: 21 | AB6: Totaal
B7: Code | C7: Naam | D7: Waarde
A8: 1 | B8: 473 | C8: =IF(B8="","",VLOOKUP(B8,'Rennerslijst Giro'!A1:C976,2)) -> PORTE Richie | D8: 1791
A9: 2 | B9: 146 | C9: =IF(B9="","",VLOOKUP(B9,'Rennerslijst Giro'!A2:C977,2)) -> URAN URAN Rigoberto | D9: 1271
A10: 3 | B10: 50 | C10: =IF(B10="","",VLOOKUP(B10,'Rennerslijst Giro'!A3:C978,2)) -> ARU Fabio | D10: 1235
A11: 4 | B11: 254 | C11: =IF(B11="","",VLOOKUP(B11,'Rennerslijst Giro'!A4:C979,2)) -> GREIPEL André | D11: 1123
A12: 5 | B12: 509 | C12: =IF(B12="","",VLOOKUP(B12,'Rennerslijst Giro'!A5:C980,2)) -> KREUZIGER Roman | D12: 374
A13: 6 | B13: 507 | C13: =IF(B13="","",VLOOKUP(B13,'Rennerslijst Giro'!A6:C981,2)) -> ROGERS Michael | D13: 518
A14: 7 | B14: 368 | C14: =IF(B14="","",VLOOKUP(B14,'Rennerslijst Giro'!A7:C982,2)) -> HESJEDAL Ryder | D14: 406
A15: 8 | B15: 396 | C15: =IF(B15="","",VLOOKUP(B15,'Rennerslijst Giro'!A8:C983,2)) -> MEZGEC Luka | D15: 189
A16: 9 | B16: 207 | C16: =IF(B16="","",VLOOKUP(B16,'Rennerslijst Giro'!A9:C984,2)) -> PELUCCHI Matteo | D16: 189
A17: 10 | B17: 83 | C17: =IF(B17="","",VLOOKUP(B17,'Rennerslijst Giro'!A10:C985,2)) -> PIRAZZI Stefano | D17: 177
A18: 11 | B18: 456 | C18: =IF(B18="","",VLOOKUP(B18,'Rennerslijst Giro'!A11:C986,2)) -> HOFLAND Moreno | D18: 162
A19: 12 | B19: 242 | C19: =IF(B19="","",VLOOKUP(B19,'Rennerslijst Giro'!A12:C987,2)) -> MODOLO Sacha | D19: 45
E20: roze | F20: 150 | G20: 0 | H20: 0 | I20: 0 | J20: 0 | K20: 0 | L20: 0 | M20: 0 | N20: 0 | O20: 0 | P20: 0 | Q20: 0 | R20: 0 | S20: 0 | T20: 0 | U20: 0 | V20: 0 | W20: 0 | X20: 0 | Y20: 0 | Z20: 0 | AA20: 0 | AB20: =SUM(G20:AA20) -> 0
C21: Totaal: | D21: 7480 | E21: Berg | F21: 100 | G21: 0 | H21: 0 | I21: 100 | J21: 100 | K21: 100 | L21: 0 | M21: 100 | N21: 100 | O21: 0 | P21: 0 | Q21: 0 | R21: 0 | S21: 0 | T21: 0 | U21: 0 | V21: 0 | W21: 0 | X21: 0 | Y21: 0 | Z21: 0 | AA21: 0 | AB21: 500
C22: Totaal niet boven-------> | D22: 8000 | E22: punten | F22: 100 | G22: 0 | H22: 0 | I22: 0 | J22: 0 | K22: 0 | L22: 0 | M22: 0 | N22: 0 | O22: 0 | P22: 0 | Q22: 0 | R22: 0 | S22: 0 | T22: 0 | U22: 0 | V22: 0 | W22: 0 | X22: 0 | Y22: 0 | Z22: 0 | AA22: 0 | AB22: 0
E23: Jongere | F23: 100 | G23: 0 | H23: 0 | I23: 0 | J23: 0 | K23: 0 | L23: 0 | M23: 0 | N23: 0 | O23: 0 | P23: 200 | Q23: 0 | R23: 300 | S23: 0 | T23: 0 | U23: 0 | V23: 0 | W23: 0 | X23: 0 | Y23: 0 | Z23: 0 | AA23: 0 | AB23: 500
F25: Totaal | G25: =SUM(G8:G23) -> 0 | H25: =SUM(H8:H23) -> 0 | I25: =SUM(I8:I23) -> 100 | J25: 100 | K25: 100 | L25: 0 | M25: 100 | N25: 100 | O25: 0 | P25: 200 | Q25: 0 | R25: 300 | S25: 0 | T25: 0 | U25: 0 | V25: 0 | W25: 0 | X25: 0 | Y25: 0 | Z25: 0 | AA25: 0 | AB25: =SUM(AB8:AB23) -> 1000
B27: Code | C27: Reserve | D27: Waarde
A28: 1 | B28: 322 | C28: =IF(B28="","",VLOOKUP(B28,'Rennerslijst Giro'!A1:C976,2)) -> MATTHEWS Michael | D28: 1358
A29: 2 | B29: 285 | C29: =IF(B29="","",VLOOKUP(B29,'Rennerslijst Giro'!A2:C977,2)) -> INTXAUSTI ELORRIAGA Beñat | D29: 451
A30: 3 | B30: 3 | C30: =IF(B30="","",VLOOKUP(B30,'Rennerslijst Giro'!A3:C978,2)) -> POZZOVIVO Domenico | D30: 888
C31: Totaal: | D31: 2697
C32: Totaal niet boven -------> | D32: 2500

Sheet Le Capre Di Montagna
A1: ZWEMbike: GIRO 2015
A3: Naam: | B3: Joik :
A4: Ploegn: | B4: Le Capre Di Montagna****
F6: RIT | G6: 1 | H6: 2 | I6: 3 | J6: 4 | K6: 5 | L6: 6 | M6: 7 | N6: 8 | O6: 9 | P6: 10 | Q6: 11 | R6: 12 | S6: 13 | T6: 14 | U6: 15 | V6: 16 | W6: 17 | X6: 18 | Y6: 19 | Z6: 20 | AA6: 21 | AB6: Totaal
B7: Code | C7: Naam | D7: Waarde
A8: 1 | B8: 502 | C8: =IF(B8="","",VLOOKUP(B8,'Rennerslijst Giro'!A1:C976,2)) -> CONTADOR VELASCO Alberto | D8: 1791
A9: 2 | B9: 473 | C9: =IF(B9="","",VLOOKUP(B9,'Rennerslijst Giro'!A2:C977,2)) -> PORTE Richie | D9: 1271
A10: 3 | B10: 146 | C10: =IF(B10="","",VLOOKUP(B10,'Rennerslijst Giro'!A3:C978,2)) -> URAN URAN Rigoberto | D10: 1235
A11: 4 | B11: 322 | C11: =IF(B11="","",VLOOKUP(B11,'Rennerslijst Giro'!A4:C979,2)) -> MATTHEWS Michael | D11: 1123
A12: 5 | B12: 509 | C12: =IF(B12="","",VLOOKUP(B12,'Rennerslijst Giro'!A5:C980,2)) -> KREUZIGER Roman | D12: 374
A13: 6 | B13: 260 | C13: =IF(B13="","",VLOOKUP(B13,'Rennerslijst Giro'!A6:C981,2)) -> VAN DEN BROECK Jurgen | D13: 518
A14: 7 | B14: 82 | C14: =IF(B14="","",VLOOKUP(B14,'Rennerslijst Giro'!A7:C982,2)) -> BATTAGLIN Enrico | D14: 406
A15: 8 | B15: 236 | C15: =IF(B15="","",VLOOKUP(B15,'Rennerslijst Giro'!A8:C983,2)) -> ULISSI Diego | D15: 189
A16: 9 | B16: 242 | C16: =IF(B16="","",VLOOKUP(B16,'Rennerslijst Giro'!A9:C984,2)) -> MODOLO Sacha | D16: 189
A17: 10 | B17: 85 | C17: =IF(B17="","",VLOOKUP(B17,'Rennerslijst Giro'!A10:C985,2)) -> RUFFONI Nicola | D17: 177
A18: 11 | B18: 34 | C18: =IF(B18="","",VLOOKUP(B18,'Rennerslijst Giro'!A11:C986,2)) -> APPOLLONIO Davide | D18: 162
A19: 12 | B19: 355 | C19: =IF(B19="","",VLOOKUP(B19,'Rennerslijst Giro'!A12:C987,2)) -> PETACCHI Alessandro | D19: 45
E20: roze | F20: 150 | G20: 0 | H20: 0 | I20: 0 | J20: 0 | K20: 0 | L20: 0 | M20: 0 | N20: 150 | O20: 150 | P20: 150 | Q20: 150 | R20: 150 | S20: 0 | T20: 0 | U20: 0 | V20: 0 | W20: 0 | X20: 0 | Y20: 0 | Z20: 0 | AA20: 0 | AB20: =SUM(G20:AA20) -> 750
C21: Totaal: | D21: 7480 | E21: Berg | F21: 100 | G21: 0 | H21: 0 | I21: 100 | J21: 100 | K21: 100 | L21: 0 | M21: 0 | N21: 0 | O21: 0 | P21: 0 | Q21: 0 | R21: 0 | S21: 0 | T21: 0 | U21: 0 | V21: 0 | W21: 0 | X21: 0 | Y21: 0 | Z21: 0 | AA21: 0 | AB21: 300
C22: Totaal niet boven-------> | D22: 8000 | E22: punten | F22: 100 | G22: 0 | H22: 0 | I22: 0 | J22: 0 | K22: 0 | L22: 0 | M22: 0 | N22: 0 | O22: 100 | P22: 100 | Q22: 100 | R22: 100 | S22: 0 | T22: 0 | U22: 0 | V22: 0 | W22: 0 | X22: 0 | Y22: 0 | Z22: 0 | AA22: 0 | AB22: 400
E23: Jongere | F23: 100 | G23: 0 | H23: 0 | I23: 0 | J23: 0 | K23: 0 | L23: 0 | M23: 0 | N23: 0 | O23: 0 | P23: 100 | Q23: 0 | R23: 400 | S23: 0 | T23: 0 | U23: 0 | V23: 0 | W23: 0 | X23: 0 | Y23: 0 | Z23: 0 | AA23: 0 | AB23: 500
F25: Totaal | G25: =SUM(G8:G23) -> 0 | H25: =SUM(H8:H23) -> 0 | I25: =SUM(I8:I23) -> 100 | J25: 100 | K25: 100 | L25: 0 | M25: 0 | N25: 150 | O25: 250 | P25: 350 | Q25: 250 | R25: 650 | S25: 0 | T25: 0 | U25: 0 | V25: 0 | W25: 0 | X25: 0 | Y25: 0 | Z25: 0 | AA25: 0 | AB25: =SUM(AB8:AB23) -> 1950
B27: Code | C27: Reserve | D27: Waarde
A28: 1 | B28: 50 | C28: =IF(B28="","",VLOOKUP(B28,'Rennerslijst Giro'!A1:C976,2)) -> ARU Fabio | D28: 1358
A29: 2 | B29: 3 | C29: =IF(B29="","",VLOOKUP(B29,'Rennerslijst Giro'!A2:C977,2)) -> POZZOVIVO Domenico | D29: 451
A30: 3 | B30: 312 | C30: =IF(B30="","",VLOOKUP(B30,'Rennerslijst Giro'!A3:C978,2)) -> COLLI Daniele | D30: 888
C31: Totaal: | D31: 2697
C32: Totaal niet boven -------> | D32: 2500

Sheet De Roze Janetten
A1: ZWEMbike: GIRO 2015
A3: Naam: | B3: Tim :
A4: Ploegn: | B4: De Roze Janetten
F6: RIT | G6: 1 | H6: 2 | I6: 3 | J6: 4 | K6: 5 | L6: 6 | M6: 7 | N6: 8 | O6: 9 | P6: 10 | Q6: 11 | R6: 12 | S6: 13 | T6: 14 | U6: 15 | V6: 16 | W6: 17 | X6: 18 | Y6: 19 | Z6: 20 | AA6: 21 | AB6: Totaal
B7: Code | C7: Naam | D7: Waarde
A8: 1 | B8: 502 | C8: =IF(B8="","",VLOOKUP(B8,'Rennerslijst Giro'!A1:C976,2)) -> CONTADOR VELASCO Alberto | D8: 1791
A9: 2 | B9: 473 | C9: =IF(B9="","",VLOOKUP(B9,'Rennerslijst Giro'!A2:C977,2)) -> PORTE Richie | D9: 1271
A10: 3 | B10: 146 | C10: =IF(B10="","",VLOOKUP(B10,'Rennerslijst Giro'!A3:C978,2)) -> URAN URAN Rigoberto | D10: 1235
A11: 4 | B11: 232 | C11: =IF(B11="","",VLOOKUP(B11,'Rennerslijst Giro'!A4:C979,2)) -> NIEMIEC Przemyslaw | D11: 1123
A12: 5 | B12: 533 | C12: =IF(B12="","",VLOOKUP(B12,'Rennerslijst Giro'!A5:C980,2)) -> NIZZOLO Giacomo | D12: 374
A13: 6 | B13: 509 | C13: =IF(B13="","",VLOOKUP(B13,'Rennerslijst Giro'!A6:C981,2)) -> KREUZIGER Roman | D13: 518
A14: 7 | B14: 396 | C14: =IF(B14="","",VLOOKUP(B14,'Rennerslijst Giro'!A7:C982,2)) -> MEZGEC Luka | D14: 406
A15: 8 | B15: 260 | C15: =IF(B15="","",VLOOKUP(B15,'Rennerslijst Giro'!A8:C983,2)) -> VAN DEN BROECK Jurgen | D15: 189
A16: 9 | B16: 237 | C16: =IF(B16="","",VLOOKUP(B16,'Rennerslijst Giro'!A9:C984,2)) -> FERRARI Roberto | D16: 189
A17: 10 | B17: 83 | C17: =IF(B17="","",VLOOKUP(B17,'Rennerslijst Giro'!A10:C985,2)) -> PIRAZZI Stefano | D17: 177
A18: 11 | B18: 242 | C18: =IF(B18="","",VLOOKUP(B18,'Rennerslijst Giro'!A11:C986,2)) -> MODOLO Sacha | D18: 162
A19: 12 | B19: 27 | C19: =IF(B19="","",VLOOKUP(B19,'Rennerslijst Giro'!A12:C987,2)) -> BETANCUR GOMEZ Carlos Alberto | D19: 45
E20: roze | F20: 150 | G20: 0 | H20: 0 | I20: 0 | J20: 0 | K20: 0 | L20: 0 | M20: 0 | N20: 150 | O20: 150 | P20: 150 | Q20: 150 | R20: 150 | S20: 0 | T20: 0 | U20: 0 | V20: 0 | W20: 0 | X20: 0 | Y20: 0 | Z20: 0 | AA20: 0 | AB20: =SUM(G20:AA20) -> 750
C21: Totaal: | D21: 7480 | E21: Berg | F21: 100 | G21: 0 | H21: 0 | I21: 100 | J21: 100 | K21: 100 | L21: 0 | M21: 0 | N21: 0 | O21: 0 | P21: 0 | Q21: 0 | R21: 0 | S21: 0 | T21: 0 | U21: 0 | V21: 0 | W21: 0 | X21: 0 | Y21: 0 | Z21: 0 | AA21: 0 | AB21: 300
C22: Totaal niet boven-------> | D22: 8000 | E22: punten | F22: 100 | G22: 0 | H22: 0 | I22: 0 | J22: 0 | K22: 0 | L22: 0 | M22: 0 | N22: 0 | O22: 0 | P22: 0 | Q22: 0 | R22: 0 | S22: 0 | T22: 0 | U22: 0 | V22: 0 | W22: 0 | X22: 0 | Y22: 0 | Z22: 0 | AA22: 0 | AB22: 0
E23: Jongere | F23: 100 | G23: 0 | H23: 0 | I23: 0 | J23: 0 | K23: 0 | L23: 0 | M23: 0 | N23: 0 | O23: 0 | P23: 300 | Q23: 0 | R23: 400 | S23: 0 | T23: 0 | U23: 0 | V23: 0 | W23: 0 | X23: 0 | Y23: 0 | Z23: 0 | AA23: 0 | AB23: 700
F25: Totaal | G25: =SUM(G8:G23) -> 0 | H25: =SUM(H8:H23) -> 0 | I25: =SUM(I8:I23) -> 100 | J25: 100 | K25: 100 | L25: 0 | M25: 0 | N25: 150 | O25: 150 | P25: 450 | Q25: 150 | R25: 550 | S25: 0 | T25: 0 | U25: 0 | V25: 0 | W25: 0 | X25: 0 | Y25: 0 | Z25: 0 | AA25: 0 | AB25: =SUM(AB8:AB23) -> 1750
B27: Code | C27: Reserve | D27: Waarde
A28: 1 | B28: 50 | C28: =IF(B28="","",VLOOKUP(B28,'Rennerslijst Giro'!A1:C976,2)) -> ARU Fabio | D28: 1358
A29: 2 | B29: 3 | C29: =IF(B29="","",VLOOKUP(B29,'Rennerslijst Giro'!A2:C977,2)) -> POZZOVIVO Domenico | D29: 451
A30: 3 | B30: 451 | C30: =IF(B30="","",VLOOKUP(B30,'Rennerslijst Giro'!A3:C978,2)) -> KRUIJSWIJK Steven | D30: 888
C31: Totaal: | D31: 2697
C32: Totaal niet boven -------> | D32: 2500

Sheet U
A1: ZWEMbike: GIRO 2015
A3: Naam: | B3: Ollie :
A4: Ploegn: | B4: U****
F6: RIT | G6: 1 | H6: 2 | I6: 3 | J6: 4 | K6: 5 | L6: 6 | M6: 7 | N6: 8 | O6: 9 | P6: 10 | Q6: 11 | R6: 12 | S6: 13 | T6: 14 | U6: 15 | V6: 16 | W6: 17 | X6: 18 | Y6: 19 | Z6: 20 | AA6: 21 | AB6: Totaal
B7: Code | C7: Naam | D7: Waarde
A8: 1 | B8: 502 | C8: =IF(B8="","",VLOOKUP(B8,'Rennerslijst Giro'!A1:C976,2)) -> CONTADOR VELASCO Alberto | D8: 1791
A9: 2 | B9: 473 | C9: =IF(B9="","",VLOOKUP(B9,'Rennerslijst Giro'!A2:C977,2)) -> PORTE Richie | D9: 1271
A10: 3 | B10: 322 | C10: =IF(B10="","",VLOOKUP(B10,'Rennerslijst Giro'!A3:C978,2)) -> MATTHEWS Michael | D10: 1235
A11: 4 | B11: 509 | C11: =IF(B11="","",VLOOKUP(B11,'Rennerslijst Giro'!A4:C979,2)) -> KREUZIGER Roman | D11: 1123
A12: 5 | B12: 101 | C12: =IF(B12="","",VLOOKUP(B12,'Rennerslijst Giro'!A5:C980,2)) -> CARUSO Damiano | D12: 374
A13: 6 | B13: 424 | C13: =IF(B13="","",VLOOKUP(B13,'Rennerslijst Giro'!A6:C981,2)) -> ZAKARIN Ilnur | D13: 518
A14: 7 | B14: 260 | C14: =IF(B14="","",VLOOKUP(B14,'Rennerslijst Giro'!A7:C982,2)) -> VAN DEN BROECK Jurgen | D14: 406
A15: 8 | B15: 59 | C15: =IF(B15="","",VLOOKUP(B15,'Rennerslijst Giro'!A8:C983,2)) -> LANDA MEANA Mikel | D15: 189
A16: 9 | B16: 236 | C16: =IF(B16="","",VLOOKUP(B16,'Rennerslijst Giro'!A9:C984,2)) -> ULISSI Diego | D16: 189
A17: 10 | B17: 83 | C17: =IF(B17="","",VLOOKUP(B17,'Rennerslijst Giro'!A10:C985,2)) -> PIRAZZI Stefano | D17: 177
A18: 11 | B18: 242 | C18: =IF(B18="","",VLOOKUP(B18,'Rennerslijst Giro'!A11:C986,2)) -> MODOLO Sacha | D18: 162
A19: 12 | B19: 85 | C19: =IF(B19="","",VLOOKUP(B19,'Rennerslijst Giro'!A12:C987,2)) -> RUFFONI Nicola | D19: 45
E20: roze | F20: 150 | G20: 0 | H20: 0 | I20: 0 | J20: 0 | K20: 0 | L20: 0 | M20: 0 | N20: 150 | O20: 150 | P20: 150 | Q20: 150 | R20: 150 | S20: 0 | T20: 0 | U20: 0 | V20: 0 | W20: 0 | X20: 0 | Y20: 0 | Z20: 0 | AA20: 0 | AB20: =SUM(G20:AA20) -> 750
C21: Totaal: | D21: 7480 | E21: Berg | F21: 100 | G21: 0 | H21: 0 | I21: 100 | J21: 100 | K21: 100 | L21: 0 | M21: 0 | N21: 0 | O21: 0 | P21: 0 | Q21: 0 | R21: 0 | S21: 0 | T21: 0 | U21: 0 | V21: 0 | W21: 0 | X21: 0 | Y21: 0 | Z21: 0 | AA21: 0 | AB21: 300
C22: Totaal niet boven-------> | D22: 8000 | E22: punten | F22: 100 | G22: 0 | H22: 0 | I22: 0 | J22: 0 | K22: 300 | L22: 0 | M22: 0 | N22: 0 | O22: 100 | P22: 100 | Q22: 100 | R22: 100 | S22: 0 | T22: 0 | U22: 0 | V22: 0 | W22: 0 | X22: 0 | Y22: 0 | Z22: 0 | AA22: 0 | AB22: 700
E23: Jongere | F23: 100 | G23: 0 | H23: 0 | I23: 0 | J23: 0 | K23: 0 | L23: 0 | M23: 0 | N23: 0 | O23: 0 | P23: 100 | Q23: 0 | R23: 300 | S23: 0 | T23: 0 | U23: 0 | V23: 0 | W23: 0 | X23: 0 | Y23: 0 | Z23: 0 | AA23: 0 | AB23: 400
F25: Totaal | G25: =SUM(G8:G23) -> 0 | H25: =SUM(H8:H23) -> 0 | I25: =SUM(I8:I23) -> 100 | J25: 100 | K25: 400 | L25: 0 | M25: 0 | N25: 150 | O25: 250 | P25: 350 | Q25: 250 | R25: 550 | S25: 0 | T25: 0 | U25: 0 | V25: 0 | W25: 0 | X25: 0 | Y25: 0 | Z25: 0 | AA25: 0 | AB25: =SUM(AB8:AB23) -> 2150
B27: Code | C27: Reserve | D27: Waarde
A28: 1 | B28: 146 | C28: =IF(B28="","",VLOOKUP(B28,'Rennerslijst Giro'!A1:C976,2)) -> URAN URAN Rigoberto | D28: 1358
A29: 2 | B29: 478 | C29: =IF(B29="","",VLOOKUP(B29,'Rennerslijst Giro'!A2:C977,2)) -> KÖNIG Leopold | D29: 451
A30: 3 | B30: 3 | C30: =IF(B30="","",VLOOKUP(B30,'Rennerslijst Giro'!A3:C978,2)) -> POZZOVIVO Domenico | D30: 888
C31: Totaal: | D31: 2697
C32: Totaal niet boven -------> | D32: 2500

Sheet Jeff
A1: ZWEMbike: GIRO 2015
A3: Naam: | B3: Arno :
A4: Ploegn: | B4: Jeff
F6: RIT | G6: 1 | H6: 2 | I6: 3 | J6: 4 | K6: 5 | L6: 6 | M6: 7 | N6: 8 | O6: 9 | P6: 10 | Q6: 11 | R6: 12 | S6: 13 | T6: 14 | U6: 15 | V6: 16 | W6: 17 | X6: 18 | Y6: 19 | Z6: 20 | AA6: 21 | AB6: Totaal
B7: Code | C7: Naam | D7: Waarde
A8: 1 | B8: 502 | C8: =IF(B8="","",VLOOKUP(B8,'Rennerslijst Giro'!A1:C976,2)) -> CONTADOR VELASCO Alberto | D8: 1791
A9: 2 | B9: 473 | C9: =IF(B9="","",VLOOKUP(B9,'Rennerslijst Giro'!A2:C977,2)) -> PORTE Richie | D9: 1271
A10: 3 | B10: 146 | C10: =IF(B10="","",VLOOKUP(B10,'Rennerslijst Giro'!A3:C978,2)) -> URAN URAN Rigoberto | D10: 1235
A11: 4 | B11: 254 | C11: =IF(B11="","",VLOOKUP(B11,'Rennerslijst Giro'!A4:C979,2)) -> GREIPEL André | D11: 1123
A12: 5 | B12: 260 | C12: =IF(B12="","",VLOOKUP(B12,'Rennerslijst Giro'!A5:C980,2)) -> VAN DEN BROECK Jurgen | D12: 374
A13: 6 | B13: 368 | C13: =IF(B13="","",VLOOKUP(B13,'Rennerslijst Giro'!A6:C981,2)) -> HESJEDAL Ryder | D13: 518
A14: 7 | B14: 30 | C14: =IF(B14="","",VLOOKUP(B14,'Rennerslijst Giro'!A7:C982,2)) -> PELLIZOTTI Franco | D14: 406
A15: 8 | B15: 262 | C15: =IF(B15="","",VLOOKUP(B15,'Rennerslijst Giro'!A8:C983,2)) -> MONFORT Maxime | D15: 189
A16: 9 | B16: 242 | C16: =IF(B16="","",VLOOKUP(B16,'Rennerslijst Giro'!A9:C984,2)) -> MODOLO Sacha | D16: 189
A17: 10 | B17: 519 | C17: =IF(B17="","",VLOOKUP(B17,'Rennerslijst Giro'!A10:C985,2)) -> BASSO Ivan | D17: 177
A18: 11 | B18: 529 | C18: =IF(B18="","",VLOOKUP(B18,'Rennerslijst Giro'!A11:C986,2)) -> PAULINHO Sergio Miguel Moreira | D18: 162
A19: 12 | B19: 412 | C19: =IF(B19="","",VLOOKUP(B19,'Rennerslijst Giro'!A12:C987,2)) -> LUDVIGSSON Tobias | D19: 45
E20: roze | F20: 150 | G20: 0 | H20: 0 | I20: 0 | J20: 0 | K20: 0 | L20: 0 | M20: 0 | N20: 150 | O20: 150 | P20: 150 | Q20: 150 | R20: 150 | S20: 0 | T20: 0 | U20: 0 | V20: 0 | W20: 0 | X20: 0 | Y20: 0 | Z20: 0 | AA20: 0 | AB20: =SUM(G20:AA20) -> 750
C21: Totaal: | D21: 7480 | E21: Berg | F21: 100 | G21: 0 | H21: 0 | I21: 0 | J21: 0 | K21: 0 | L21: 0 | M21: 0 | N21: 0 | O21: 0 | P21: 0 | Q21: 0 | R21: 0 | S21: 0 | T21: 0 | U21: 0 | V21: 0 | W21: 0 | X21: 0 | Y21: 0 | Z21: 0 | AA21: 0 | AB21: 0
C22: Totaal niet boven-------> | D22: 8000 | E22: punten | F22: 100 | G22: 0 | H22: 0 | I22: 0 | J22: 0 | K22: 0 | L22: 0 | M22: 0 | N22: 0 | O22: 0 | P22: 0 | Q22: 0 | R22: 0 | S22: 0 | T22: 0 | U22: 0 | V22: 0 | W22: 0 | X22: 0 | Y22: 0 | Z22: 0 | AA22: 0 | AB22: 0
E23: Jongere | F23: 100 | G23: 0 | H23: 0 | I23: 0 | J23: 0 | K23: 0 | L23: 0 | M23: 0 | N23: 0 | O23: 0 | P23: 100 | Q23: 0 | R23: 300 | S23: 0 | T23: 0 | U23: 0 | V23: 0 | W23: 0 | X23: 0 | Y23: 0 | Z23: 0 | AA23: 0 | AB23: 400
F25: Totaal | G25: =SUM(G8:G23) -> 0 | H25: =SUM(H8:H23) -> 0 | I25: =SUM(I8:I23) -> 0 | J25: 0 | K25: 0 | L25: 0 | M25: 0 | N25: 150 | O25: 150 | P25: 250 | Q25: 150 | R25: 450 | S25: 0 | T25: 0 | U25: 0 | V25: 0 | W25: 0 | X25: 0 | Y25: 0 | Z25: 0 | AA25: 0 | AB25: =SUM(AB8:AB23) -> 1150
B27: Code | C27: Reserve | D27: Waarde
A28: 1 | B28: 50 | C28: =IF(B28="","",VLOOKUP(B28,'Rennerslijst Giro'!A1:C976,2)) -> ARU Fabio | D28: 1358
A29: 2 | B29: 3 | C29: =IF(B29="","",VLOOKUP(B29,'Rennerslijst Giro'!A2:C977,2)) -> POZZOVIVO Domenico | D29: 451
A30: 3 | B30: 429 | C30: =IF(B30="","",VLOOKUP(B30,'Rennerslijst Giro'!A3:C978,2)) -> TROFIMOV Yury | D30: 888
C31: Totaal: | D31: 2697
C32: Totaal niet boven -------> | D32: 2500

Sheet PADT
A1: ZWEMbike: GIRO 2015
A3: Naam: | B3: Filip :
A4: Ploegn: | B4: PADT
F6: RIT | G6: 1 | H6: 2 | I6: 3 | J6: 4 | K6: 5 | L6: 6 | M6: 7 | N6: 8 | O6: 9 | P6: 10 | Q6: 11 | R6: 12 | S6: 13 | T6: 14 | U6: 15 | V6: 16 | W6: 17 | X6: 18 | Y6: 19 | Z6: 20 | AA6: 21 | AB6: Totaal
B7: Code | C7: Naam | D7: Waarde
A8: 1 | B8: 502 | C8: =IF(B8="","",VLOOKUP(B8,'Rennerslijst Giro'!A1:C976,2)) -> CONTADOR VELASCO Alberto | D8: 1791
A9: 2 | B9: 473 | C9: =IF(B9="","",VLOOKUP(B9,'Rennerslijst Giro'!A2:C977,2)) -> PORTE Richie | D9: 1271
A10: 3 | B10: 322 | C10: =IF(B10="","",VLOOKUP(B10,'Rennerslijst Giro'!A3:C978,2)) -> MATTHEWS Michael | D10: 1235
A11: 4 | B11: 50 | C11: =IF(B11="","",VLOOKUP(B11,'Rennerslijst Giro'!A4:C979,2)) -> ARU Fabio | D11: 1123
A12: 5 | B12: 477 | C12: =IF(B12="","",VLOOKUP(B12,'Rennerslijst Giro'!A5:C980,2)) -> VIVIANI Elia | D12: 374
A13: 6 | B13: 368 | C13: =IF(B13="","",VLOOKUP(B13,'Rennerslijst Giro'!A6:C981,2)) -> HESJEDAL Ryder | D13: 518
A14: 7 | B14: 260 | C14: =IF(B14="","",VLOOKUP(B14,'Rennerslijst Giro'!A7:C982,2)) -> VAN DEN BROECK Jurgen | D14: 406
A15: 8 | B15: 82 | C15: =IF(B15="","",VLOOKUP(B15,'Rennerslijst Giro'!A8:C983,2)) -> BATTAGLIN Enrico | D15: 189
A16: 9 | B16: 83 | C16: =IF(B16="","",VLOOKUP(B16,'Rennerslijst Giro'!A9:C984,2)) -> PIRAZZI Stefano | D16: 189
A17: 10 | B17: 519 | C17: =IF(B17="","",VLOOKUP(B17,'Rennerslijst Giro'!A10:C985,2)) -> BASSO Ivan | D17: 177
A18: 11 | B18: 242 | C18: =IF(B18="","",VLOOKUP(B18,'Rennerslijst Giro'!A11:C986,2)) -> MODOLO Sacha | D18: 162
A19: 12 | B19: 27 | C19: =IF(B19="","",VLOOKUP(B19,'Rennerslijst Giro'!A12:C987,2)) -> BETANCUR GOMEZ Carlos Alberto | D19: 45
E20: roze | F20: 150 | G20: 0 | H20: 0 | I20: 0 | J20: 0 | K20: 0 | L20: 0 | M20: 0 | N20: 150 | O20: 150 | P20: 150 | Q20: 150 | R20: 150 | S20: 0 | T20: 0 | U20: 0 | V20: 0 | W20: 0 | X20: 0 | Y20: 0 | Z20: 0 | AA20: 0 | AB20: =SUM(G20:AA20) -> 750
C21: Totaal: | D21: 7480 | E21: Berg | F21: 100 | G21: 0 | H21: 0 | I21: 0 | J21: 0 | K21: 0 | L21: 0 | M21: 100 | N21: 100 | O21: 0 | P21: 0 | Q21: 0 | R21: 0 | S21: 0 | T21: 0 | U21: 0 | V21: 0 | W21: 0 | X21: 0 | Y21: 0 | Z21: 0 | AA21: 0 | AB21: 200
C22: Totaal niet boven-------> | D22: 8000 | E22: punten | F22: 100 | G22: 0 | H22: 0 | I22: 0 | J22: 0 | K22: 0 | L22: 0 | M22: 0 | N22: 0 | O22: 100 | P22: 100 | Q22: 100 | R22: 0 | S22: 0 | T22: 0 | U22: 0 | V22: 0 | W22: 0 | X22: 0 | Y22: 0 | Z22: 0 | AA22: 0 | AB22: 300
E23: Jongere | F23: 100 | G23: 0 | H23: 0 | I23: 0 | J23: 0 | K23: 0 | L23: 0 | M23: 0 | N23: 0 | O23: 0 | P23: 100 | Q23: 0 | R23: 200 | S23: 0 | T23: 0 | U23: 0 | V23: 0 | W23: 0 | X23: 0 | Y23: 0 | Z23: 0 | AA23: 0 | AB23: 300
F25: Totaal | G25: =SUM(G8:G23) -> 0 | H25: =SUM(H8:H23) -> 0 | I25: =SUM(I8:I23) -> 0 | J25: 0 | K25: 0 | L25: 0 | M25: 100 | N25: 250 | O25: 250 | P25: 350 | Q25: 250 | R25: 350 | S25: 0 | T25: 0 | U25: 0 | V25: 0 | W25: 0 | X25: 0 | Y25: 0 | Z25: 0 | AA25: 0 | AB25: =SUM(AB8:AB23) -> 1550
B27: Code | C27: Reserve | D27: Waarde
A28: 1 | B28: 3 | C28: =IF(B28="","",VLOOKUP(B28,'Rennerslijst Giro'!A1:C976,2)) -> POZZOVIVO Domenico | D28: 1358
A29: 2 | B29: 309 | C29: =IF(B29="","",VLOOKUP(B29,'Rennerslijst Giro'!A2:C977,2)) -> CUNEGO Damiano | D29: 451
A30: 3 | B30: 549 | C30: =IF(B30="","",VLOOKUP(B30,'Rennerslijst Giro'!A3:C978,2)) -> VAN POPPEL Boy | D30: 888
C31: Totaal: | D31: 2697
C32: Totaal niet boven -------> | D32: 2500

Sheet Paperboys
A1: ZWEMbike: GIRO 2015
A3: Naam: | B3: Tom :
A4: Ploegn: | B4: Paperboys*
F6: RIT | G6: 1 | H6: 2 | I6: 3 | J6: 4 | K6: 5 | L6: 6 | M6: 7 | N6: 8 | O6: 9 | P6: 10 | Q6: 11 | R6: 12 | S6: 13 | T6: 14 | U6: 15 | V6: 16 | W6: 17 | X6: 18 | Y6: 19 | Z6: 20 | AA6: 21 | AB6: Totaal
B7: Code | C7: Naam | D7: Waarde
A8: 1 | B8: 473 | C8: =IF(B8="","",VLOOKUP(B8,'Rennerslijst Giro'!A1:C976,2)) -> PORTE Richie | D8: 1791
A9: 2 | B9: 146 | C9: =IF(B9="","",VLOOKUP(B9,'Rennerslijst Giro'!A2:C977,2)) -> URAN URAN Rigoberto | D9: 1271
A10: 3 | B10: 322 | C10: =IF(B10="","",VLOOKUP(B10,'Rennerslijst Giro'!A3:C978,2)) -> MATTHEWS Michael | D10: 1235
A11: 4 | B11: 50 | C11: =IF(B11="","",VLOOKUP(B11,'Rennerslijst Giro'!A4:C979,2)) -> ARU Fabio | D11: 1123
A12: 5 | B12: 368 | C12: =IF(B12="","",VLOOKUP(B12,'Rennerslijst Giro'!A5:C980,2)) -> HESJEDAL Ryder | D12: 374
A13: 6 | B13: 284 | C13: =IF(B13="","",VLOOKUP(B13,'Rennerslijst Giro'!A6:C981,2)) -> LOBATO DEL VALLE Juan Jose | D13: 518
A14: 7 | B14: 396 | C14: =IF(B14="","",VLOOKUP(B14,'Rennerslijst Giro'!A7:C982,2)) -> MEZGEC Luka | D14: 406
A15: 8 | B15: 456 | C15: =IF(B15="","",VLOOKUP(B15,'Rennerslijst Giro'!A8:C983,2)) -> HOFLAND Moreno | D15: 189
A16: 9 | B16: 110 | C16: =IF(B16="","",VLOOKUP(B16,'Rennerslijst Giro'!A9:C984,2)) -> ATAPUMA HURTADO Jhon Darwin | D16: 189
A17: 10 | B17: 242 | C17: =IF(B17="","",VLOOKUP(B17,'Rennerslijst Giro'!A10:C985,2)) -> MODOLO Sacha | D17: 177
A18: 11 | B18: 87 | C18: =IF(B18="","",VLOOKUP(B18,'Rennerslijst Giro'!A11:C986,2)) -> BARBIN Enrico | D18: 162
A19: 12 | B19: 319 | C19: =IF(B19="","",VLOOKUP(B19,'Rennerslijst Giro'!A12:C987,2)) -> STACCHIOTTI Riccardo | D19: 45
E20: roze | F20: 150 | G20: 0 | H20: 0 | I20: 0 | J20: 0 | K20: 0 | L20: 0 | M20: 0 | N20: 0 | O20: 0 | P20: 0 | Q20: 0 | R20: 0 | S20: 0 | T20: 0 | U20: 0 | V20: 0 | W20: 0 | X20: 0 | Y20: 0 | Z20: 0 | AA20: 0 | AB20: =SUM(G20:AA20) -> 0
C21: Totaal: | D21: 7480 | E21: Berg | F21: 100 | G21: 0 | H21: 0 | I21: 0 | J21: 0 | K21: 0 | L21: 0 | M21: 100 | N21: 100 | O21: 0 | P21: 0 | Q21: 0 | R21: 0 | S21: 0 | T21: 0 | U21: 0 | V21: 0 | W21: 0 | X21: 0 | Y21: 0 | Z21: 0 | AA21: 0 | AB21: 200
C22: Totaal niet boven-------> | D22: 8000 | E22: punten | F22: 100 | G22: 0 | H22: 0 | I22: 0 | J22: 0 | K22: 0 | L22: 0 | M22: 0 | N22: 0 | O22: 100 | P22: 100 | Q22: 100 | R22: 0 | S22: 0 | T22: 0 | U22: 0 | V22: 0 | W22: 0 | X22: 0 | Y22: 0 | Z22: 0 | AA22: 0 | AB22: 300
E23: Jongere | F23: 100 | G23: 0 | H23: 0 | I23: 0 | J23: 0 | K23: 0 | L23: 0 | M23: 0 | N23: 0 | O23: 0 | P23: 200 | Q23: 0 | R23: 200 | S23: 0 | T23: 0 | U23: 0 | V23: 0 | W23: 0 | X23: 0 | Y23: 0 | Z23: 0 | AA23: 0 | AB23: 400
F25: Totaal | G25: =SUM(G8:G23) -> 0 | H25: =SUM(H8:H23) -> 0 | I25: =SUM(I8:I23) -> 0 | J25: 0 | K25: 0 | L25: 0 | M25: 100 | N25: 100 | O25: 100 | P25: 300 | Q25: 100 | R25: 200 | S25: 0 | T25: 0 | U25: 0 | V25: 0 | W25: 0 | X25: 0 | Y25: 0 | Z25: 0 | AA25: 0 | AB25: =SUM(AB8:AB23) -> 900
B27: Code | C27: Reserve | D27: Waarde
A28: 1 | B28: 502 | C28: =IF(B28="","",VLOOKUP(B28,'Rennerslijst Giro'!A1:C976,2)) -> CONTADOR VELASCO Alberto | D28: 1358
A29: 2 | B29: 3 | C29: =IF(B29="","",VLOOKUP(B29,'Rennerslijst Giro'!A2:C977,2)) -> POZZOVIVO Domenico | D29: 451
A30: 3 | B30: 63 | C30: =IF(B30="","",VLOOKUP(B30,'Rennerslijst Giro'!A3:C978,2)) -> KANGERT Tanel | D30: 888
C31: Totaal: | D31: 2697
C32: Totaal niet boven -------> | D32: 2500

Sheet Il Krieperi Disoccupato
A1: ZWEMbike: GIRO 2015
A3: Naam: | B3: Robin :
A4: Ploegn: | B4: Il Krieperi Disoccupato***
F6: RIT | G6: 1 | H6: 2 | I6: 3 | J6: 4 | K6: 5 | L6: 6 | M6: 7 | N6: 8 | O6: 9 | P6: 10 | Q6: 11 | R6: 12 | S6: 13 | T6: 14 | U6: 15 | V6: 16 | W6: 17 | X6: 18 | Y6: 19 | Z6: 20 | AA6: 21 | AB6: Totaal
B7: Code | C7: Naam | D7: Waarde
A8: 1 | B8: 502 | C8: =IF(B8="","",VLOOKUP(B8,'Rennerslijst Giro'!A1:C976,2)) -> CONTADOR VELASCO Alberto | D8: 1791
A9: 2 | B9: 473 | C9: =IF(B9="","",VLOOKUP(B9,'Rennerslijst Giro'!A2:C977,2)) -> PORTE Richie | D9: 1271
A10: 3 | B10: 146 | C10: =IF(B10="","",VLOOKUP(B10,'Rennerslijst Giro'!A3:C978,2)) -> URAN URAN Rigoberto | D10: 1235
A11: 4 | B11: 50 | C11: =IF(B11="","",VLOOKUP(B11,'Rennerslijst Giro'!A4:C979,2)) -> ARU Fabio | D11: 1123
A12: 5 | B12: 254 | C12: =IF(B12="","",VLOOKUP(B12,'Rennerslijst Giro'!A5:C980,2)) -> GREIPEL André | D12: 374
A13: 6 | B13: 424 | C13: =IF(B13="","",VLOOKUP(B13,'Rennerslijst Giro'!A6:C981,2)) -> ZAKARIN Ilnur | D13: 518
A14: 7 | B14: 260 | C14: =IF(B14="","",VLOOKUP(B14,'Rennerslijst Giro'!A7:C982,2)) -> VAN DEN BROECK Jurgen | D14: 406
A15: 8 | B15: 236 | C15: =IF(B15="","",VLOOKUP(B15,'Rennerslijst Giro'!A8:C983,2)) -> ULISSI Diego | D15: 189
A16: 9 | B16: 242 | C16: =IF(B16="","",VLOOKUP(B16,'Rennerslijst Giro'!A9:C984,2)) -> MODOLO Sacha | D16: 189
A17: 10 | B17: 312 | C17: =IF(B17="","",VLOOKUP(B17,'Rennerslijst Giro'!A10:C985,2)) -> COLLI Daniele | D17: 177
A18: 11 | B18: 27 | C18: =IF(B18="","",VLOOKUP(B18,'Rennerslijst Giro'!A11:C986,2)) -> BETANCUR GOMEZ Carlos Alberto | D18: 162
A19: 12 | B19: 319 | C19: =IF(B19="","",VLOOKUP(B19,'Rennerslijst Giro'!A12:C987,2)) -> STACCHIOTTI Riccardo | D19: 45
E20: roze | F20: 150 | G20: 0 | H20: 0 | I20: 0 | J20: 0 | K20: 0 | L20: 0 | M20: 0 | N20: 150 | O20: 150 | P20: 150 | Q20: 150 | R20: 150 | S20: 0 | T20: 0 | U20: 0 | V20: 0 | W20: 0 | X20: 0 | Y20: 0 | Z20: 0 | AA20: 0 | AB20: =SUM(G20:AA20) -> 750
C21: Totaal: | D21: 7480 | E21: Berg | F21: 100 | G21: 0 | H21: 0 | I21: 0 | J21: 0 | K21: 0 | L21: 0 | M21: 100 | N21: 100 | O21: 0 | P21: 0 | Q21: 0 | R21: 0 | S21: 0 | T21: 0 | U21: 0 | V21: 0 | W21: 0 | X21: 0 | Y21: 0 | Z21: 0 | AA21: 0 | AB21: 200
C22: Totaal niet boven-------> | D22: 8000 | E22: punten | F22: 100 | G22: 0 | H22: 0 | I22: 0 | J22: 0 | K22: 100 | L22: 0 | M22: 0 | N22: 0 | O22: 0 | P22: 0 | Q22: 0 | R22: 100 | S22: 0 | T22: 0 | U22: 0 | V22: 0 | W22: 0 | X22: 0 | Y22: 0 | Z22: 0 | AA22: 0 | AB22: 200
E23: Jongere | F23: 100 | G23: 0 | H23: 0 | I23: 0 | J23: 0 | K23: 0 | L23: 0 | M23: 0 | N23: 0 | O23: 0 | P23: 100 | Q23: 0 | R23: 300 | S23: 0 | T23: 0 | U23: 0 | V23: 0 | W23: 0 | X23: 0 | Y23: 0 | Z23: 0 | AA23: 0 | AB23: 400
F25: Totaal | G25: =SUM(G8:G23) -> 0 | H25: =SUM(H8:H23) -> 0 | I25: =SUM(I8:I23) -> 0 | J25: 0 | K25: 100 | L25: 0 | M25: 100 | N25: 250 | O25: 150 | P25: 250 | Q25: 150 | R25: 550 | S25: 0 | T25: 0 | U25: 0 | V25: 0 | W25: 0 | X25: 0 | Y25: 0 | Z25: 0 | AA25: 0 | AB25: =SUM(AB8:AB23) -> 1550
B27: Code | C27: Reserve | D27: Waarde
A28: 1 | B28: 3 | C28: =IF(B28="","",VLOOKUP(B28,'Rennerslijst Giro'!A1:C976,2)) -> POZZOVIVO Domenico | D28: 1358
A29: 2 | B29: 285 | C29: =IF(B29="","",VLOOKUP(B29,'Rennerslijst Giro'!A2:C977,2)) -> INTXAUSTI ELORRIAGA Beñat | D29: 451
A30: 3 | B30: 451 | C30: =IF(B30="","",VLOOKUP(B30,'Rennerslijst Giro'!A3:C978,2)) -> KRUIJSWIJK Steven | D30: 888
C31: Totaal: | D31: 2697
C32: Totaal niet boven -------> | D32: 2500

Sheet The Dolphen
A1: ZWEMbike: GIRO 2015
A3: Naam: | B3: Pieter :
A4: Ploegn: | B4: The Dolphen
F6: RIT | G6: 1 | H6: 2 | I6: 3 | J6: 4 | K6: 5 | L6: 6 | M6: 7 | N6: 8 | O6: 9 | P6: 10 | Q6: 11 | R6: 12 | S6: 13 | T6: 14 | U6: 15 | V6: 16 | W6: 17 | X6: 18 | Y6: 19 | Z6: 20 | AA6: 21 | AB6: Totaal
B7: Code | C7: Naam | D7: Waarde
A8: 1 | B8: 502 | C8: =IF(B8="","",VLOOKUP(B8,'Rennerslijst Giro'!A1:C976,2)) -> CONTADOR VELASCO Alberto | D8: 1791
A9: 2 | B9: 473 | C9: =IF(B9="","",VLOOKUP(B9,'Rennerslijst Giro'!A2:C977,2)) -> PORTE Richie | D9: 1271
A10: 3 | B10: 146 | C10: =IF(B10="","",VLOOKUP(B10,'Rennerslijst Giro'!A3:C978,2)) -> URAN URAN Rigoberto | D10: 1235
A11: 4 | B11: 50 | C11: =IF(B11="","",VLOOKUP(B11,'Rennerslijst Giro'!A4:C979,2)) -> ARU Fabio | D11: 1123
A12: 5 | B12: 478 | C12: =IF(B12="","",VLOOKUP(B12,'Rennerslijst Giro'!A5:C980,2)) -> KÖNIG Leopold | D12: 374
A13: 6 | B13: 396 | C13: =IF(B13="","",VLOOKUP(B13,'Rennerslijst Giro'!A6:C981,2)) -> MEZGEC Luka | D13: 518
A14: 7 | B14: 262 | C14: =IF(B14="","",VLOOKUP(B14,'Rennerslijst Giro'!A7:C982,2)) -> MONFORT Maxime | D14: 406
A15: 8 | B15: 431 | C15: =IF(B15="","",VLOOKUP(B15,'Rennerslijst Giro'!A8:C983,2)) -> PAOLINI Luca | D15: 189
A16: 9 | B16: 294 | C16: =IF(B16="","",VLOOKUP(B16,'Rennerslijst Giro'!A9:C984,2)) -> AMADOR BIKKAZAKOVA Andrey | D16: 189
A17: 10 | B17: 491 | C17: =IF(B17="","",VLOOKUP(B17,'Rennerslijst Giro'!A10:C985,2)) -> HENAO GOMEZ Sebastian | D17: 177
A18: 11 | B18: 213 | C18: =IF(B18="","",VLOOKUP(B18,'Rennerslijst Giro'!A11:C986,2)) -> SARAMOTINS Aleksejs | D18: 162
A19: 12 | B19: 117 | C19: =IF(B19="","",VLOOKUP(B19,'Rennerslijst Giro'!A12:C987,2)) -> ZABEL Rick | D19: 45
E20: roze | F20: 150 | G20: 0 | H20: 0 | I20: 0 | J20: 0 | K20: 0 | L20: 0 | M20: 0 | N20: 150 | O20: 150 | P20: 150 | Q20: 150 | R20: 150 | S20: 0 | T20: 0 | U20: 0 | V20: 0 | W20: 0 | X20: 0 | Y20: 0 | Z20: 0 | AA20: 0 | AB20: =SUM(G20:AA20) -> 750
C21: Totaal: | D21: 7480 | E21: Berg | F21: 100 | G21: 0 | H21: 0 | I21: 0 | J21: 0 | K21: 0 | L21: 0 | M21: 100 | N21: 100 | O21: 0 | P21: 0 | Q21: 0 | R21: 0 | S21: 0 | T21: 0 | U21: 0 | V21: 0 | W21: 0 | X21: 0 | Y21: 0 | Z21: 0 | AA21: 0 | AB21: 200
C22: Totaal niet boven-------> | D22: 8000 | E22: punten | F22: 100 | G22: 0 | H22: 0 | I22: 0 | J22: 0 | K22: 0 | L22: 0 | M22: 0 | N22: 0 | O22: 0 | P22: 0 | Q22: 0 | R22: 0 | S22: 0 | T22: 0 | U22: 0 | V22: 0 | W22: 0 | X22: 0 | Y22: 0 | Z22: 0 | AA22: 0 | AB22: 0
E23: Jongere | F23: 100 | G23: 0 | H23: 0 | I23: 0 | J23: 0 | K23: 0 | L23: 0 | M23: 0 | N23: 0 | O23: 0 | P23: 100 | Q23: 0 | R23: 200 | S23: 0 | T23: 0 | U23: 0 | V23: 0 | W23: 0 | X23: 0 | Y23: 0 | Z23: 0 | AA23: 0 | AB23: 300
F25: Totaal | G25: =SUM(G8:G23) -> 0 | H25: =SUM(H8:H23) -> 0 | I25: =SUM(I8:I23) -> 0 | J25: 0 | K25: 0 | L25: 0 | M25: 100 | N25: 250 | O25: 150 | P25: 250 | Q25: 150 | R25: 350 | S25: 0 | T25: 0 | U25: 0 | V25: 0 | W25: 0 | X25: 0 | Y25: 0 | Z25: 0 | AA25: 0 | AB25: =SUM(AB8:AB23) -> 1250
B27: Code | C27: Reserve | D27: Waarde
A28: 1 | B28: 3 | C28: =IF(B28="","",VLOOKUP(B28,'Rennerslijst Giro'!A1:C976,2)) -> POZZOVIVO Domenico | D28: 1358
A29: 2 | B29: 533 | C29: =IF(B29="","",VLOOKUP(B29,'Rennerslijst Giro'!A2:C977,2)) -> NIZZOLO Giacomo | D29: 451
A30: 3 | B30: 101 | C30: =IF(B30="","",VLOOKUP(B30,'Rennerslijst Giro'!A3:C978,2)) -> CARUSO Damiano | D30: 888
C31: Totaal: | D31: 2697
C32: Totaal niet boven -------> | D32: 2500

Sheet Squadra Parcheggio
A1: ZWEMbike: GIRO 2015
A3: Naam: | B3: Bart :
A4: Ploegn: | B4: Squadra Parcheggio
F6: RIT | G6: 1 | H6: 2 | I6: 3 | J6: 4 | K6: 5 | L6: 6 | M6: 7 | N6: 8 | O6: 9 | P6: 10 | Q6: 11 | R6: 12 | S6: 13 | T6: 14 | U6: 15 | V6: 16 | W6: 17 | X6: 18 | Y6: 19 | Z6: 20 | AA6: 21 | AB6: Totaal
B7: Code | C7: Naam | D7: Waarde
A8: 1 | B8: 322 | C8: =IF(B8="","",VLOOKUP(B8,'Rennerslijst Giro'!A1:C976,2)) -> MATTHEWS Michael | D8: 1791
A9: 2 | B9: 50 | C9: =IF(B9="","",VLOOKUP(B9,'Rennerslijst Giro'!A2:C977,2)) -> ARU Fabio | D9: 1271
A10: 3 | B10: 146 | C10: =IF(B10="","",VLOOKUP(B10,'Rennerslijst Giro'!A3:C978,2)) -> URAN URAN Rigoberto | D10: 1235
A11: 4 | B11: 473 | C11: =IF(B11="","",VLOOKUP(B11,'Rennerslijst Giro'!A4:C979,2)) -> PORTE Richie | D11: 1123
A12: 5 | B12: 477 | C12: =IF(B12="","",VLOOKUP(B12,'Rennerslijst Giro'!A5:C980,2)) -> VIVIANI Elia | D12: 374
A13: 6 | B13: 507 | C13: =IF(B13="","",VLOOKUP(B13,'Rennerslijst Giro'!A6:C981,2)) -> ROGERS Michael | D13: 518
A14: 7 | B14: 491 | C14: =IF(B14="","",VLOOKUP(B14,'Rennerslijst Giro'!A7:C982,2)) -> HENAO GOMEZ Sebastian | D14: 406
A15: 8 | B15: 327 | C15: =IF(B15="","",VLOOKUP(B15,'Rennerslijst Giro'!A8:C983,2)) -> CHAVES RUBIO Jhoan Esteban | D15: 189
A16: 9 | B16: 262 | C16: =IF(B16="","",VLOOKUP(B16,'Rennerslijst Giro'!A9:C984,2)) -> MONFORT Maxime | D16: 189
A17: 10 | B17: 456 | C17: =IF(B17="","",VLOOKUP(B17,'Rennerslijst Giro'!A10:C985,2)) -> HOFLAND Moreno | D17: 177
A18: 11 | B18: 396 | C18: =IF(B18="","",VLOOKUP(B18,'Rennerslijst Giro'!A11:C986,2)) -> MEZGEC Luka | D18: 162
A19: 12 | B19: 242 | C19: =IF(B19="","",VLOOKUP(B19,'Rennerslijst Giro'!A12:C987,2)) -> MODOLO Sacha | D19: 45
E20: roze | F20: 150 | G20: 0 | H20: 0 | I20: 0 | J20: 0 | K20: 0 | L20: 0 | M20: 0 | N20: 0 | O20: 0 | P20: 0 | Q20: 0 | R20: 0 | S20: 0 | T20: 0 | U20: 0 | V20: 0 | W20: 0 | X20: 0 | Y20: 0 | Z20: 0 | AA20: 0 | AB20: =SUM(G20:AA20) -> 0
C21: Totaal: | D21: 7480 | E21: Berg | F21: 100 | G21: 0 | H21: 0 | I21: 0 | J21: 0 | K21: 0 | L21: 0 | M21: 100 | N21: 100 | O21: 0 | P21: 0 | Q21: 0 | R21: 0 | S21: 0 | T21: 0 | U21: 0 | V21: 0 | W21: 0 | X21: 0 | Y21: 0 | Z21: 0 | AA21: 0 | AB21: 200
C22: Totaal niet boven-------> | D22: 8000 | E22: punten | F22: 100 | G22: 0 | H22: 0 | I22: 0 | J22: 0 | K22: 0 | L22: 0 | M22: 0 | N22: 0 | O22: 100 | P22: 100 | Q22: 100 | R22: 0 | S22: 0 | T22: 0 | U22: 0 | V22: 0 | W22: 0 | X22: 0 | Y22: 0 | Z22: 0 | AA22: 0 | AB22: 300
E23: Jongere | F23: 100 | G23: 0 | H23: 0 | I23: 0 | J23: 0 | K23: 0 | L23: 0 | M23: 0 | N23: 0 | O23: 0 | P23: 200 | Q23: 0 | R23: 200 | S23: 0 | T23: 0 | U23: 0 | V23: 0 | W23: 0 | X23: 0 | Y23: 0 | Z23: 0 | AA23: 0 | AB23: 400
F25: Totaal | G25: =SUM(G8:G23) -> 0 | H25: =SUM(H8:H23) -> 0 | I25: =SUM(I8:I23) -> 0 | J25: 0 | K25: 0 | L25: 0 | M25: 100 | N25: 100 | O25: 100 | P25: 300 | Q25: 100 | R25: 200 | S25: 0 | T25: 0 | U25: 0 | V25: 0 | W25: 0 | X25: 0 | Y25: 0 | Z25: 0 | AA25: 0 | AB25: =SUM(AB8:AB23) -> 900
B27: Code | C27: Reserve | D27: Waarde
A28: 1 | B28: 3 | C28: =IF(B28="","",VLOOKUP(B28,'Rennerslijst Giro'!A1:C976,2)) -> POZZOVIVO Domenico | D28: 1358
A29: 2 | B29: 260 | C29: =IF(B29="","",VLOOKUP(B29,'Rennerslijst Giro'!A2:C977,2)) -> VAN DEN BROECK Jurgen | D29: 451
A30: 3 | B30: 285 | C30: =IF(B30="","",VLOOKUP(B30,'Rennerslijst Giro'!A3:C978,2)) -> INTXAUSTI ELORRIAGA Beñat | D30: 888
C31: Totaal: | D31: 2697
C32: Totaal niet boven -------> | D32: 2500

Sheet WELK
A1: ZWEMbike: GIRO 2015
A3: Naam: | B3: Ronny :
A4: Ploegn: | B4: WELK*
F6: RIT | G6: 1 | H6: 2 | I6: 3 | J6: 4 | K6: 5 | L6: 6 | M6: 7 | N6: 8 | O6: 9 | P6: 10 | Q6: 11 | R6: 12 | S6: 13 | T6: 14 | U6: 15 | V6: 16 | W6: 17 | X6: 18 | Y6: 19 | Z6: 20 | AA6: 21 | AB6: Totaal
B7: Code | C7: Naam | D7: Waarde
A8: 1 | B8: 502 | C8: =IF(B8="","",VLOOKUP(B8,'Rennerslijst Giro'!A1:C976,2)) -> CONTADOR VELASCO Alberto | D8: 1791
A9: 2 | B9: 473 | C9: =IF(B9="","",VLOOKUP(B9,'Rennerslijst Giro'!A2:C977,2)) -> PORTE Richie | D9: 1271
A10: 3 | B10: 50 | C10: =IF(B10="","",VLOOKUP(B10,'Rennerslijst Giro'!A3:C978,2)) -> ARU Fabio | D10: 1235
A11: 4 | B11: 254 | C11: =IF(B11="","",VLOOKUP(B11,'Rennerslijst Giro'!A4:C979,2)) -> GREIPEL André | D11: 1123
A12: 5 | B12: 368 | C12: =IF(B12="","",VLOOKUP(B12,'Rennerslijst Giro'!A5:C980,2)) -> HESJEDAL Ryder | D12: 374
A13: 6 | B13: 260 | C13: =IF(B13="","",VLOOKUP(B13,'Rennerslijst Giro'!A6:C981,2)) -> VAN DEN BROECK Jurgen | D13: 518
A14: 7 | B14: 451 | C14: =IF(B14="","",VLOOKUP(B14,'Rennerslijst Giro'!A7:C982,2)) -> KRUIJSWIJK Steven | D14: 406
A15: 8 | B15: 59 | C15: =IF(B15="","",VLOOKUP(B15,'Rennerslijst Giro'!A8:C983,2)) -> LANDA MEANA Mikel | D15: 189
A16: 9 | B16: 262 | C16: =IF(B16="","",VLOOKUP(B16,'Rennerslijst Giro'!A9:C984,2)) -> MONFORT Maxime | D16: 189
A17: 10 | B17: 237 | C17: =IF(B17="","",VLOOKUP(B17,'Rennerslijst Giro'!A10:C985,2)) -> FERRARI Roberto | D17: 177
A18: 11 | B18: 355 | C18: =IF(B18="","",VLOOKUP(B18,'Rennerslijst Giro'!A11:C986,2)) -> PETACCHI Alessandro | D18: 162
A19: 12 | B19: 27 | C19: =IF(B19="","",VLOOKUP(B19,'Rennerslijst Giro'!A12:C987,2)) -> BETANCUR GOMEZ Carlos Alberto | D19: 45
E20: roze | F20: 150 | G20: 0 | H20: 0 | I20: 0 | J20: 0 | K20: 0 | L20: 0 | M20: 0 | N20: 150 | O20: 150 | P20: 150 | Q20: 150 | R20: 150 | S20: 0 | T20: 0 | U20: 0 | V20: 0 | W20: 0 | X20: 0 | Y20: 0 | Z20: 0 | AA20: 0 | AB20: =SUM(G20:AA20) -> 750
C21: Totaal: | D21: 7480 | E21: Berg | F21: 100 | G21: 0 | H21: 0 | I21: 0 | J21: 0 | K21: 0 | L21: 0 | M21: 100 | N21: 100 | O21: 0 | P21: 0 | Q21: 0 | R21: 0 | S21: 0 | T21: 0 | U21: 0 | V21: 0 | W21: 0 | X21: 0 | Y21: 0 | Z21: 0 | AA21: 0 | AB21: 200
C22: Totaal niet boven-------> | D22: 8000 | E22: punten | F22: 100 | G22: 0 | H22: 0 | I22: 0 | J22: 0 | K22: 100 | L22: 0 | M22: 0 | N22: 0 | O22: 0 | P22: 0 | Q22: 0 | R22: 0 | S22: 0 | T22: 0 | U22: 0 | V22: 0 | W22: 0 | X22: 0 | Y22: 0 | Z22: 0 | AA22: 0 | AB22: 100
E23: Jongere | F23: 100 | G23: 0 | H23: 0 | I23: 0 | J23: 0 | K23: 0 | L23: 0 | M23: 0 | N23: 0 | O23: 0 | P23: 0 | Q23: 0 | R23: 200 | S23: 0 | T23: 0 | U23: 0 | V23: 0 | W23: 0 | X23: 0 | Y23: 0 | Z23: 0 | AA23: 0 | AB23: 200
F25: Totaal | G25: =SUM(G8:G23) -> 0 | H25: =SUM(H8:H23) -> 0 | I25: =SUM(I8:I23) -> 0 | J25: 0 | K25: 100 | L25: 0 | M25: 100 | N25: 250 | O25: 150 | P25: 150 | Q25: 150 | R25: 350 | S25: 0 | T25: 0 | U25: 0 | V25: 0 | W25: 0 | X25: 0 | Y25: 0 | Z25: 0 | AA25: 0 | AB25: =SUM(AB8:AB23) -> 1250
B27: Code | C27: Reserve | D27: Waarde
A28: 1 | B28: 146 | C28: =IF(B28="","",VLOOKUP(B28,'Rennerslijst Giro'!A1:C976,2)) -> URAN URAN Rigoberto | D28: 1358
A29: 2 | B29: 3 | C29: =IF(B29="","",VLOOKUP(B29,'Rennerslijst Giro'!A2:C977,2)) -> POZZOVIVO Domenico | D29: 451
A30: 3 | B30: 309 | C30: =IF(B30="","",VLOOKUP(B30,'Rennerslijst Giro'!A3:C978,2)) -> CUNEGO Damiano | D30: 888
C31: Totaal: | D31: 2697
C32: Totaal niet boven -------> | D32: 2500

Sheet De Bakkers
A1: ZWEMbike: GIRO 2015
A3: Naam: | B3: Guy :
A4: Ploegn: | B4: De Bakkers
F6: RIT | G6: 1 | H6: 2 | I6: 3 | J6: 4 | K6: 5 | L6: 6 | M6: 7 | N6: 8 | O6: 9 | P6: 10 | Q6: 11 | R6: 12 | S6: 13 | T6: 14 | U6: 15 | V6: 16 | W6: 17 | X6: 18 | Y6: 19 | Z6: 20 | AA6: 21 | AB6: Totaal
B7: Code | C7: Naam | D7: Waarde
A8: 1 | B8: 502 | C8: =IF(B8="","",VLOOKUP(B8,'Rennerslijst Giro'!A1:C976,2)) -> CONTADOR VELASCO Alberto | D8: 1791
A9: 2 | B9: 95 | C9: =IF(B9="","",VLOOKUP(B9,'Rennerslijst Giro'!A2:C977,2)) -> GILBERT Philippe | D9: 1271
A10: 3 | B10: 322 | C10: =IF(B10="","",VLOOKUP(B10,'Rennerslijst Giro'!A3:C978,2)) -> MATTHEWS Michael | D10: 1235
A11: 4 | B11: 254 | C11: =IF(B11="","",VLOOKUP(B11,'Rennerslijst Giro'!A4:C979,2)) -> GREIPEL André | D11: 1123
A12: 5 | B12: 534 | C12: =IF(B12="","",VLOOKUP(B12,'Rennerslijst Giro'!A5:C980,2)) -> FELLINE Fabio | D12: 374
A13: 6 | B13: 327 | C13: =IF(B13="","",VLOOKUP(B13,'Rennerslijst Giro'!A6:C981,2)) -> CHAVES RUBIO Jhoan Esteban | D13: 518
A14: 7 | B14: 262 | C14: =IF(B14="","",VLOOKUP(B14,'Rennerslijst Giro'!A7:C982,2)) -> MONFORT Maxime | D14: 406
A15: 8 | B15: 333 | C15: =IF(B15="","",VLOOKUP(B15,'Rennerslijst Giro'!A8:C983,2)) -> WEENING Pieter | D15: 189
A16: 9 | B16: 264 | C16: =IF(B16="","",VLOOKUP(B16,'Rennerslijst Giro'!A9:C984,2)) -> BAK Lars Ytting | D16: 189
A17: 10 | B17: 106 | C17: =IF(B17="","",VLOOKUP(B17,'Rennerslijst Giro'!A10:C985,2)) -> KÜNG Stefan | D17: 177
A18: 11 | B18: 335 | C18: =IF(B18="","",VLOOKUP(B18,'Rennerslijst Giro'!A11:C986,2)) -> DURBRIDGE Luke | D18: 162
A19: 12 | B19: 242 | C19: =IF(B19="","",VLOOKUP(B19,'Rennerslijst Giro'!A12:C987,2)) -> MODOLO Sacha | D19: 45
E20: roze | F20: 150 | G20: 0 | H20: 0 | I20: 0 | J20: 0 | K20: 0 | L20: 0 | M20: 0 | N20: 150 | O20: 150 | P20: 150 | Q20: 150 | R20: 150 | S20: 0 | T20: 0 | U20: 0 | V20: 0 | W20: 0 | X20: 0 | Y20: 0 | Z20: 0 | AA20: 0 | AB20: =SUM(G20:AA20) -> 750
C21: Totaal: | D21: 7480 | E21: Berg | F21: 100 | G21: 0 | H21: 0 | I21: 0 | J21: 0 | K21: 0 | L21: 0 | M21: 0 | N21: 0 | O21: 0 | P21: 0 | Q21: 0 | R21: 0 | S21: 0 | T21: 0 | U21: 0 | V21: 0 | W21: 0 | X21: 0 | Y21: 0 | Z21: 0 | AA21: 0 | AB21: 0
C22: Totaal niet boven-------> | D22: 8000 | E22: punten | F22: 100 | G22: 0 | H22: 0 | I22: 0 | J22: 0 | K22: 0 | L22: 0 | M22: 0 | N22: 0 | O22: 100 | P22: 100 | Q22: 100 | R22: 0 | S22: 0 | T22: 0 | U22: 0 | V22: 0 | W22: 0 | X22: 0 | Y22: 0 | Z22: 0 | AA22: 0 | AB22: 300
E23: Jongere | F23: 100 | G23: 0 | H23: 0 | I23: 0 | J23: 0 | K23: 0 | L23: 0 | M23: 0 | N23: 0 | O23: 0 | P23: 100 | Q23: 0 | R23: 0 | S23: 0 | T23: 0 | U23: 0 | V23: 0 | W23: 0 | X23: 0 | Y23: 0 | Z23: 0 | AA23: 0 | AB23: 100
F25: Totaal | G25: =SUM(G8:G23) -> 0 | H25: =SUM(H8:H23) -> 0 | I25: =SUM(I8:I23) -> 0 | J25: 0 | K25: 0 | L25: 0 | M25: 0 | N25: 150 | O25: 250 | P25: 350 | Q25: 250 | R25: 150 | S25: 0 | T25: 0 | U25: 0 | V25: 0 | W25: 0 | X25: 0 | Y25: 0 | Z25: 0 | AA25: 0 | AB25: =SUM(AB8:AB23) -> 1150
B27: Code | C27: Reserve | D27: Waarde
A28: 1 | B28: 146 | C28: =IF(B28="","",VLOOKUP(B28,'Rennerslijst Giro'!A1:C976,2)) -> URAN URAN Rigoberto | D28: 1358
A29: 2 | B29: 3 | C29: =IF(B29="","",VLOOKUP(B29,'Rennerslijst Giro'!A2:C977,2)) -> POZZOVIVO Domenico | D29: 451
A30: 3 | B30: 83 | C30: =IF(B30="","",VLOOKUP(B30,'Rennerslijst Giro'!A3:C978,2)) -> PIRAZZI Stefano | D30: 888
C31: Totaal: | D31: 2697
C32: Totaal niet boven -------> | D32: 2500

Sheet De VACCAreurs
A1: ZWEMbike: GIRO 2015
A3: Naam: | B3: Sven :
A4: Ploegn: | B4: De VACCAreurs****
F6: RIT | G6: 1 | H6: 2 | I6: 3 | J6: 4 | K6: 5 | L6: 6 | M6: 7 | N6: 8 | O6: 9 | P6: 10 | Q6: 11 | R6: 12 | S6: 13 | T6: 14 | U6: 15 | V6: 16 | W6: 17 | X6: 18 | Y6: 19 | Z6: 20 | AA6: 21 | AB6: Totaal
B7: Code | C7: Naam | D7: Waarde
A8: 1 | B8: 502 | C8: =IF(B8="","",VLOOKUP(B8,'Rennerslijst Giro'!A1:C976,2)) -> CONTADOR VELASCO Alberto | D8: 1791
A9: 2 | B9: 473 | C9: =IF(B9="","",VLOOKUP(B9,'Rennerslijst Giro'!A2:C977,2)) -> PORTE Richie | D9: 1271
A10: 3 | B10: 146 | C10: =IF(B10="","",VLOOKUP(B10,'Rennerslijst Giro'!A3:C978,2)) -> URAN URAN Rigoberto | D10: 1235
A11: 4 | B11: 50 | C11: =IF(B11="","",VLOOKUP(B11,'Rennerslijst Giro'!A4:C979,2)) -> ARU Fabio | D11: 1123
A12: 5 | B12: 254 | C12: =IF(B12="","",VLOOKUP(B12,'Rennerslijst Giro'!A5:C980,2)) -> GREIPEL André | D12: 374
A13: 6 | B13: 260 | C13: =IF(B13="","",VLOOKUP(B13,'Rennerslijst Giro'!A6:C981,2)) -> VAN DEN BROECK Jurgen | D13: 518
A14: 7 | B14: 429 | C14: =IF(B14="","",VLOOKUP(B14,'Rennerslijst Giro'!A7:C982,2)) -> TROFIMOV Yury | D14: 406
A15: 8 | B15: 332 | C15: =IF(B15="","",VLOOKUP(B15,'Rennerslijst Giro'!A8:C983,2)) -> YATES Simon | D15: 189
A16: 9 | B16: 110 | C16: =IF(B16="","",VLOOKUP(B16,'Rennerslijst Giro'!A9:C984,2)) -> ATAPUMA HURTADO Jhon Darwin | D16: 189
A17: 10 | B17: 271 | C17: =IF(B17="","",VLOOKUP(B17,'Rennerslijst Giro'!A10:C985,2)) -> VERVAEKE Louis | D17: 177
A18: 11 | B18: 312 | C18: =IF(B18="","",VLOOKUP(B18,'Rennerslijst Giro'!A11:C986,2)) -> COLLI Daniele | D18: 162
A19: 12 | B19: 358 | C19: =IF(B19="","",VLOOKUP(B19,'Rennerslijst Giro'!A12:C987,2)) -> FAVILLI Elia | D19: 45
E20: roze | F20: 150 | G20: 0 | H20: 0 | I20: 0 | J20: 0 | K20: 0 | L20: 0 | M20: 0 | N20: 150 | O20: 150 | P20: 150 | Q20: 150 | R20: 150 | S20: 0 | T20: 0 | U20: 0 | V20: 0 | W20: 0 | X20: 0 | Y20: 0 | Z20: 0 | AA20: 0 | AB20: =SUM(G20:AA20) -> 750
C21: Totaal: | D21: 7480 | E21: Berg | F21: 100 | G21: 0 | H21: 0 | I21: 0 | J21: 0 | K21: 0 | L21: 0 | M21: 100 | N21: 100 | O21: 0 | P21: 0 | Q21: 0 | R21: 0 | S21: 0 | T21: 0 | U21: 0 | V21: 0 | W21: 0 | X21: 0 | Y21: 0 | Z21: 0 | AA21: 0 | AB21: 200
C22: Totaal niet boven-------> | D22: 8000 | E22: punten | F22: 100 | G22: 0 | H22: 0 | I22: 0 | J22: 0 | K22: 0 | L22: 0 | M22: 0 | N22: 0 | O22: 0 | P22: 0 | Q22: 0 | R22: 0 | S22: 0 | T22: 0 | U22: 0 | V22: 0 | W22: 0 | X22: 0 | Y22: 0 | Z22: 0 | AA22: 0 | AB22: 0
E23: Jongere | F23: 100 | G23: 0 | H23: 0 | I23: 0 | J23: 0 | K23: 0 | L23: 0 | M23: 0 | N23: 0 | O23: 0 | P23: 0 | Q23: 0 | R23: 300 | S23: 0 | T23: 0 | U23: 0 | V23: 0 | W23: 0 | X23: 0 | Y23: 0 | Z23: 0 | AA23: 0 | AB23: 300
F25: Totaal | G25: =SUM(G8:G23) -> 0 | H25: =SUM(H8:H23) -> 0 | I25: =SUM(I8:I23) -> 0 | J25: 0 | K25: 0 | L25: 0 | M25: 100 | N25: 250 | O25: 150 | P25: 150 | Q25: 150 | R25: 450 | S25: 0 | T25: 0 | U25: 0 | V25: 0 | W25: 0 | X25: 0 | Y25: 0 | Z25: 0 | AA25: 0 | AB25: =SUM(AB8:AB23) -> 1250
B27: Code | C27: Reserve | D27: Waarde
A28: 1 | B28: 3 | C28: =IF(B28="","",VLOOKUP(B28,'Rennerslijst Giro'!A1:C976,2)) -> POZZOVIVO Domenico | D28: 1358
A29: 2 | B29: 124 | C29: =IF(B29="","",VLOOKUP(B29,'Rennerslijst Giro'!A2:C977,2)) -> PATERSKI Maciej | D29: 451
A30: 3 | B30: 478 | C30: =IF(B30="","",VLOOKUP(B30,'Rennerslijst Giro'!A3:C978,2)) -> KÖNIG Leopold | D30: 888
C31: Totaal: | D31: 2697
C32: Totaal niet boven -------> | D32: 2500

Sheet Totaalstand
B1: 1 | C1: 2 | D1: 3 | E1: 4 | F1: 5 | G1: 6 | H1: 7 | I1: 8 | J1: 9 | K1: 10 | L1: 11 | M1: 12 | N1: 13 | O1: 14 | P1: 15
A2: San Lorenzo al Mare – San Remo | B2: =SUM('De VACCAreurs'!G25)&(Pronostiekers!A3) -> 0: Sven**** | C2: =SUM('Il Krieperi Disoccupato'!G25)&(Pronostiekers!A4) -> 0: Robin*** | D2: =SUM(U!G25)&(Pronostiekers!A1) -> 0: Ollie**** | E2: =SUM(Jeff!G25)&(Pronostiekers!A21) -> 0: Arno | F2: =SUM(PADT!G25)&(Pronostiekers!A17) -> 0: Filip | G2: =SUM(WELK!G25)&(Pronostiekers!A11) -> 0: Ronny* | H2: =SUM('De Roze 12'!G25)&(Pronostiekers!A9) -> 0: Janes* | I2: =SUM('FC RAFTEN'!G25)&(Pronostiekers!A5) -> 0: Raf** | J2: =SUM('Le Capre Di Montagna'!G25)&(Pronostiekers!A2) -> 0: Joik**** | K2: =SUM('De Freddies'!G25)&(Pronostiekers!A13) -> 0: Fred | L2: =SUM('Squadra Parcheggio'!G25)&(Pronostiekers!A22) -> 0: Bart | M2: =SUM(Paperboys!G25)&(Pronostiekers!A10) -> 0: Tom* | N2: =SUM('De Roze Janetten'!G25)&(Pronostiekers!A12) -> 0: Tim | O2: =SUM('The Dolphen'!G25)&(Pronostiekers!A14) -> 0: Pieter | P2: =SUM('De Bakkers'!G25)&(Pronostiekers!A20) -> 0: Guy
A3: Albenga – Genua | B3: =SUM('De VACCAreurs'!G25:H25)&(Pronostiekers!A3) -> 0: Sven**** | C3: =SUM('Il Krieperi Disoccupato'!G25:H25)&(Pronostiekers!A4) -> 0: Robin*** | D3: =SUM(U!G25:H25)&(Pronostiekers!A1) -> 0: Ollie**** | E3: =SUM(Jeff!G25:H25)&(Pronostiekers!A21) -> 0: Arno | F3: =SUM(PADT!G25:H25)&(Pronostiekers!A17) -> 0: Filip | G3: =SUM(WELK!G25:H25)&(Pronostiekers!A11) -> 0: Ronny* | H3: =SUM('De Roze 12'!G25:H25)&(Pronostiekers!A9) -> 0: Janes* | I3: =SUM('FC RAFTEN'!G25:H25)&(Pronostiekers!A5) -> 0: Raf** | J3: =SUM('Le Capre Di Montagna'!G25:H25)&(Pronostiekers!A2) -> 0: Joik**** | K3: =SUM('De Freddies'!G25:H25)&(Pronostiekers!A13) -> 0: Fred | L3: =SUM('Squadra Parcheggio'!G25:H25)&(Pronostiekers!A22) -> 0: Bart | M3: =SUM(Paperboys!G25:H25)&(Pronostiekers!A10) -> 0: Tom* | N3: =SUM('De Roze Janetten'!G25:H25)&(Pronostiekers!A12) -> 0: Tim | O3: =SUM('The Dolphen'!G25:H25)&(Pronostiekers!A14) -> 0: Pieter | P3: =SUM('De Bakkers'!G25:H25)&(Pronostiekers!A20) -> 0: Guy
A4: Rapallo – Sestri Levante | B4: =SUM('De VACCAreurs'!G25:I25)&(Pronostiekers!A3) -> 0: Sven**** | C4: =SUM('Il Krieperi Disoccupato'!G25:I25)&(Pronostiekers!A4) -> 0: Robin*** | D4: =SUM(U!G25:I25)&(Pronostiekers!A1) -> 100: Ollie**** | E4: =SUM(Jeff!G25:I25)&(Pronostiekers!A21) -> 0: Arno | F4: =SUM(PADT!G25:I25)&(Pronostiekers!A17) -> 0: Filip | G4: =SUM(WELK!G25:I25)&(Pronostiekers!A11) -> 0: Ronny* | H4: =SUM('De Roze 12'!G25:I25)&(Pronostiekers!A9) -> 100: Janes* | I4: =SUM('FC RAFTEN'!G25:I25)&(Pronostiekers!A5) -> 0: Raf** | J4: =SUM('Le Capre Di Montagna'!G25:I25)&(Pronostiekers!A2) -> 100: Joik**** | K4: =SUM('De Freddies'!G25:I25)&(Pronostiekers!A13) -> 0: Fred | L4: =SUM('Squadra Parcheggio'!G25:I25)&(Pronostiekers!A22) -> 0: Bart | M4: =SUM(Paperboys!G25:I25)&(Pronostiekers!A10) -> 0: Tom* | N4: =SUM('De Roze Janetten'!G25:I25)&(Pronostiekers!A12) -> 100: Tim | O4: =SUM('The Dolphen'!G25:I25)&(Pronostiekers!A14) -> 0: Pieter | P4: =SUM('De Bakkers'!G25:I25)&(Pronostiekers!A20) -> 0: Guy
A5: Chiavari – La Spezia | B5: =SUM('De VACCAreurs'!G25:J25)&(Pronostiekers!A3) -> 0: Sven**** | C5: =SUM('Il Krieperi Disoccupato'!G25:J25)&(Pronostiekers!A4) -> 0: Robin*** | D5: =SUM(U!G25:J25)&(Pronostiekers!A1) -> 200: Ollie**** | E5: =SUM(Jeff!G25:J25)&(Pronostiekers!A21) -> 0: Arno | F5: =SUM(PADT!G25:J25)&(Pronostiekers!A17) -> 0: Filip | G5: =SUM(WELK!G25:J25)&(Pronostiekers!A11) -> 0: Ronny* | H5: =SUM('De Roze 12'!G25:J25)&(Pronostiekers!A9) -> 200: Janes* | I5: =SUM('FC RAFTEN'!G25:J25)&(Pronostiekers!A5) -> 0: Raf** | J5: =SUM('Le Capre Di Montagna'!G25:J25)&(Pronostiekers!A2) -> 200: Joik**** | K5: =SUM('De Freddies'!G25:J25)&(Pronostiekers!A13) -> 0: Fred | L5: =SUM('Squadra Parcheggio'!G25:J25)&(Pronostiekers!A22) -> 0: Bart | M5: =SUM(Paperboys!G25:J25)&(Pronostiekers!A10) -> 0: Tom* | N5: =SUM('De Roze Janetten'!G25:J25)&(Pronostiekers!A12) -> 200: Tim | O5: =SUM('The Dolphen'!G25:J25)&(Pronostiekers!A14) -> 0: Pieter | P5: =SUM('De Bakkers'!G25:J25)&(Pronostiekers!A20) -> 0: Guy
A6: La Spezia – Abetone | B6: =SUM('De VACCAreurs'!G25:K25)&(Pronostiekers!A3) -> 0: Sven**** | C6: =SUM('Il Krieperi Disoccupato'!G25:K25)&(Pronostiekers!A4) -> 100: Robin*** | D6: =SUM(U!G25:K25)&(Pronostiekers!A1) -> 600: Ollie**** | E6: =SUM(Jeff!G25:K25)&(Pronostiekers!A21) -> 0: Arno | F6: =SUM(PADT!G25:K25)&(Pronostiekers!A17) -> 0: Filip | G6: =SUM(WELK!G25:K25)&(Pronostiekers!A11) -> 100: Ronny* | H6: =SUM('De Roze 12'!G25:K25)&(Pronostiekers!A9) -> 300: Janes* | I6: =SUM('FC RAFTEN'!G25:K25)&(Pronostiekers!A5) -> 0: Raf** | J6: =SUM('Le Capre Di Montagna'!G25:K25)&(Pronostiekers!A2) -> 300: Joik**** | K6: =SUM('De Freddies'!G25:K25)&(Pronostiekers!A13) -> 100: Fred | L6: =SUM('Squadra Parcheggio'!G25:K25)&(Pronostiekers!A22) -> 0: Bart | M6: =SUM(Paperboys!G25:K25)&(Pronostiekers!A10) -> 0: Tom* | N6: =SUM('De Roze Janetten'!G25:K25)&(Pronostiekers!A12) -> 300: Tim | O6: =SUM('The Dolphen'!G25:K25)&(Pronostiekers!A14) -> 0: Pieter | P6: =SUM('De Bakkers'!G25:K25)&(Pronostiekers!A20) -> 0: Guy
A7: Montecatini Terme – Castiglione Della Pescaia | B7: =SUM('De VACCAreurs'!G25:L25)&(Pronostiekers!A3) -> 0: Sven**** | C7: =SUM('Il Krieperi Disoccupato'!G25:L25)&(Pronostiekers!A4) -> 100: Robin*** | D7: =SUM(U!G25:L25)&(Pronostiekers!A1) -> 600: Ollie**** | E7: =SUM(Jeff!G25:L25)&(Pronostiekers!A21) -> 0: Arno | F7: =SUM(PADT!G25:L25)&(Pronostiekers!A17) -> 0: Filip | G7: =SUM(WELK!G25:L25)&(Pronostiekers!A11) -> 100: Ronny* | H7: =SUM('De Roze 12'!G25:L25)&(Pronostiekers!A9) -> 300: Janes* | I7: =SUM('FC RAFTEN'!G25:L25)&(Pronostiekers!A5) -> 0: Raf** | J7: =SUM('Le Capre Di Montagna'!G25:L25)&(Pronostiekers!A2) -> 300: Joik**** | K7: =SUM('De Freddies'!G25:L25)&(Pronostiekers!A13) -> 100: Fred | L7: =SUM('Squadra Parcheggio'!G25:L25)&(Pronostiekers!A22) -> 0: Bart | M7: =SUM(Paperboys!G25:L25)&(Pronostiekers!A10) -> 0: Tom* | N7: =SUM('De Roze Janetten'!G25:L25)&(Pronostiekers!A12) -> 300: Tim | O7: =SUM('The Dolphen'!G25:L25)&(Pronostiekers!A14) -> 0: Pieter | P7: =SUM('De Bakkers'!G25:L25)&(Pronostiekers!A20) -> 0: Guy
A8: Grosseto – Fiuggi | B8: =SUM('De VACCAreurs'!G25:M25)&(Pronostiekers!A3) -> 100: Sven**** | C8: =SUM('Il Krieperi Disoccupato'!G25:M25)&(Pronostiekers!A4) -> 200: Robin*** | D8: =SUM(U!G25:M25)&(Pronostiekers!A1) -> 600: Ollie**** | E8: =SUM(Jeff!G25:M25)&(Pronostiekers!A21) -> 0: Arno | F8: =SUM(PADT!G25:M25)&(Pronostiekers!A17) -> 100: Filip | G8: =SUM(WELK!G25:M25)&(Pronostiekers!A11) -> 200: Ronny* | H8: =SUM('De Roze 12'!G25:M25)&(Pronostiekers!A9) -> 400: Janes* | I8: =SUM('FC RAFTEN'!G25:M25)&(Pronostiekers!A5) -> 100: Raf** | J8: =SUM('Le Capre Di Montagna'!G25:M25)&(Pronostiekers!A2) -> 300: Joik**** | K8: =SUM('De Freddies'!G25:M25)&(Pronostiekers!A13) -> 200: Fred | L8: =SUM('Squadra Parcheggio'!G25:M25)&(Pronostiekers!A22) -> 100: Bart | M8: =SUM(Paperboys!G25:M25)&(Pronostiekers!A10) -> 100: Tom* | N8: =SUM('De Roze Janetten'!G25:M25)&(Pronostiekers!A12) -> 300: Tim | O8: =SUM('The Dolphen'!G25:M25)&(Pronostiekers!A14) -> 100: Pieter | P8: =SUM('De Bakkers'!G25:M25)&(Pronostiekers!A20) -> 0: Guy
A9: Fiuggi – Campitello Matese | B9: =SUM('De VACCAreurs'!G25:N25)&(Pronostiekers!A3) -> 350: Sven**** | C9: =SUM('Il Krieperi Disoccupato'!G25:N25)&(Pronostiekers!A4) -> 450: Robin*** | D9: =SUM(U!G25:N25)&(Pronostiekers!A1) -> 750: Ollie**** | E9: =SUM(Jeff!G25:N25)&(Pronostiekers!A21) -> 150: Arno | F9: =SUM(PADT!G25:N25)&(Pronostiekers!A17) -> 350: Filip | G9: =SUM(WELK!G25:N25)&(Pronostiekers!A11) -> 450: Ronny* | H9: =SUM('De Roze 12'!G25:N25)&(Pronostiekers!A9) -> 500: Janes* | I9: =SUM('FC RAFTEN'!G25:N25)&(Pronostiekers!A5) -> 350: Raf** | J9: =SUM('Le Capre Di Montagna'!G25:N25)&(Pronostiekers!A2) -> 450: Joik**** | K9: =SUM('De Freddies'!G25:N25)&(Pronostiekers!A13) -> 450: Fred | L9: =SUM('Squadra Parcheggio'!G25:N25)&(Pronostiekers!A22) -> 200: Bart | M9: =SUM(Paperboys!G25:N25)&(Pronostiekers!A10) -> 200: Tom* | N9: =SUM('De Roze Janetten'!G25:N25)&(Pronostiekers!A12) -> 450: Tim | O9: =SUM('The Dolphen'!G25:N25)&(Pronostiekers!A14) -> 350: Pieter | P9: =SUM('De Bakkers'!G25:N25)&(Pronostiekers!A20) -> 150: Guy
A10: Benevento – San Giorgio Del Sannio | B10: =SUM('De VACCAreurs'!G25:O25)&(Pronostiekers!A3) -> 500: Sven**** | C10: =SUM('Il Krieperi Disoccupato'!G25:O25)&(Pronostiekers!A4) -> 600: Robin*** | D10: =SUM(U!G25:O25)&(Pronostiekers!A1) -> 1000: Ollie**** | E10: =SUM(Jeff!G25:O25)&(Pronostiekers!A21) -> 300: Arno | F10: =SUM(PADT!G25:O25)&(Pronostiekers!A17) -> 600: Filip | G10: =SUM(WELK!G25:O25)&(Pronostiekers!A11) -> 600: Ronny* | H10: =SUM('De Roze 12'!G25:O25)&(Pronostiekers!A9) -> 500: Janes* | I10: =SUM('FC RAFTEN'!G25:O25)&(Pronostiekers!A5) -> 600: Raf** | J10: =SUM('Le Capre Di Montagna'!G25:O25)&(Pronostiekers!A2) -> 700: Joik**** | K10: =SUM('De Freddies'!G25:O25)&(Pronostiekers!A13) -> 700: Fred | L10: =SUM('Squadra Parcheggio'!G25:O25)&(Pronostiekers!A22) -> 300: Bart | M10: =SUM(Paperboys!G25:O25)&(Pronostiekers!A10) -> 300: Tom* | N10: =SUM('De Roze Janetten'!G25:O25)&(Pronostiekers!A12) -> 600: Tim | O10: =SUM('The Dolphen'!G25:O25)&(Pronostiekers!A14) -> 500: Pieter | P10: =SUM('De Bakkers'!G25:O25)&(Pronostiekers!A20) -> 400: Guy
A11: Civitanova Marche – Forlì | B11: =SUM('De VACCAreurs'!G25:P25)&(Pronostiekers!A3) -> 650: Sven**** | C11: =SUM('Il Krieperi Disoccupato'!G25:P25)&(Pronostiekers!A4) -> 850: Robin*** | D11: =SUM(U!G25:P25)&(Pronostiekers!A1) -> 1350: Ollie**** | E11: =SUM(Jeff!G25:P25)&(Pronostiekers!A21) -> 550: Arno | F11: =SUM(PADT!G25:P25)&(Pronostiekers!A17) -> 950: Filip | G11: =SUM(WELK!G25:P25)&(Pronostiekers!A11) -> 750: Ronny* | H11: =SUM('De Roze 12'!G25:P25)&(Pronostiekers!A9) -> 700: Janes* | I11: =SUM('FC RAFTEN'!G25:P25)&(Pronostiekers!A5) -> 950: Raf** | J11: =SUM('Le Capre Di Montagna'!G25:P25)&(Pronostiekers!A2) -> 1050: Joik**** | K11: =SUM('De Freddies'!G25:P25)&(Pronostiekers!A13) -> 1050: Fred | L11: =SUM('Squadra Parcheggio'!G25:P25)&(Pronostiekers!A22) -> 600: Bart | M11: =SUM(Paperboys!G25:P25)&(Pronostiekers!A10) -> 600: Tom* | N11: =SUM('De Roze Janetten'!G25:P25)&(Pronostiekers!A12) -> 1050: Tim | O11: =SUM('The Dolphen'!G25:P25)&(Pronostiekers!A14) -> 750: Pieter | P11: =SUM('De Bakkers'!G25:P25)&(Pronostiekers!A20) -> 750: Guy
A12: Forlì – Imola (racecircuit Ferrari) | B12: =SUM('De VACCAreurs'!G25:Q25)&(Pronostiekers!A3) -> 800: Sven**** | C12: =SUM('Il Krieperi Disoccupato'!G25:Q25)&(Pronostiekers!A4) -> 1000: Robin*** | D12: =SUM(U!G25:Q25)&(Pronostiekers!A1) -> 1600: Ollie**** | E12: =SUM(Jeff!G25:Q25)&(Pronostiekers!A21) -> 700: Arno | F12: =SUM(PADT!G25:Q25)&(Pronostiekers!A17) -> 1200: Filip | G12: =SUM(WELK!G25:Q25)&(Pronostiekers!A11) -> 900: Ronny* | H12: =SUM('De Roze 12'!G25:Q25)&(Pronostiekers!A9) -> 700: Janes* | I12: =SUM('FC RAFTEN'!G25:Q25)&(Pronostiekers!A5) -> 1200: Raf** | J12: =SUM('Le Capre Di Montagna'!G25:Q25)&(Pronostiekers!A2) -> 1300: Joik**** | K12: =SUM('De Freddies'!G25:Q25)&(Pronostiekers!A13) -> 1300: Fred | L12: =SUM('Squadra Parcheggio'!G25:Q25)&(Pronostiekers!A22) -> 700: Bart | M12: =SUM(Paperboys!G25:Q25)&(Pronostiekers!A10) -> 700: Tom* | N12: =SUM('De Roze Janetten'!G25:Q25)&(Pronostiekers!A12) -> 1200: Tim | O12: =SUM('The Dolphen'!G25:Q25)&(Pronostiekers!A14) -> 900: Pieter | P12: =SUM('De Bakkers'!G25:Q25)&(Pronostiekers!A20) -> 1000: Guy
A13: Imola – Vicenza (Monte Berico) | B13: =SUM('De VACCAreurs'!G25:R25)&(Pronostiekers!A3) -> 1250: Sven**** | C13: =SUM('Il Krieperi Disoccupato'!G25:R25)&(Pronostiekers!A4) -> 1550: Robin*** | D13: =SUM(U!G25:R25)&(Pronostiekers!A1) -> 2150: Ollie**** | E13: =SUM(Jeff!G25:R25)&(Pronostiekers!A21) -> 1150: Arno | F13: =SUM(PADT!G25:R25)&(Pronostiekers!A17) -> 1550: Filip | G13: =SUM(WELK!G25:R25)&(Pronostiekers!A11) -> 1250: Ronny* | H13: =SUM('De Roze 12'!G25:R25)&(Pronostiekers!A9) -> 1000: Janes* | I13: =SUM('FC RAFTEN'!G25:R25)&(Pronostiekers!A5) -> 1550: Raf** | J13: =SUM('Le Capre Di Montagna'!G25:R25)&(Pronostiekers!A2) -> 1950: Joik**** | K13: =SUM('De Freddies'!G25:R25)&(Pronostiekers!A13) -> 1550: Fred | L13: =SUM('Squadra Parcheggio'!G25:R25)&(Pronostiekers!A22) -> 900: Bart | M13: =SUM(Paperboys!G25:R25)&(Pronostiekers!A10) -> 900: Tom* | N13: =SUM('De Roze Janetten'!G25:R25)&(Pronostiekers!A12) -> 1750: Tim | O13: =SUM('The Dolphen'!G25:R25)&(Pronostiekers!A14) -> 1250: Pieter | P13: =SUM('De Bakkers'!G25:R25)&(Pronostiekers!A20) -> 1150: Guy
A14: Montecchio Maggiore – Jesolo | B14: =SUM('De VACCAreurs'!G25:S25)&(Pronostiekers!A3) -> 1250: Sven**** | C14: =SUM('Il Krieperi Disoccupato'!G25:S25)&(Pronostiekers!A4) -> 1550: Robin*** | D14: =SUM(U!G25:S25)&(Pronostiekers!A1) -> 2150: Ollie**** | E14: =SUM(Jeff!G25:S25)&(Pronostiekers!A21) -> 1150: Arno | F14: =SUM(PADT!G25:S25)&(Pronostiekers!A17) -> 1550: Filip | G14: =SUM(WELK!G25:S25)&(Pronostiekers!A11) -> 1250: Ronny* | H14: =SUM('De Roze 12'!G25:S25)&(Pronostiekers!A9) -> 1000: Janes* | I14: =SUM('FC RAFTEN'!G25:S25)&(Pronostiekers!A5) -> 1550: Raf** | J14: =SUM('Le Capre Di Montagna'!G25:S25)&(Pronostiekers!A2) -> 1950: Joik**** | K14: =SUM('De Freddies'!G25:S25)&(Pronostiekers!A13) -> 1550: Fred | L14: =SUM('Squadra Parcheggio'!G25:S25)&(Pronostiekers!A22) -> 900: Bart | M14: =SUM(Paperboys!G25:S25)&(Pronostiekers!A10) -> 900: Tom* | N14: =SUM('De Roze Janetten'!G25:S25)&(Pronostiekers!A12) -> 1750: Tim | O14: =SUM('The Dolphen'!G25:S25)&(Pronostiekers!A14) -> 1250: Pieter | P14: =SUM('De Bakkers'!G25:S25)&(Pronostiekers!A20) -> 1150: Guy
A15: Treviso – Valdobbiadene | B15: =SUM('De VACCAreurs'!G25:T25)&(Pronostiekers!A3) -> 1250: Sven**** | C15: =SUM('Il Krieperi Disoccupato'!G25:T25)&(Pronostiekers!A4) -> 1550: Robin*** | D15: =SUM(U!G25:T25)&(Pronostiekers!A1) -> 2150: Ollie**** | E15: =SUM(Jeff!G25:T25)&(Pronostiekers!A21) -> 1150: Arno | F15: =SUM(PADT!G25:T25)&(Pronostiekers!A17) -> 1550: Filip | G15: =SUM(WELK!G25:T25)&(Pronostiekers!A11) -> 1250: Ronny* | H15: =SUM('De Roze 12'!G25:T25)&(Pronostiekers!A9) -> 1000: Janes* | I15: =SUM('FC RAFTEN'!G25:T25)&(Pronostiekers!A5) -> 1550: Raf** | J15: =SUM('Le Capre Di Montagna'!G25:T25)&(Pronostiekers!A2) -> 1950: Joik**** | K15: =SUM('De Freddies'!G25:T25)&(Pronostiekers!A13) -> 1550: Fred | L15: =SUM('Squadra Parcheggio'!G25:T25)&(Pronostiekers!A22) -> 900: Bart | M15: =SUM(Paperboys!G25:T25)&(Pronostiekers!A10) -> 900: Tom* | N15: =SUM('De Roze Janetten'!G25:T25)&(Pronostiekers!A12) -> 1750: Tim | O15: =SUM('The Dolphen'!G25:T25)&(Pronostiekers!A14) -> 1250: Pieter | P15: =SUM('De Bakkers'!G25:T25)&(Pronostiekers!A20) -> 1150: Guy
A16: Marostica – Madonna di Campiglio | B16: =SUM('De VACCAreurs'!G25:U25)&(Pronostiekers!A3) -> 1250: Sven**** | C16: =SUM('Il Krieperi Disoccupato'!G25:U25)&(Pronostiekers!A4) -> 1550: Robin*** | D16: =SUM(U!G25:U25)&(Pronostiekers!A1) -> 2150: Ollie**** | E16: =SUM(Jeff!G25:U25)&(Pronostiekers!A21) -> 1150: Arno | F16: =SUM(PADT!G25:U25)&(Pronostiekers!A17) -> 1550: Filip | G16: =SUM(WELK!G25:U25)&(Pronostiekers!A11) -> 1250: Ronny* | H16: =SUM('De Roze 12'!G25:U25)&(Pronostiekers!A9) -> 1000: Janes* | I16: =SUM('FC RAFTEN'!G25:U25)&(Pronostiekers!A5) -> 1550: Raf** | J16: =SUM('Le Capre Di Montagna'!G25:U25)&(Pronostiekers!A2) -> 1950: Joik**** | K16: =SUM('De Freddies'!G25:U25)&(Pronostiekers!A13) -> 1550: Fred | L16: =SUM('Squadra Parcheggio'!G25:U25)&(Pronostiekers!A22) -> 900: Bart | M16: =SUM(Paperboys!G25:U25)&(Pronostiekers!A10) -> 900: Tom* | N16: =SUM('De Roze Janetten'!G25:U25)&(Pronostiekers!A12) -> 1750: Tim | O16: =SUM('The Dolphen'!G25:U25)&(Pronostiekers!A14) -> 1250: Pieter | P16: =SUM('De Bakkers'!G25:U25)&(Pronostiekers!A20) -> 1150: Guy
A17: Pinzolo – Aprica | B17: =SUM('De VACCAreurs'!G25:V25)&(Pronostiekers!A3) -> 1250: Sven**** | C17: =SUM('Il Krieperi Disoccupato'!G25:V25)&(Pronostiekers!A4) -> 1550: Robin*** | D17: =SUM(U!G25:V25)&(Pronostiekers!A1) -> 2150: Ollie**** | E17: =SUM(Jeff!G25:V25)&(Pronostiekers!A21) -> 1150: Arno | F17: =SUM(PADT!G25:V25)&(Pronostiekers!A17) -> 1550: Filip | G17: =SUM(WELK!G25:V25)&(Pronostiekers!A11) -> 1250: Ronny* | H17: =SUM('De Roze 12'!G25:V25)&(Pronostiekers!A9) -> 1000: Janes* | I17: =SUM('FC RAFTEN'!G25:V25)&(Pronostiekers!A5) -> 1550: Raf** | J17: =SUM('Le Capre Di Montagna'!G25:V25)&(Pronostiekers!A2) -> 1950: Joik**** | K17: =SUM('De Freddies'!G25:V25)&(Pronostiekers!A13) -> 1550: Fred | L17: =SUM('Squadra Parcheggio'!G25:V25)&(Pronostiekers!A22) -> 900: Bart | M17: =SUM(Paperboys!G25:V25)&(Pronostiekers!A10) -> 900: Tom* | N17: =SUM('De Roze Janetten'!G25:V25)&(Pronostiekers!A12) -> 1750: Tim | O17: =SUM('The Dolphen'!G25:V25)&(Pronostiekers!A14) -> 1250: Pieter | P17: =SUM('De Bakkers'!G25:V25)&(Pronostiekers!A20) -> 1150: Guy
A18: Tirano – Lugano | B18: =SUM('De VACCAreurs'!G25:W25)&(Pronostiekers!A3) -> 1250: Sven**** | C18: =SUM('Il Krieperi Disoccupato'!G25:W25)&(Pronostiekers!A4) -> 1550: Robin*** | D18: =SUM(U!G25:W25)&(Pronostiekers!A1) -> 2150: Ollie**** | E18: =SUM(Jeff!G25:W25)&(Pronostiekers!A21) -> 1150: Arno | F18: =SUM(PADT!G25:W25)&(Pronostiekers!A17) -> 1550: Filip | G18: =SUM(WELK!G25:W25)&(Pronostiekers!A11) -> 1250: Ronny* | H18: =SUM('De Roze 12'!G25:W25)&(Pronostiekers!A9) -> 1000: Janes* | I18: =SUM('FC RAFTEN'!G25:W25)&(Pronostiekers!A5) -> 1550: Raf** | J18: =SUM('Le Capre Di Montagna'!G25:W25)&(Pronostiekers!A2) -> 1950: Joik**** | K18: =SUM('De Freddies'!G25:W25)&(Pronostiekers!A13) -> 1550: Fred | L18: =SUM('Squadra Parcheggio'!G25:W25)&(Pronostiekers!A22) -> 900: Bart | M18: =SUM(Paperboys!G25:W25)&(Pronostiekers!A10) -> 900: Tom* | N18: =SUM('De Roze Janetten'!G25:W25)&(Pronostiekers!A12) -> 1750: Tim | O18: =SUM('The Dolphen'!G25:W25)&(Pronostiekers!A14) -> 1250: Pieter | P18: =SUM('De Bakkers'!G25:W25)&(Pronostiekers!A20) -> 1150: Guy
A19: Melide – Verbania | B19: =SUM('De VACCAreurs'!G25:X25)&(Pronostiekers!A3) -> 1250: Sven**** | C19: =SUM('Il Krieperi Disoccupato'!G25:X25)&(Pronostiekers!A4) -> 1550: Robin*** | D19: =SUM(U!G25:X25)&(Pronostiekers!A1) -> 2150: Ollie**** | E19: =SUM(Jeff!G25:X25)&(Pronostiekers!A21) -> 1150: Arno | F19: =SUM(PADT!G25:X25)&(Pronostiekers!A17) -> 1550: Filip | G19: =SUM(WELK!G25:X25)&(Pronostiekers!A11) -> 1250: Ronny* | H19: =SUM('De Roze 12'!G25:X25)&(Pronostiekers!A9) -> 1000: Janes* | I19: =SUM('FC RAFTEN'!G25:X25)&(Pronostiekers!A5) -> 1550: Raf** | J19: =SUM('Le Capre Di Montagna'!G25:X25)&(Pronostiekers!A2) -> 1950: Joik**** | K19: =SUM('De Freddies'!G25:X25)&(Pronostiekers!A13) -> 1550: Fred | L19: =SUM('Squadra Parcheggio'!G25:X25)&(Pronostiekers!A22) -> 900: Bart | M19: =SUM(Paperboys!G25:X25)&(Pronostiekers!A10) -> 900: Tom* | N19: =SUM('De Roze Janetten'!G25:X25)&(Pronostiekers!A12) -> 1750: Tim | O19: =SUM('The Dolphen'!G25:X25)&(Pronostiekers!A14) -> 1250: Pieter | P19: =SUM('De Bakkers'!G25:X25)&(Pronostiekers!A20) -> 1150: Guy
A20: Gravellona Toce – Cervinia | B20: =SUM('De VACCAreurs'!G25:Y25)&(Pronostiekers!A3) -> 1250: Sven**** | C20: =SUM('Il Krieperi Disoccupato'!G25:Y25)&(Pronostiekers!A4) -> 1550: Robin*** | D20: =SUM(U!G25:Y25)&(Pronostiekers!A1) -> 2150: Ollie**** | E20: =SUM(Jeff!G25:Y25)&(Pronostiekers!A21) -> 1150: Arno | F20: =SUM(PADT!G25:Y25)&(Pronostiekers!A17) -> 1550: Filip | G20: =SUM(WELK!G25:Y25)&(Pronostiekers!A11) -> 1250: Ronny* | H20: =SUM('De Roze 12'!G25:Y25)&(Pronostiekers!A9) -> 1000: Janes* | I20: =SUM('FC RAFTEN'!G25:Y25)&(Pronostiekers!A5) -> 1550: Raf** | J20: =SUM('Le Capre Di Montagna'!G25:Y25)&(Pronostiekers!A2) -> 1950: Joik**** | K20: =SUM('De Freddies'!G25:Y25)&(Pronostiekers!A13) -> 1550: Fred | L20: =SUM('Squadra Parcheggio'!G25:Y25)&(Pronostiekers!A22) -> 900: Bart | M20: =SUM(Paperboys!G25:Y25)&(Pronostiekers!A10) -> 900: Tom* | N20: =SUM('De Roze Janetten'!G25:Y25)&(Pronostiekers!A12) -> 1750: Tim | O20: =SUM('The Dolphen'!G25:Y25)&(Pronostiekers!A14) -> 1250: Pieter | P20: =SUM('De Bakkers'!G25:Y25)&(Pronostiekers!A20) -> 1150: Guy
A21: Saint-Vincent – Sestrière | B21: =SUM('De VACCAreurs'!G25:Z25)&(Pronostiekers!A3) -> 1250: Sven**** | C21: =SUM('Il Krieperi Disoccupato'!G25:Z25)&(Pronostiekers!A4) -> 1550: Robin*** | D21: =SUM(U!G25:Z25)&(Pronostiekers!A1) -> 2150: Ollie**** | E21: =SUM(Jeff!G25:Z25)&(Pronostiekers!A21) -> 1150: Arno | F21: =SUM(PADT!G25:Z25)&(Pronostiekers!A17) -> 1550: Filip | G21: =SUM(WELK!G25:Z25)&(Pronostiekers!A11) -> 1250: Ronny* | H21: =SUM('De Roze 12'!G25:Z25)&(Pronostiekers!A9) -> 1000: Janes* | I21: =SUM('FC RAFTEN'!G25:Z25)&(Pronostiekers!A5) -> 1550: Raf** | J21: =SUM('Le Capre Di Montagna'!G25:Z25)&(Pronostiekers!A2) -> 1950: Joik**** | K21: =SUM('De Freddies'!G25:Z25)&(Pronostiekers!A13) -> 1550: Fred | L21: =SUM('Squadra Parcheggio'!G25:Z25)&(Pronostiekers!A22) -> 900: Bart | M21: =SUM(Paperboys!G25:Z25)&(Pronostiekers!A10) -> 900: Tom* | N21: =SUM('De Roze Janetten'!G25:Z25)&(Pronostiekers!A12) -> 1750: Tim | O21: =SUM('The Dolphen'!G25:Z25)&(Pronostiekers!A14) -> 1250: Pieter | P21: =SUM('De Bakkers'!G25:Z25)&(Pronostiekers!A20) -> 1150: Guy
A22: Turijn – Milaan | B22: =SUM('De VACCAreurs'!G25:AA25)&(Pronostiekers!A3) -> 1250: Sven**** | C22: =SUM('Il Krieperi Disoccupato'!G25:AA25)&(Pronostiekers!A4) -> 1550: Robin*** | D22: =SUM(U!G25:AA25)&(Pronostiekers!A1) -> 2150: Ollie**** | E22: =SUM(Jeff!G25:AA25)&(Pronostiekers!A21) -> 1150: Arno | F22: =SUM(PADT!G25:AA25)&(Pronostiekers!A17) -> 1550: Filip | G22: =SUM(WELK!G25:AA25)&(Pronostiekers!A11) -> 1250: Ronny* | H22: =SUM('De Roze 12'!G25:AA25)&(Pronostiekers!A9) -> 1000: Janes* | I22: =SUM('FC RAFTEN'!G25:AA25)&(Pronostiekers!A5) -> 1550: Raf** | J22: =SUM('Le Capre Di Montagna'!G25:AA25)&(Pronostiekers!A2) -> 1950: Joik**** | K22: =SUM('De Freddies'!G25:AA25)&(Pronostiekers!A13) -> 1550: Fred | L22: =SUM('Squadra Parcheggio'!G25:AA25)&(Pronostiekers!A22) -> 900: Bart | M22: =SUM(Paperboys!G25:AA25)&(Pronostiekers!A10) -> 900: Tom* | N22: =SUM('De Roze Janetten'!G25:AA25)&(Pronostiekers!A12) -> 1750: Tim | O22: =SUM('The Dolphen'!G25:AA25)&(Pronostiekers!A14) -> 1250: Pieter | P22: =SUM('De Bakkers'!G25:AA25)&(Pronostiekers!A20) -> 1150: Guy
A23: TOTAAL | B23: =SUM('De VACCAreurs'!G25:AB25)&(Pronostiekers!A3) -> 2500: Sven**** | C23: =SUM('Il Krieperi Disoccupato'!G25:AB25)&(Pronostiekers!A4) -> 3100: Robin*** | D23: =SUM(U!G25:AB25)&(Pronostiekers!A1) -> 4300: Ollie**** | E23: =SUM(Jeff!G25:AB25)&(Pronostiekers!A21) -> 2300: Arno | F23: =SUM(PADT!G25:AB25)&(Pronostiekers!A17) -> 3100: Filip | G23: =SUM(WELK!G25:AB25)&(Pronostiekers!A11) -> 2500: Ronny* | H23: =SUM('De Roze 12'!G25:AB25)&(Pronostiekers!A9) -> 2000: Janes* | I23: =SUM('FC RAFTEN'!G25:AB25)&(Pronostiekers!A5) -> 3100: Raf** | J23: =SUM('Le Capre Di Montagna'!G25:AB25)&(Pronostiekers!A2) -> 3900: Joik**** | K23: =SUM('De Freddies'!G25:AB25)&(Pronostiekers!A13) -> 3100: Fred | L23: =SUM('Squadra Parcheggio'!G25:AB25)&(Pronostiekers!A22) -> 1800: Bart | M23: =SUM(Paperboys!G25:AB25)&(Pronostiekers!A10) -> 1800: Tom* | N23: =SUM('De Roze Janetten'!G25:AB25)&(Pronostiekers!A12) -> 3500: Tim | O23: =SUM('The Dolphen'!G25:AB25)&(Pronostiekers!A14) -> 2500: Pieter | P23: =SUM('De Bakkers'!G25:AB25)&(Pronostiekers!A20) -> 2300: Guy

Sheet San Lorenzo- San Remo
B1: 1500 | F1: 1 | G1: ='De VACCAreurs'!B3&'De VACCAreurs'!B4 -> Sven : De VACCAreurs**** | H1: ='De VACCAreurs'!G25 -> 0
B2: 1300 | F2: 2 | G2: ='De Freddies'!B3&'De Freddies'!B4 -> Fred : De Freddies | H2: ='De Freddies'!G25 -> 0
B3: 1100 | F3: 3 | G3: ='FC RAFTEN'!B3&'FC RAFTEN'!B4 -> Raf : FC RAFTEN** | H3: ='FC RAFTEN'!G25 -> 0
B4: 1000 | F4: 4 | G4: ='De Roze 12'!B3&'De Roze 12'!B4 -> Janes : De Roze 12* | H4: ='De Roze 12'!G25 -> 0
B5: 900 | F5: 5 | G5: ='Le Capre Di Montagna'!B3&'Le Capre Di Montagna'!B4 -> Joik : Le Capre Di Montagna**** | H5: ='Le Capre Di Montagna'!G25 -> 0
B6: 800 | F6: 6 | G6: ='De Roze Janetten'!B3&'De Roze Janetten'!B4 -> Tim : De Roze Janetten | H6: ='De Roze Janetten'!G25 -> 0
B7: 700 | F7: 7 | G7: =U!B3&U!B4 -> Ollie : U**** | H7: =U!G25 -> 0
B8: 650 | F8: 8 | G8: =Jeff!B3&Jeff!B4 -> Arno : Jeff | H8: =Jeff!G25 -> 0
B9: 600 | F9: 9 | G9: =PADT!B3&PADT!B4 -> Filip : PADT | H9: =PADT!G25 -> 0
B10: 550 | F10: 10 | G10: =Paperboys!B3&Paperboys!B4 -> Tom : Paperboys* | H10: =Paperboys!G25 -> 0
B11: 500 | F11: 11 | G11: ='Il Krieperi Disoccupato'!B3&'Il Krieperi Disoccupato'!B4 -> Robin : Il Krieperi Disoccupato*** | H11: ='Il Krieperi Disoccupato'!G25 -> 0
B12: 450 | F12: 12 | G12: ='The Dolphen'!B3&'The Dolphen'!B4 -> Pieter : The Dolphen | H12: ='The Dolphen'!G25 -> 0
B13: 400 | F13: 13 | G13: ='Squadra Parcheggio'!B3&'Squadra Parcheggio'!B4 -> Bart : Squadra Parcheggio | H13: ='Squadra Parcheggio'!G25 -> 0
B14: 350 | F14: 14 | G14: =WELK!B3&WELK!B4 -> Ronny : WELK* | H14: =WELK!G25 -> 0
B15: 300 | F15: 15 | G15: ='De Bakkers'!B3&'De Bakkers'!B4 -> Guy : De Bakkers | H15: ='De Bakkers'!G25 -> 0
B16: 250
B17: 200
B18: 150
B19: 100
B20: 75
B21: 50
B22: 40
B23: 30
B24: 20
B25: 10

Sheet Albenga-Genua
B1: 1500 | F1: 1 | G1: ='De VACCAreurs'!B3&'De VACCAreurs'!B4 -> Sven : De VACCAreurs**** | H1: ='De VACCAreurs'!H25 -> 0
B2: 1300 | F2: 2 | G2: ='De Freddies'!B3&'De Freddies'!B4 -> Fred : De Freddies | H2: ='De Freddies'!H25 -> 0
B3: 1100 | F3: 3 | G3: ='FC RAFTEN'!B3&'FC RAFTEN'!B4 -> Raf : FC RAFTEN** | H3: ='FC RAFTEN'!H25 -> 0
B4: 1000 | F4: 4 | G4: ='De Roze 12'!B3&'De Roze 12'!B4 -> Janes : De Roze 12* | H4: ='De Roze 12'!H25 -> 0
B5: 900 | F5: 5 | G5: ='Le Capre Di Montagna'!B3&'Le Capre Di Montagna'!B4 -> Joik : Le Capre Di Montagna**** | H5: ='Le Capre Di Montagna'!H25 -> 0
B6: 800 | F6: 6 | G6: ='De Roze Janetten'!B3&'De Roze Janetten'!B4 -> Tim : De Roze Janetten | H6: ='De Roze Janetten'!H25 -> 0
B7: 700 | F7: 7 | G7: =U!B3&U!B4 -> Ollie : U**** | H7: =U!H25 -> 0
B8: 650 | F8: 8 | G8: =Jeff!B3&Jeff!B4 -> Arno : Jeff | H8: =Jeff!H25 -> 0
B9: 600 | F9: 9 | G9: =PADT!B3&PADT!B4 -> Filip : PADT | H9: =PADT!H25 -> 0
B10: 550 | F10: 10 | G10: =Paperboys!B3&Paperboys!B4 -> Tom : Paperboys* | H10: =Paperboys!H25 -> 0
B11: 500 | F11: 11 | G11: ='Il Krieperi Disoccupato'!B3&'Il Krieperi Disoccupato'!B4 -> Robin : Il Krieperi Disoccupato*** | H11: ='Il Krieperi Disoccupato'!H25 -> 0
B12: 450 | F12: 12 | G12: ='The Dolphen'!B3&'The Dolphen'!B4 -> Pieter : The Dolphen | H12: ='The Dolphen'!H25 -> 0
B13: 400 | F13: 13 | G13: ='Squadra Parcheggio'!B3&'Squadra Parcheggio'!B4 -> Bart : Squadra Parcheggio | H13: ='Squadra Parcheggio'!H25 -> 0
B14: 350 | F14: 14 | G14: =WELK!B3&WELK!B4 -> Ronny : WELK* | H14: =WELK!H25 -> 0
B15: 300 | F15: 15 | G15: ='De Bakkers'!B3&'De Bakkers'!B4 -> Guy : De Bakkers | H15: ='De Bakkers'!H25 -> 0
B16: 250
B17: 200
B18: 150
B19: 100
B20: 75
B21: 50
B22: 40
B23: 30
B24: 20
B25: 10

Sheet Rapallo-Sestri Levante
B1: 1500 | F1: 1 | G1: ='De VACCAreurs'!B3&'De VACCAreurs'!B4 -> Sven : De VACCAreurs**** | H1: ='De VACCAreurs'!I25 -> 0
B2: 1300 | F2: 2 | G2: ='De Freddies'!B3&'De Freddies'!B4 -> Fred : De Freddies | H2: ='De Freddies'!I25 -> 0
B3: 1100 | F3: 3 | G3: ='FC RAFTEN'!B3&'FC RAFTEN'!B4 -> Raf : FC RAFTEN** | H3: ='FC RAFTEN'!I25 -> 0
B4: 1000 | F4: 4 | G4: ='De Roze 12'!B3&'De Roze 12'!B4 -> Janes : De Roze 12* | H4: ='De Roze 12'!I25 -> 100
B5: 900 | F5: 5 | G5: ='Le Capre Di Montagna'!B3&'Le Capre Di Montagna'!B4 -> Joik : Le Capre Di Montagna**** | H5: ='Le Capre Di Montagna'!I25 -> 100
B6: 800 | F6: 6 | G6: ='De Roze Janetten'!B3&'De Roze Janetten'!B4 -> Tim : De Roze Janetten | H6: ='De Roze Janetten'!I25 -> 100
B7: 700 | F7: 7 | G7: =U!B3&U!B4 -> Ollie : U**** | H7: =U!I25 -> 100
B8: 650 | F8: 8 | G8: =Jeff!B3&Jeff!B4 -> Arno : Jeff | H8: =Jeff!I25 -> 0
B9: 600 | F9: 9 | G9: =PADT!B3&PADT!B4 -> Filip : PADT | H9: =PADT!I25 -> 0
B10: 550 | F10: 10 | G10: =Paperboys!B3&Paperboys!B4 -> Tom : Paperboys* | H10: =Paperboys!I25 -> 0
B11: 500 | F11: 11 | G11: ='Il Krieperi Disoccupato'!B3&'Il Krieperi Disoccupato'!B4 -> Robin : Il Krieperi Disoccupato*** | H11: ='Il Krieperi Disoccupato'!I25 -> 0
B12: 450 | F12: 12 | G12: ='The Dolphen'!B3&'The Dolphen'!B4 -> Pieter : The Dolphen | H12: ='The Dolphen'!I25 -> 0
B13: 400 | F13: 13 | G13: ='Squadra Parcheggio'!B3&'Squadra Parcheggio'!B4 -> Bart : Squadra Parcheggio | H13: ='Squadra Parcheggio'!I25 -> 0
B14: 350 | F14: 14 | G14: =WELK!B3&WELK!B4 -> Ronny : WELK* | H14: =WELK!I25 -> 0
B15: 300 | F15: 15 | G15: ='De Bakkers'!B3&'De Bakkers'!B4 -> Guy : De Bakkers | H15: ='De Bakkers'!I25 -> 0
B16: 250
B17: 200
B18: 150
B19: 100
B20: 75
B21: 50
B22: 40
B23: 30
B24: 20
B25: 10

Sheet Chiavari-La Spezia
B1: 1500 | F1: 1 | G1: ='De VACCAreurs'!B3&'De VACCAreurs'!B4 -> Sven : De VACCAreurs**** | H1: ='De VACCAreurs'!J25 -> 0
B2: 1300 | F2: 2 | G2: ='De Freddies'!B3&'De Freddies'!B4 -> Fred : De Freddies | H2: ='De Freddies'!J25 -> 0
B3: 1100 | F3: 3 | G3: ='FC RAFTEN'!B3&'FC RAFTEN'!B4 -> Raf : FC RAFTEN** | H3: ='FC RAFTEN'!J25 -> 0
B4: 1000 | F4: 4 | G4: ='De Roze 12'!B3&'De Roze 12'!B4 -> Janes : De Roze 12* | H4: ='De Roze 12'!J25 -> 100
B5: 900 | F5: 5 | G5: ='Le Capre Di Montagna'!B3&'Le Capre Di Montagna'!B4 -> Joik : Le Capre Di Montagna**** | H5: ='Le Capre Di Montagna'!J25 -> 100
B6: 800 | F6: 6 | G6: ='De Roze Janetten'!B3&'De Roze Janetten'!B4 -> Tim : De Roze Janetten | H6: ='De Roze Janetten'!J25 -> 100
B7: 700 | F7: 7 | G7: =U!B3&U!B4 -> Ollie : U**** | H7: =U!J25 -> 100
B8: 650 | F8: 8 | G8: =Jeff!B3&Jeff!B4 -> Arno : Jeff | H8: =Jeff!J25 -> 0
B9: 600 | F9: 9 | G9: =PADT!B3&PADT!B4 -> Filip : PADT | H9: =PADT!J25 -> 0
B10: 550 | F10: 10 | G10: =Paperboys!B3&Paperboys!B4 -> Tom : Paperboys* | H10: =Paperboys!J25 -> 0
B11: 500 | F11: 11 | G11: ='Il Krieperi Disoccupato'!B3&'Il Krieperi Disoccupato'!B4 -> Robin : Il Krieperi Disoccupato*** | H11: ='Il Krieperi Disoccupato'!J25 -> 0
B12: 450 | F12: 12 | G12: ='The Dolphen'!B3&'The Dolphen'!B4 -> Pieter : The Dolphen | H12: ='The Dolphen'!J25 -> 0
B13: 400 | F13: 13 | G13: ='Squadra Parcheggio'!B3&'Squadra Parcheggio'!B4 -> Bart : Squadra Parcheggio | H13: ='Squadra Parcheggio'!J25 -> 0
B14: 350 | F14: 14 | G14: =WELK!B3&WELK!B4 -> Ronny : WELK* | H14: =WELK!J25 -> 0
B15: 300 | F15: 15 | G15: ='De Bakkers'!B3&'De Bakkers'!B4 -> Guy : De Bakkers | H15: ='De Bakkers'!J25 -> 0
B16: 250
B17: 200
B18: 150
B19: 100
B20: 75
B21: 50
B22: 40
B23: 30
B24: 20
B25: 10

Sheet La Spezia-Abetone
B1: 1500 | F1: 1 | G1: ='De VACCAreurs'!B3&'De VACCAreurs'!B4 -> Sven : De VACCAreurs**** | H1: ='De VACCAreurs'!K25 -> 0
B2: 1300 | F2: 2 | G2: ='De Freddies'!B3&'De Freddies'!B4 -> Fred : De Freddies | H2: ='De Freddies'!K25 -> 100
B3: 1100 | F3: 3 | G3: ='FC RAFTEN'!B3&'FC RAFTEN'!B4 -> Raf : FC RAFTEN** | H3: ='FC RAFTEN'!K25 -> 0
B4: 1000 | F4: 4 | G4: ='De Roze 12'!B3&'De Roze 12'!B4 -> Janes : De Roze 12* | H4: ='De Roze 12'!K25 -> 100
B5: 900 | F5: 5 | G5: ='Le Capre Di Montagna'!B3&'Le Capre Di Montagna'!B4 -> Joik : Le Capre Di Montagna**** | H5: ='Le Capre Di Montagna'!K25 -> 100
B6: 800 | F6: 6 | G6: ='De Roze Janetten'!B3&'De Roze Janetten'!B4 -> Tim : De Roze Janetten | H6: ='De Roze Janetten'!K25 -> 100
B7: 700 | F7: 7 | G7: =U!B3&U!B4 -> Ollie : U**** | H7: =U!K25 -> 400
B8: 650 | F8: 8 | G8: =Jeff!B3&Jeff!B4 -> Arno : Jeff | H8: =Jeff!K25 -> 0
B9: 600 | F9: 9 | G9: =PADT!B3&PADT!B4 -> Filip : PADT | H9: =PADT!K25 -> 0
B10: 550 | F10: 10 | G10: =Paperboys!B3&Paperboys!B4 -> Tom : Paperboys* | H10: =Paperboys!K25 -> 0
B11: 500 | F11: 11 | G11: ='Il Krieperi Disoccupato'!B3&'Il Krieperi Disoccupato'!B4 -> Robin : Il Krieperi Disoccupato*** | H11: ='Il Krieperi Disoccupato'!K25 -> 100
B12: 450 | F12: 12 | G12: ='The Dolphen'!B3&'The Dolphen'!B4 -> Pieter : The Dolphen | H12: ='The Dolphen'!K25 -> 0
B13: 400 | F13: 13 | G13: ='Squadra Parcheggio'!B3&'Squadra Parcheggio'!B4 -> Bart : Squadra Parcheggio | H13: ='Squadra Parcheggio'!K25 -> 0
B14: 350 | F14: 14 | G14: =WELK!B3&WELK!B4 -> Ronny : WELK* | H14: =WELK!K25 -> 100
B15: 300 | F15: 15 | G15: ='De Bakkers'!B3&'De Bakkers'!B4 -> Guy : De Bakkers | H15: ='De Bakkers'!K25 -> 0
B16: 250
B17: 200
B18: 150
B19: 100
B20: 75
B21: 50
B22: 40
B23: 30
B24: 20
B25: 10

Sheet Montecatini-Castiglione
B1: 1500 | F1: 1 | G1: ='De VACCAreurs'!B3&'De VACCAreurs'!B4 -> Sven : De VACCAreurs**** | H1: ='De VACCAreurs'!L25 -> 0
B2: 1300 | F2: 2 | G2: ='De Freddies'!B3&'De Freddies'!B4 -> Fred : De Freddies | H2: ='De Freddies'!L25 -> 0
B3: 1100 | F3: 3 | G3: ='FC RAFTEN'!B3&'FC RAFTEN'!B4 -> Raf : FC RAFTEN** | H3: ='FC RAFTEN'!L25 -> 0
B4: 1000 | F4: 4 | G4: ='De Roze 12'!B3&'De Roze 12'!B4 -> Janes : De Roze 12* | H4: ='De Roze 12'!L25 -> 0
B5: 900 | F5: 5 | G5: ='Le Capre Di Montagna'!B3&'Le Capre Di Montagna'!B4 -> Joik : Le Capre Di Montagna**** | H5: ='Le Capre Di Montagna'!L25 -> 0
B6: 800 | F6: 6 | G6: ='De Roze Janetten'!B3&'De Roze Janetten'!B4 -> Tim : De Roze Janetten | H6: ='De Roze Janetten'!L25 -> 0
B7: 700 | F7: 7 | G7: =U!B3&U!B4 -> Ollie : U**** | H7: =U!L25 -> 0
B8: 650 | F8: 8 | G8: =Jeff!B3&Jeff!B4 -> Arno : Jeff | H8: =Jeff!L25 -> 0
B9: 600 | F9: 9 | G9: =PADT!B3&PADT!B4 -> Filip : PADT | H9: =PADT!L25 -> 0
B10: 550 | F10: 10 | G10: =Paperboys!B3&Paperboys!B4 -> Tom : Paperboys* | H10: =Paperboys!L25 -> 0
B11: 500 | F11: 11 | G11: ='Il Krieperi Disoccupato'!B3&'Il Krieperi Disoccupato'!B4 -> Robin : Il Krieperi Disoccupato*** | H11: ='Il Krieperi Disoccupato'!L25 -> 0
B12: 450 | F12: 12 | G12: ='The Dolphen'!B3&'The Dolphen'!B4 -> Pieter : The Dolphen | H12: ='The Dolphen'!L25 -> 0
B13: 400 | F13: 13 | G13: ='Squadra Parcheggio'!B3&'Squadra Parcheggio'!B4 -> Bart : Squadra Parcheggio | H13: ='Squadra Parcheggio'!L25 -> 0
B14: 350 | F14: 14 | G14: =WELK!B3&WELK!B4 -> Ronny : WELK* | H14: =WELK!L25 -> 0
B15: 300 | F15: 15 | G15: ='De Bakkers'!B3&'De Bakkers'!B4 -> Guy : De Bakkers | H15: ='De Bakkers'!L25 -> 0
B16: 250
B17: 200
B18: 150
B19: 100
B20: 75
B21: 50
B22: 40
B23: 30
B24: 20
B25: 10

Sheet Grosseto-Fiuggi
B1: 1500 | F1: 1 | G1: ='De VACCAreurs'!B3&'De VACCAreurs'!B4 -> Sven : De VACCAreurs**** | H1: ='De VACCAreurs'!M25 -> 100
B2: 1300 | F2: 2 | G2: ='De Freddies'!B3&'De Freddies'!B4 -> Fred : De Freddies | H2: ='De Freddies'!M25 -> 100
B3: 1100 | F3: 3 | G3: ='FC RAFTEN'!B3&'FC RAFTEN'!B4 -> Raf : FC RAFTEN** | H3: ='FC RAFTEN'!M25 -> 100
B4: 1000 | F4: 4 | G4: ='De Roze 12'!B3&'De Roze 12'!B4 -> Janes : De Roze 12* | H4: ='De Roze 12'!M25 -> 100
B5: 900 | F5: 5 | G5: ='Le Capre Di Montagna'!B3&'Le Capre Di Montagna'!B4 -> Joik : Le Capre Di Montagna**** | H5: ='Le Capre Di Montagna'!M25 -> 0
B6: 800 | F6: 6 | G6: ='De Roze Janetten'!B3&'De Roze Janetten'!B4 -> Tim : De Roze Janetten | H6: ='De Roze Janetten'!M25 -> 0
B7: 700 | F7: 7 | G7: =U!B3&U!B4 -> Ollie : U**** | H7: =U!M25 -> 0
B8: 650 | F8: 8 | G8: =Jeff!B3&Jeff!B4 -> Arno : Jeff | H8: =Jeff!M25 -> 0
B9: 600 | F9: 9 | G9: =PADT!B3&PADT!B4 -> Filip : PADT | H9: =PADT!M25 -> 100
B10: 550 | F10: 10 | G10: =Paperboys!B3&Paperboys!B4 -> Tom : Paperboys* | H10: =Paperboys!M25 -> 100
B11: 500 | F11: 11 | G11: ='Il Krieperi Disoccupato'!B3&'Il Krieperi Disoccupato'!B4 -> Robin : Il Krieperi Disoccupato*** | H11: ='Il Krieperi Disoccupato'!M25 -> 100
B12: 450 | F12: 12 | G12: ='The Dolphen'!B3&'The Dolphen'!B4 -> Pieter : The Dolphen | H12: ='The Dolphen'!M25 -> 100
B13: 400 | F13: 13 | G13: ='Squadra Parcheggio'!B3&'Squadra Parcheggio'!B4 -> Bart : Squadra Parcheggio | H13: ='Squadra Parcheggio'!M25 -> 100
B14: 350 | F14: 14 | G14: =WELK!B3&WELK!B4 -> Ronny : WELK* | H14: =WELK!M25 -> 100
B15: 300 | F15: 15 | G15: ='De Bakkers'!B3&'De Bakkers'!B4 -> Guy : De Bakkers | H15: ='De Bakkers'!M25 -> 0
B16: 250
B17: 200
B18: 150
B19: 100
B20: 75
B21: 50
B22: 40
B23: 30
B24: 20
B25: 10

Sheet Fiuggi-Campitello Matese
B1: 1500 | F1: 1 | G1: ='De VACCAreurs'!B3&'De VACCAreurs'!B4 -> Sven : De VACCAreurs**** | H1: ='De VACCAreurs'!N25 -> 250
B2: 1300 | F2: 2 | G2: ='De Freddies'!B3&'De Freddies'!B4 -> Fred : De Freddies | H2: ='De Freddies'!N25 -> 250
B3: 1100 | F3: 3 | G3: ='FC RAFTEN'!B3&'FC RAFTEN'!B4 -> Raf : FC RAFTEN** | H3: ='FC RAFTEN'!N25 -> 250
B4: 1000 | F4: 4 | G4: ='De Roze 12'!B3&'De Roze 12'!B4 -> Janes : De Roze 12* | H4: ='De Roze 12'!N25 -> 100
B5: 900 | F5: 5 | G5: ='Le Capre Di Montagna'!B3&'Le Capre Di Montagna'!B4 -> Joik : Le Capre Di Montagna**** | H5: ='Le Capre Di Montagna'!N25 -> 150
B6: 800 | F6: 6 | G6: ='De Roze Janetten'!B3&'De Roze Janetten'!B4 -> Tim : De Roze Janetten | H6: ='De Roze Janetten'!N25 -> 150
B7: 700 | F7: 7 | G7: =U!B3&U!B4 -> Ollie : U**** | H7: =U!N25 -> 150
B8: 650 | F8: 8 | G8: =Jeff!B3&Jeff!B4 -> Arno : Jeff | H8: =Jeff!N25 -> 150
B9: 600 | F9: 9 | G9: =PADT!B3&PADT!B4 -> Filip : PADT | H9: =PADT!N25 -> 250
B10: 550 | F10: 10 | G10: =Paperboys!B3&Paperboys!B4 -> Tom : Paperboys* | H10: =Paperboys!N25 -> 100
B11: 500 | F11: 11 | G11: ='Il Krieperi Disoccupato'!B3&'Il Krieperi Disoccupato'!B4 -> Robin : Il Krieperi Disoccupato*** | H11: ='Il Krieperi Disoccupato'!N25 -> 250
B12: 450 | F12: 12 | G12: ='The Dolphen'!B3&'The Dolphen'!B4 -> Pieter : The Dolphen | H12: ='The Dolphen'!N25 -> 250
B13: 400 | F13: 13 | G13: ='Squadra Parcheggio'!B3&'Squadra Parcheggio'!B4 -> Bart : Squadra Parcheggio | H13: ='Squadra Parcheggio'!N25 -> 100
B14: 350 | F14: 14 | G14: =WELK!B3&WELK!B4 -> Ronny : WELK* | H14: =WELK!N25 -> 250
B15: 300 | F15: 15 | G15: ='De Bakkers'!B3&'De Bakkers'!B4 -> Guy : De Bakkers | H15: ='De Bakkers'!N25 -> 150
B16: 250
B17: 200
B18: 150
B19: 100
B20: 75
B21: 50
B22: 40
B23: 30
B24: 20
B25: 10

Sheet Benevento-San Giorgio
B1: 1500 | F1: 1 | G1: ='De VACCAreurs'!B3&'De VACCAreurs'!B4 -> Sven : De VACCAreurs**** | H1: ='De VACCAreurs'!O25 -> 150
B2: 1300 | F2: 2 | G2: ='De Freddies'!B3&'De Freddies'!B4 -> Fred : De Freddies | H2: ='De Freddies'!O25 -> 250
B3: 1100 | F3: 3 | G3: ='FC RAFTEN'!B3&'FC RAFTEN'!B4 -> Raf : FC RAFTEN** | H3: ='FC RAFTEN'!O25 -> 250
B4: 1000 | F4: 4 | G4: ='De Roze 12'!B3&'De Roze 12'!B4 -> Janes : De Roze 12* | H4: ='De Roze 12'!O25 -> 0
B5: 900 | F5: 5 | G5: ='Le Capre Di Montagna'!B3&'Le Capre Di Montagna'!B4 -> Joik : Le Capre Di Montagna**** | H5: ='Le Capre Di Montagna'!O25 -> 250
B6: 800 | F6: 6 | G6: ='De Roze Janetten'!B3&'De Roze Janetten'!B4 -> Tim : De Roze Janetten | H6: ='De Roze Janetten'!O25 -> 150
B7: 700 | F7: 7 | G7: =U!B3&U!B4 -> Ollie : U**** | H7: =U!O25 -> 250
B8: 650 | F8: 8 | G8: =Jeff!B3&Jeff!B4 -> Arno : Jeff | H8: =Jeff!O25 -> 150
B9: 600 | F9: 9 | G9: =PADT!B3&PADT!B4 -> Filip : PADT | H9: =PADT!O25 -> 250
B10: 550 | F10: 10 | G10: =Paperboys!B3&Paperboys!B4 -> Tom : Paperboys* | H10: =Paperboys!O25 -> 100
B11: 500 | F11: 11 | G11: ='Il Krieperi Disoccupato'!B3&'Il Krieperi Disoccupato'!B4 -> Robin : Il Krieperi Disoccupato*** | H11: ='Il Krieperi Disoccupato'!O25 -> 150
B12: 450 | F12: 12 | G12: ='The Dolphen'!B3&'The Dolphen'!B4 -> Pieter : The Dolphen | H12: ='The Dolphen'!O25 -> 150
B13: 400 | F13: 13 | G13: ='Squadra Parcheggio'!B3&'Squadra Parcheggio'!B4 -> Bart : Squadra Parcheggio | H13: ='Squadra Parcheggio'!O25 -> 100
B14: 350 | F14: 14 | G14: =WELK!B3&WELK!B4 -> Ronny : WELK* | H14: =WELK!O25 -> 150
B15: 300 | F15: 15 | G15: ='De Bakkers'!B3&'De Bakkers'!B4 -> Guy : De Bakkers | H15: ='De Bakkers'!O25 -> 250
B16: 250
B17: 200
B18: 150
B19: 100
B20: 75
B21: 50
B22: 40
B23: 30
B24: 20
B25: 10

Sheet Civitanova Marche-Forli
B1: 1500 | F1: 1 | G1: ='De VACCAreurs'!B3&'De VACCAreurs'!B4 -> Sven : De VACCAreurs**** | H1: ='De VACCAreurs'!P25 -> 150
B2: 1300 | F2: 2 | G2: ='De Freddies'!B3&'De Freddies'!B4 -> Fred : De Freddies | H2: ='De Freddies'!P25 -> 350
B3: 1100 | F3: 3 | G3: ='FC RAFTEN'!B3&'FC RAFTEN'!B4 -> Raf : FC RAFTEN** | H3: ='FC RAFTEN'!P25 -> 350
B4: 1000 | F4: 4 | G4: ='De Roze 12'!B3&'De Roze 12'!B4 -> Janes : De Roze 12* | H4: ='De Roze 12'!P25 -> 200
B5: 900 | F5: 5 | G5: ='Le Capre Di Montagna'!B3&'Le Capre Di Montagna'!B4 -> Joik : Le Capre Di Montagna**** | H5: ='Le Capre Di Montagna'!P25 -> 350
B6: 800 | F6: 6 | G6: ='De Roze Janetten'!B3&'De Roze Janetten'!B4 -> Tim : De Roze Janetten | H6: ='De Roze Janetten'!P25 -> 450
B7: 700 | F7: 7 | G7: =U!B3&U!B4 -> Ollie : U**** | H7: =U!P25 -> 350
B8: 650 | F8: 8 | G8: =Jeff!B3&Jeff!B4 -> Arno : Jeff | H8: =Jeff!P25 -> 250
B9: 600 | F9: 9 | G9: =PADT!B3&PADT!B4 -> Filip : PADT | H9: =PADT!P25 -> 350
B10: 550 | F10: 10 | G10: =Paperboys!B3&Paperboys!B4 -> Tom : Paperboys* | H10: =Paperboys!P25 -> 300
B11: 500 | F11: 11 | G11: ='Il Krieperi Disoccupato'!B3&'Il Krieperi Disoccupato'!B4 -> Robin : Il Krieperi Disoccupato*** | H11: ='Il Krieperi Disoccupato'!P25 -> 250
B12: 450 | F12: 12 | G12: ='The Dolphen'!B3&'The Dolphen'!B4 -> Pieter : The Dolphen | H12: ='The Dolphen'!P25 -> 250
B13: 400 | F13: 13 | G13: ='Squadra Parcheggio'!B3&'Squadra Parcheggio'!B4 -> Bart : Squadra Parcheggio | H13: ='Squadra Parcheggio'!P25 -> 300
B14: 350 | F14: 14 | G14: =WELK!B3&WELK!B4 -> Ronny : WELK* | H14: =WELK!P25 -> 150
B15: 300 | F15: 15 | G15: ='De Bakkers'!B3&'De Bakkers'!B4 -> Guy : De Bakkers | H15: ='De Bakkers'!P25 -> 350
B16: 250
B17: 200
B18: 150
B19: 100
B20: 75
B21: 50
B22: 40
B23: 30
B24: 20
B25: 10

Sheet Forli-Imola
B1: 1500 | F1: 1 | G1: ='De VACCAreurs'!B3&'De VACCAreurs'!B4 -> Sven : De VACCAreurs**** | H1: ='De VACCAreurs'!Q25 -> 150
B2: 1300 | F2: 2 | G2: ='De Freddies'!B3&'De Freddies'!B4 -> Fred : De Freddies | H2: ='De Freddies'!Q25 -> 250
B3: 1100 | F3: 3 | G3: ='FC RAFTEN'!B3&'FC RAFTEN'!B4 -> Raf : FC RAFTEN** | H3: ='FC RAFTEN'!Q25 -> 250
B4: 1000 | F4: 4 | G4: ='De Roze 12'!B3&'De Roze 12'!B4 -> Janes : De Roze 12* | H4: ='De Roze 12'!Q25 -> 0
B5: 900 | F5: 5 | G5: ='Le Capre Di Montagna'!B3&'Le Capre Di Montagna'!B4 -> Joik : Le Capre Di Montagna**** | H5: ='Le Capre Di Montagna'!Q25 -> 250
B6: 800 | F6: 6 | G6: ='De Roze Janetten'!B3&'De Roze Janetten'!B4 -> Tim : De Roze Janetten | H6: ='De Roze Janetten'!Q25 -> 150
B7: 700 | F7: 7 | G7: =U!B3&U!B4 -> Ollie : U**** | H7: =U!Q25 -> 250
B8: 650 | F8: 8 | G8: =Jeff!B3&Jeff!B4 -> Arno : Jeff | H8: =Jeff!Q25 -> 150
B9: 600 | F9: 9 | G9: =PADT!B3&PADT!B4 -> Filip : PADT | H9: =PADT!Q25 -> 250
B10: 550 | F10: 10 | G10: =Paperboys!B3&Paperboys!B4 -> Tom : Paperboys* | H10: =Paperboys!Q25 -> 100
B11: 500 | F11: 11 | G11: ='Il Krieperi Disoccupato'!B3&'Il Krieperi Disoccupato'!B4 -> Robin : Il Krieperi Disoccupato*** | H11: ='Il Krieperi Disoccupato'!Q25 -> 150
B12: 450 | F12: 12 | G12: ='The Dolphen'!B3&'The Dolphen'!B4 -> Pieter : The Dolphen | H12: ='The Dolphen'!Q25 -> 150
B13: 400 | F13: 13 | G13: ='Squadra Parcheggio'!B3&'Squadra Parcheggio'!B4 -> Bart : Squadra Parcheggio | H13: ='Squadra Parcheggio'!Q25 -> 100
B14: 350 | F14: 14 | G14: =WELK!B3&WELK!B4 -> Ronny : WELK* | H14: =WELK!Q25 -> 150
B15: 300 | F15: 15 | G15: ='De Bakkers'!B3&'De Bakkers'!B4 -> Guy : De Bakkers | H15: ='De Bakkers'!Q25 -> 250
B16: 250
B17: 200
B18: 150
B19: 100
B20: 75
B21: 50
B22: 40
B23: 30
B24: 20
B25: 10

Sheet Imola-Vicenza
B1: 1500 | F1: 1 | G1: ='De VACCAreurs'!B3&'De VACCAreurs'!B4 -> Sven : De VACCAreurs**** | H1: ='De VACCAreurs'!R25 -> 450
B2: 1300 | F2: 2 | G2: ='De Freddies'!B3&'De Freddies'!B4 -> Fred : De Freddies | H2: ='De Freddies'!R25 -> 250
B3: 1100 | F3: 3 | G3: ='FC RAFTEN'!B3&'FC RAFTEN'!B4 -> Raf : FC RAFTEN** | H3: ='FC RAFTEN'!R25 -> 350
B4: 1000 | F4: 4 | G4: ='De Roze 12'!B3&'De Roze 12'!B4 -> Janes : De Roze 12* | H4: ='De Roze 12'!R25 -> 300
B5: 900 | F5: 5 | G5: ='Le Capre Di Montagna'!B3&'Le Capre Di Montagna'!B4 -> Joik : Le Capre Di Montagna**** | H5: ='Le Capre Di Montagna'!R25 -> 650
B6: 800 | F6: 6 | G6: ='De Roze Janetten'!B3&'De Roze Janetten'!B4 -> Tim : De Roze Janetten | H6: ='De Roze Janetten'!R25 -> 550
B7: 700 | F7: 7 | G7: =U!B3&U!B4 -> Ollie : U**** | H7: =U!R25 -> 550
B8: 650 | F8: 8 | G8: =Jeff!B3&Jeff!B4 -> Arno : Jeff | H8: =Jeff!R25 -> 450
B9: 600 | F9: 9 | G9: =PADT!B3&PADT!B4 -> Filip : PADT | H9: =PADT!R25 -> 350
B10: 550 | F10: 10 | G10: =Paperboys!B3&Paperboys!B4 -> Tom : Paperboys* | H10: =Paperboys!R25 -> 200
B11: 500 | F11: 11 | G11: ='Il Krieperi Disoccupato'!B3&'Il Krieperi Disoccupato'!B4 -> Robin : Il Krieperi Disoccupato*** | H11: ='Il Krieperi Disoccupato'!R25 -> 550
B12: 450 | F12: 12 | G12: ='The Dolphen'!B3&'The Dolphen'!B4 -> Pieter : The Dolphen | H12: ='The Dolphen'!R25 -> 350
B13: 400 | F13: 13 | G13: ='Squadra Parcheggio'!B3&'Squadra Parcheggio'!B4 -> Bart : Squadra Parcheggio | H13: ='Squadra Parcheggio'!R25 -> 200
B14: 350 | F14: 14 | G14: =WELK!B3&WELK!B4 -> Ronny : WELK* | H14: =WELK!R25 -> 350
B15: 300 | F15: 15 | G15: ='De Bakkers'!B3&'De Bakkers'!B4 -> Guy : De Bakkers | H15: ='De Bakkers'!R25 -> 150
B16: 250
B17: 200
B18: 150
B19: 100
B20: 75
B21: 50
B22: 40
B23: 30
B24: 20
B25: 10

Sheet Montecchio Maggiore-Jesolo
B1: 1500 | F1: 1 | G1: ='De VACCAreurs'!B3&'De VACCAreurs'!B4 -> Sven : De VACCAreurs**** | H1: ='De VACCAreurs'!S25 -> 0
B2: 1300 | F2: 2 | G2: ='De Freddies'!B3&'De Freddies'!B4 -> Fred : De Freddies | H2: ='De Freddies'!S25 -> 0
B3: 1100 | F3: 3 | G3: ='FC RAFTEN'!B3&'FC RAFTEN'!B4 -> Raf : FC RAFTEN** | H3: ='FC RAFTEN'!S25 -> 0
B4: 1000 | F4: 4 | G4: ='De Roze 12'!B3&'De Roze 12'!B4 -> Janes : De Roze 12* | H4: ='De Roze 12'!S25 -> 0
B5: 900 | F5: 5 | G5: ='Le Capre Di Montagna'!B3&'Le Capre Di Montagna'!B4 -> Joik : Le Capre Di Montagna**** | H5: ='Le Capre Di Montagna'!S25 -> 0
B6: 800 | F6: 6 | G6: ='De Roze Janetten'!B3&'De Roze Janetten'!B4 -> Tim : De Roze Janetten | H6: ='De Roze Janetten'!S25 -> 0
B7: 700 | F7: 7 | G7: =U!B3&U!B4 -> Ollie : U**** | H7: =U!S25 -> 0
B8: 650 | F8: 8 | G8: =Jeff!B3&Jeff!B4 -> Arno : Jeff | H8: =Jeff!S25 -> 0
B9: 600 | F9: 9 | G9: =PADT!B3&PADT!B4 -> Filip : PADT | H9: =PADT!S25 -> 0
B10: 550 | F10: 10 | G10: =Paperboys!B3&Paperboys!B4 -> Tom : Paperboys* | H10: =Paperboys!S25 -> 0
B11: 500 | F11: 11 | G11: ='Il Krieperi Disoccupato'!B3&'Il Krieperi Disoccupato'!B4 -> Robin : Il Krieperi Disoccupato*** | H11: ='Il Krieperi Disoccupato'!S25 -> 0
B12: 450 | F12: 12 | G12: ='The Dolphen'!B3&'The Dolphen'!B4 -> Pieter : The Dolphen | H12: ='The Dolphen'!S25 -> 0
B13: 400 | F13: 13 | G13: ='Squadra Parcheggio'!B3&'Squadra Parcheggio'!B4 -> Bart : Squadra Parcheggio | H13: ='Squadra Parcheggio'!S25 -> 0
B14: 350 | F14: 14 | G14: =WELK!B3&WELK!B4 -> Ronny : WELK* | H14: =WELK!S25 -> 0
B15: 300 | F15: 15 | G15: ='De Bakkers'!B3&'De Bakkers'!B4 -> Guy : De Bakkers | H15: ='De Bakkers'!S25 -> 0
B16: 250
B17: 200
B18: 150
B19: 100
B20: 75
B21: 50
B22: 40
B23: 30
B24: 20
B25: 10

Sheet Treviso-Valdobbiadene
B1: 1500 | F1: 1 | G1: ='De VACCAreurs'!B3&'De VACCAreurs'!B4 -> Sven : De VACCAreurs**** | H1: ='De VACCAreurs'!T25 -> 0
B2: 1300 | F2: 2 | G2: ='De Freddies'!B3&'De Freddies'!B4 -> Fred : De Freddies | H2: ='De Freddies'!T25 -> 0
B3: 1100 | F3: 3 | G3: ='FC RAFTEN'!B3&'FC RAFTEN'!B4 -> Raf : FC RAFTEN** | H3: ='FC RAFTEN'!T25 -> 0
B4: 1000 | F4: 4 | G4: ='De Roze 12'!B3&'De Roze 12'!B4 -> Janes : De Roze 12* | H4: ='De Roze 12'!T25 -> 0
B5: 900 | F5: 5 | G5: ='Le Capre Di Montagna'!B3&'Le Capre Di Montagna'!B4 -> Joik : Le Capre Di Montagna**** | H5: ='Le Capre Di Montagna'!T25 -> 0
B6: 800 | F6: 6 | G6: ='De Roze Janetten'!B3&'De Roze Janetten'!B4 -> Tim : De Roze Janetten | H6: ='De Roze Janetten'!T25 -> 0
B7: 700 | F7: 7 | G7: =U!B3&U!B4 -> Ollie : U**** | H7: =U!T25 -> 0
B8: 650 | F8: 8 | G8: =Jeff!B3&Jeff!B4 -> Arno : Jeff | H8: =Jeff!T25 -> 0
B9: 600 | F9: 9 | G9: =PADT!B3&PADT!B4 -> Filip : PADT | H9: =PADT!T25 -> 0
B10: 550 | F10: 10 | G10: =Paperboys!B3&Paperboys!B4 -> Tom : Paperboys* | H10: =Paperboys!T25 -> 0
B11: 500 | F11: 11 | G11: ='Il Krieperi Disoccupato'!B3&'Il Krieperi Disoccupato'!B4 -> Robin : Il Krieperi Disoccupato*** | H11: ='Il Krieperi Disoccupato'!T25 -> 0
B12: 450 | F12: 12 | G12: ='The Dolphen'!B3&'The Dolphen'!B4 -> Pieter : The Dolphen | H12: ='The Dolphen'!T25 -> 0
B13: 400 | F13: 13 | G13: ='Squadra Parcheggio'!B3&'Squadra Parcheggio'!B4 -> Bart : Squadra Parcheggio | H13: ='Squadra Parcheggio'!T25 -> 0
B14: 350 | F14: 14 | G14: =WELK!B3&WELK!B4 -> Ronny : WELK* | H14: =WELK!T25 -> 0
B15: 300 | F15: 15 | G15: ='De Bakkers'!B3&'De Bakkers'!B4 -> Guy : De Bakkers | H15: ='De Bakkers'!T25 -> 0
B16: 250
B17: 200
B18: 150
B19: 100
B20: 75
B21: 50
B22: 40
B23: 30
B24: 20
B25: 10

Sheet Marostica-Madonna
B1: 1500 | F1: 1 | G1: ='De VACCAreurs'!B3&'De VACCAreurs'!B4 -> Sven : De VACCAreurs**** | H1: ='De VACCAreurs'!U25 -> 0
B2: 1300 | F2: 2 | G2: ='De Freddies'!B3&'De Freddies'!B4 -> Fred : De Freddies | H2: ='De Freddies'!U25 -> 0
B3: 1100 | F3: 3 | G3: ='FC RAFTEN'!B3&'FC RAFTEN'!B4 -> Raf : FC RAFTEN** | H3: ='FC RAFTEN'!U25 -> 0
B4: 1000 | F4: 4 | G4: ='De Roze 12'!B3&'De Roze 12'!B4 -> Janes : De Roze 12* | H4: ='De Roze 12'!U25 -> 0
B5: 900 | F5: 5 | G5: ='Le Capre Di Montagna'!B3&'Le Capre Di Montagna'!B4 -> Joik : Le Capre Di Montagna**** | H5: ='Le Capre Di Montagna'!U25 -> 0
B6: 800 | F6: 6 | G6: ='De Roze Janetten'!B3&'De Roze Janetten'!B4 -> Tim : De Roze Janetten | H6: ='De Roze Janetten'!U25 -> 0
B7: 700 | F7: 7 | G7: =U!B3&U!B4 -> Ollie : U**** | H7: =U!U25 -> 0
B8: 650 | F8: 8 | G8: =Jeff!B3&Jeff!B4 -> Arno : Jeff | H8: =Jeff!U25 -> 0
B9: 600 | F9: 9 | G9: =PADT!B3&PADT!B4 -> Filip : PADT | H9: =PADT!U25 -> 0
B10: 550 | F10: 10 | G10: =Paperboys!B3&Paperboys!B4 -> Tom : Paperboys* | H10: =Paperboys!U25 -> 0
B11: 500 | F11: 11 | G11: ='Il Krieperi Disoccupato'!B3&'Il Krieperi Disoccupato'!B4 -> Robin : Il Krieperi Disoccupato*** | H11: ='Il Krieperi Disoccupato'!U25 -> 0
B12: 450 | F12: 12 | G12: ='The Dolphen'!B3&'The Dolphen'!B4 -> Pieter : The Dolphen | H12: ='The Dolphen'!U25 -> 0
B13: 400 | F13: 13 | G13: ='Squadra Parcheggio'!B3&'Squadra Parcheggio'!B4 -> Bart : Squadra Parcheggio | H13: ='Squadra Parcheggio'!U25 -> 0
B14: 350 | F14: 14 | G14: =WELK!B3&WELK!B4 -> Ronny : WELK* | H14: =WELK!U25 -> 0
B15: 300 | F15: 15 | G15: ='De Bakkers'!B3&'De Bakkers'!B4 -> Guy : De Bakkers | H15: ='De Bakkers'!U25 -> 0
B16: 250
B17: 200
B18: 150
B19: 100
B20: 75
B21: 50
B22: 40
B23: 30
B24: 20
B25: 10

Sheet Pinzolo-Aprica
B1: 1500 | F1: 1 | G1: ='De VACCAreurs'!B3&'De VACCAreurs'!B4 -> Sven : De VACCAreurs**** | H1: ='De VACCAreurs'!V25 -> 0
B2: 1300 | F2: 2 | G2: ='De Freddies'!B3&'De Freddies'!B4 -> Fred : De Freddies | H2: ='De Freddies'!V25 -> 0
B3: 1100 | F3: 3 | G3: ='FC RAFTEN'!B3&'FC RAFTEN'!B4 -> Raf : FC RAFTEN** | H3: ='FC RAFTEN'!V25 -> 0
B4: 1000 | F4: 4 | G4: ='De Roze 12'!B3&'De Roze 12'!B4 -> Janes : De Roze 12* | H4: ='De Roze 12'!V25 -> 0
B5: 900 | F5: 5 | G5: ='Le Capre Di Montagna'!B3&'Le Capre Di Montagna'!B4 -> Joik : Le Capre Di Montagna**** | H5: ='Le Capre Di Montagna'!V25 -> 0
B6: 800 | F6: 6 | G6: ='De Roze Janetten'!B3&'De Roze Janetten'!B4 -> Tim : De Roze Janetten | H6: ='De Roze Janetten'!V25 -> 0
B7: 700 | F7: 7 | G7: =U!B3&U!B4 -> Ollie : U**** | H7: =U!V25 -> 0
B8: 650 | F8: 8 | G8: =Jeff!B3&Jeff!B4 -> Arno : Jeff | H8: =Jeff!V25 -> 0
B9: 600 | F9: 9 | G9: =PADT!B3&PADT!B4 -> Filip : PADT | H9: =PADT!V25 -> 0
B10: 550 | F10: 10 | G10: =Paperboys!B3&Paperboys!B4 -> Tom : Paperboys* | H10: =Paperboys!V25 -> 0
B11: 500 | F11: 11 | G11: ='Il Krieperi Disoccupato'!B3&'Il Krieperi Disoccupato'!B4 -> Robin : Il Krieperi Disoccupato*** | H11: ='Il Krieperi Disoccupato'!V25 -> 0
B12: 450 | F12: 12 | G12: ='The Dolphen'!B3&'The Dolphen'!B4 -> Pieter : The Dolphen | H12: ='The Dolphen'!V25 -> 0
B13: 400 | F13: 13 | G13: ='Squadra Parcheggio'!B3&'Squadra Parcheggio'!B4 -> Bart : Squadra Parcheggio | H13: ='Squadra Parcheggio'!V25 -> 0
B14: 350 | F14: 14 | G14: =WELK!B3&WELK!B4 -> Ronny : WELK* | H14: =WELK!V25 -> 0
B15: 300 | F15: 15 | G15: ='De Bakkers'!B3&'De Bakkers'!B4 -> Guy : De Bakkers | H15: ='De Bakkers'!V25 -> 0
B16: 250
B17: 200
B18: 150
B19: 100
B20: 75
B21: 50
B22: 40
B23: 30
B24: 20
B25: 10

Sheet Tirano-Lugano
B1: 1500 | F1: 1 | G1: ='De VACCAreurs'!B3&'De VACCAreurs'!B4 -> Sven : De VACCAreurs**** | H1: ='De VACCAreurs'!W25 -> 0
B2: 1300 | F2: 2 | G2: ='De Freddies'!B3&'De Freddies'!B4 -> Fred : De Freddies | H2: ='De Freddies'!W25 -> 0
B3: 1100 | F3: 3 | G3: ='FC RAFTEN'!B3&'FC RAFTEN'!B4 -> Raf : FC RAFTEN** | H3: ='FC RAFTEN'!W25 -> 0
B4: 1000 | F4: 4 | G4: ='De Roze 12'!B3&'De Roze 12'!B4 -> Janes : De Roze 12* | H4: ='De Roze 12'!W25 -> 0
B5: 900 | F5: 5 | G5: ='Le Capre Di Montagna'!B3&'Le Capre Di Montagna'!B4 -> Joik : Le Capre Di Montagna**** | H5: ='Le Capre Di Montagna'!W25 -> 0
B6: 800 | F6: 6 | G6: ='De Roze Janetten'!B3&'De Roze Janetten'!B4 -> Tim : De Roze Janetten | H6: ='De Roze Janetten'!W25 -> 0
B7: 700 | F7: 7 | G7: =U!B3&U!B4 -> Ollie : U**** | H7: =U!W25 -> 0
B8: 650 | F8: 8 | G8: =Jeff!B3&Jeff!B4 -> Arno : Jeff | H8: =Jeff!W25 -> 0
B9: 600 | F9: 9 | G9: =PADT!B3&PADT!B4 -> Filip : PADT | H9: =PADT!W25 -> 0
B10: 550 | F10: 10 | G10: =Paperboys!B3&Paperboys!B4 -> Tom : Paperboys* | H10: =Paperboys!W25 -> 0
B11: 500 | F11: 11 | G11: ='Il Krieperi Disoccupato'!B3&'Il Krieperi Disoccupato'!B4 -> Robin : Il Krieperi Disoccupato*** | H11: ='Il Krieperi Disoccupato'!W25 -> 0
B12: 450 | F12: 12 | G12: ='The Dolphen'!B3&'The Dolphen'!B4 -> Pieter : The Dolphen | H12: ='The Dolphen'!W25 -> 0
B13: 400 | F13: 13 | G13: ='Squadra Parcheggio'!B3&'Squadra Parcheggio'!B4 -> Bart : Squadra Parcheggio | H13: ='Squadra Parcheggio'!W25 -> 0
B14: 350 | F14: 14 | G14: =WELK!B3&WELK!B4 -> Ronny : WELK* | H14: =WELK!W25 -> 0
B15: 300 | F15: 15 | G15: ='De Bakkers'!B3&'De Bakkers'!B4 -> Guy : De Bakkers | H15: ='De Bakkers'!W25 -> 0
B16: 250
B17: 200
B18: 150
B19: 100
B20: 75
B21: 50
B22: 40
B23: 30
B24: 20
B25: 10

Sheet Melide-Verbania
B1: 1500 | F1: 1 | G1: ='De VACCAreurs'!B3&'De VACCAreurs'!B4 -> Sven : De VACCAreurs**** | H1: ='De VACCAreurs'!X25 -> 0
B2: 1300 | F2: 2 | G2: ='De Freddies'!B3&'De Freddies'!B4 -> Fred : De Freddies | H2: ='De Freddies'!X25 -> 0
B3: 1100 | F3: 3 | G3: ='FC RAFTEN'!B3&'FC RAFTEN'!B4 -> Raf : FC RAFTEN** | H3: ='FC RAFTEN'!X25 -> 0
B4: 1000 | F4: 4 | G4: ='De Roze 12'!B3&'De Roze 12'!B4 -> Janes : De Roze 12* | H4: ='De Roze 12'!X25 -> 0
B5: 900 | F5: 5 | G5: ='Le Capre Di Montagna'!B3&'Le Capre Di Montagna'!B4 -> Joik : Le Capre Di Montagna**** | H5: ='Le Capre Di Montagna'!X25 -> 0
B6: 800 | F6: 6 | G6: ='De Roze Janetten'!B3&'De Roze Janetten'!B4 -> Tim : De Roze Janetten | H6: ='De Roze Janetten'!X25 -> 0
B7: 700 | F7: 7 | G7: =U!B3&U!B4 -> Ollie : U**** | H7: =U!X25 -> 0
B8: 650 | F8: 8 | G8: =Jeff!B3&Jeff!B4 -> Arno : Jeff | H8: =Jeff!X25 -> 0
B9: 600 | F9: 9 | G9: =PADT!B3&PADT!B4 -> Filip : PADT | H9: =PADT!X25 -> 0
B10: 550 | F10: 10 | G10: =Paperboys!B3&Paperboys!B4 -> Tom : Paperboys* | H10: =Paperboys!X25 -> 0
B11: 500 | F11: 11 | G11: ='Il Krieperi Disoccupato'!B3&'Il Krieperi Disoccupato'!B4 -> Robin : Il Krieperi Disoccupato*** | H11: ='Il Krieperi Disoccupato'!X25 -> 0
B12: 450 | F12: 12 | G12: ='The Dolphen'!B3&'The Dolphen'!B4 -> Pieter : The Dolphen | H12: ='The Dolphen'!X25 -> 0
B13: 400 | F13: 13 | G13: ='Squadra Parcheggio'!B3&'Squadra Parcheggio'!B4 -> Bart : Squadra Parcheggio | H13: ='Squadra Parcheggio'!X25 -> 0
B14: 350 | F14: 14 | G14: =WELK!B3&WELK!B4 -> Ronny : WELK* | H14: =WELK!X25 -> 0
B15: 300 | F15: 15 | G15: ='De Bakkers'!B3&'De Bakkers'!B4 -> Guy : De Bakkers | H15: ='De Bakkers'!X25 -> 0
B16: 250
B17: 200
B18: 150
B19: 100
B20: 75
B21: 50
B22: 40
B23: 30
B24: 20
B25: 10

Sheet Gravellona Toce-Cervinia
B1: 1500 | F1: 1 | G1: ='De VACCAreurs'!B3&'De VACCAreurs'!B4 -> Sven : De VACCAreurs**** | H1: ='De VACCAreurs'!Y25 -> 0
B2: 1300 | F2: 2 | G2: ='De Freddies'!B3&'De Freddies'!B4 -> Fred : De Freddies | H2: ='De Freddies'!Y25 -> 0
B3: 1100 | F3: 3 | G3: ='FC RAFTEN'!B3&'FC RAFTEN'!B4 -> Raf : FC RAFTEN** | H3: ='FC RAFTEN'!Y25 -> 0
B4: 1000 | F4: 4 | G4: ='De Roze 12'!B3&'De Roze 12'!B4 -> Janes : De Roze 12* | H4: ='De Roze 12'!Y25 -> 0
B5: 900 | F5: 5 | G5: ='Le Capre Di Montagna'!B3&'Le Capre Di Montagna'!B4 -> Joik : Le Capre Di Montagna**** | H5: ='Le Capre Di Montagna'!Y25 -> 0
B6: 800 | F6: 6 | G6: ='De Roze Janetten'!B3&'De Roze Janetten'!B4 -> Tim : De Roze Janetten | H6: ='De Roze Janetten'!Y25 -> 0
B7: 700 | F7: 7 | G7: =U!B3&U!B4 -> Ollie : U**** | H7: =U!Y25 -> 0
B8: 650 | F8: 8 | G8: =Jeff!B3&Jeff!B4 -> Arno : Jeff | H8: =Jeff!Y25 -> 0
B9: 600 | F9: 9 | G9: =PADT!B3&PADT!B4 -> Filip : PADT | H9: =PADT!Y25 -> 0
B10: 550 | F10: 10 | G10: =Paperboys!B3&Paperboys!B4 -> Tom : Paperboys* | H10: =Paperboys!Y25 -> 0
B11: 500 | F11: 11 | G11: ='Il Krieperi Disoccupato'!B3&'Il Krieperi Disoccupato'!B4 -> Robin : Il Krieperi Disoccupato*** | H11: ='Il Krieperi Disoccupato'!Y25 -> 0
B12: 450 | F12: 12 | G12: ='The Dolphen'!B3&'The Dolphen'!B4 -> Pieter : The Dolphen | H12: ='The Dolphen'!Y25 -> 0
B13: 400 | F13: 13 | G13: ='Squadra Parcheggio'!B3&'Squadra Parcheggio'!B4 -> Bart : Squadra Parcheggio | H13: ='Squadra Parcheggio'!Y25 -> 0
B14: 350 | F14: 14 | G14: =WELK!B3&WELK!B4 -> Ronny : WELK* | H14: =WELK!Y25 -> 0
B15: 300 | F15: 15 | G15: ='De Bakkers'!B3&'De Bakkers'!B4 -> Guy : De Bakkers | H15: ='De Bakkers'!Y25 -> 0
B16: 250
B17: 200
B18: 150
B19: 100
B20: 75
B21: 50
B22: 40
B23: 30
B24: 20
B25: 10

Sheet Saint.Vincent-Sestriere
B1: 1500 | F1: 1 | G1: ='De VACCAreurs'!B3&'De VACCAreurs'!B4 -> Sven : De VACCAreurs**** | H1: ='De VACCAreurs'!Z25 -> 0
B2: 1300 | F2: 2 | G2: ='De Freddies'!B3&'De Freddies'!B4 -> Fred : De Freddies | H2: ='De Freddies'!Z25 -> 0
B3: 1100 | F3: 3 | G3: ='FC RAFTEN'!B3&'FC RAFTEN'!B4 -> Raf : FC RAFTEN** | H3: ='FC RAFTEN'!Z25 -> 0
B4: 1000 | F4: 4 | G4: ='De Roze 12'!B3&'De Roze 12'!B4 -> Janes : De Roze 12* | H4: ='De Roze 12'!Z25 -> 0
B5: 900 | F5: 5 | G5: ='Le Capre Di Montagna'!B3&'Le Capre Di Montagna'!B4 -> Joik : Le Capre Di Montagna**** | H5: ='Le Capre Di Montagna'!Z25 -> 0
B6: 800 | F6: 6 | G6: ='De Roze Janetten'!B3&'De Roze Janetten'!B4 -> Tim : De Roze Janetten | H6: ='De Roze Janetten'!Z25 -> 0
B7: 700 | F7: 7 | G7: =U!B3&U!B4 -> Ollie : U**** | H7: =U!Z25 -> 0
B8: 650 | F8: 8 | G8: =Jeff!B3&Jeff!B4 -> Arno : Jeff | H8: =Jeff!Z25 -> 0
B9: 600 | F9: 9 | G9: =PADT!B3&PADT!B4 -> Filip : PADT | H9: =PADT!Z25 -> 0
B10: 550 | F10: 10 | G10: =Paperboys!B3&Paperboys!B4 -> Tom : Paperboys* | H10: =Paperboys!Z25 -> 0
B11: 500 | F11: 11 | G11: ='Il Krieperi Disoccupato'!B3&'Il Krieperi Disoccupato'!B4 -> Robin : Il Krieperi Disoccupato*** | H11: ='Il Krieperi Disoccupato'!Z25 -> 0
B12: 450 | F12: 12 | G12: ='The Dolphen'!B3&'The Dolphen'!B4 -> Pieter : The Dolphen | H12: ='The Dolphen'!Z25 -> 0
B13: 400 | F13: 13 | G13: ='Squadra Parcheggio'!B3&'Squadra Parcheggio'!B4 -> Bart : Squadra Parcheggio | H13: ='Squadra Parcheggio'!Z25 -> 0
B14: 350 | F14: 14 | G14: =WELK!B3&WELK!B4 -> Ronny : WELK* | H14: =WELK!Z25 -> 0
B15: 300 | F15: 15 | G15: ='De Bakkers'!B3&'De Bakkers'!B4 -> Guy : De Bakkers | H15: ='De Bakkers'!Z25 -> 0
B16: 250
B17: 200
B18: 150
B19: 100
B20: 75
B21: 50
B22: 40
B23: 30
B24: 20
B25: 10

Sheet Turijn-Milaan
B1: 1500 | F1: 1 | G1: ='De VACCAreurs'!B3&'De VACCAreurs'!B4 -> Sven : De VACCAreurs**** | H1: ='De VACCAreurs'!AA25 -> 0
B2: 1300 | F2: 2 | G2: ='De Freddies'!B3&'De Freddies'!B4 -> Fred : De Freddies | H2: ='De Freddies'!AA25 -> 0
B3: 1100 | F3: 3 | G3: ='FC RAFTEN'!B3&'FC RAFTEN'!B4 -> Raf : FC RAFTEN** | H3: ='FC RAFTEN'!AA25 -> 0
B4: 1000 | F4: 4 | G4: ='De Roze 12'!B3&'De Roze 12'!B4 -> Janes : De Roze 12* | H4: ='De Roze 12'!AA25 -> 0
B5: 900 | F5: 5 | G5: ='Le Capre Di Montagna'!B3&'Le Capre Di Montagna'!B4 -> Joik : Le Capre Di Montagna**** | H5: ='Le Capre Di Montagna'!AA25 -> 0
B6: 800 | F6: 6 | G6: ='De Roze Janetten'!B3&'De Roze Janetten'!B4 -> Tim : De Roze Janetten | H6: ='De Roze Janetten'!AA25 -> 0
B7: 700 | F7: 7 | G7: =U!B3&U!B4 -> Ollie : U**** | H7: =U!AA25 -> 0
B8: 650 | F8: 8 | G8: =Jeff!B3&Jeff!B4 -> Arno : Jeff | H8: =Jeff!AA25 -> 0
B9: 600 | F9: 9 | G9: =PADT!B3&PADT!B4 -> Filip : PADT | H9: =PADT!AA25 -> 0
B10: 550 | F10: 10 | G10: =Paperboys!B3&Paperboys!B4 -> Tom : Paperboys* | H10: =Paperboys!AA25 -> 0
B11: 500 | F11: 11 | G11: ='Il Krieperi Disoccupato'!B3&'Il Krieperi Disoccupato'!B4 -> Robin : Il Krieperi Disoccupato*** | H11: ='Il Krieperi Disoccupato'!AA25 -> 0
B12: 450 | F12: 12 | G12: ='The Dolphen'!B3&'The Dolphen'!B4 -> Pieter : The Dolphen | H12: ='The Dolphen'!AA25 -> 0
B13: 400 | F13: 13 | G13: ='Squadra Parcheggio'!B3&'Squadra Parcheggio'!B4 -> Bart : Squadra Parcheggio | H13: ='Squadra Parcheggio'!AA25 -> 0
B14: 350 | F14: 14 | G14: =WELK!B3&WELK!B4 -> Ronny : WELK* | H14: =WELK!AA25 -> 0
B15: 300 | F15: 15 | G15: ='De Bakkers'!B3&'De Bakkers'!B4 -> Guy : De Bakkers | H15: ='De Bakkers'!AA25 -> 0
B16: 250
B17: 200
B18: 150
B19: 100
B20: 75
B21: 50
B22: 40
B23: 30
B24: 20
B25: 10

Sheet Eindklassement renners
B7: 5000 | F7: 1 | G7: =Pronostiekers!A3 -> : Sven**** | H7: ='De VACCAreurs'!AB25 -> 1250
B8: 3750 | F8: 2 | G8: =Pronostiekers!A13 -> : Fred | H8: ='Il Krieperi Disoccupato'!AB25 -> 1550
B9: 3000 | F9: 3 | G9: =Pronostiekers!A5 -> : Raf** | H9: =U!AB25 -> 2150
B10: 2750 | F10: 4 | G10: =Pronostiekers!A9 -> : Janes* | H10: =Jeff!AB25 -> 1150
B11: 2500 | F11: 5 | G11: =Pronostiekers!A2 -> : Joik**** | H11: =PADT!AB25 -> 1550
B12: 2250 | F12: 6 | G12: =Pronostiekers!A12 -> : Tim | H12: =WELK!AB25 -> 1250
B13: 2000 | F13: 7 | G13: =Pronostiekers!A1 -> : Ollie**** | H13: ='De Roze 12'!AB25 -> 1000
B14: 1750 | F14: 8 | G14: =Pronostiekers!A21 -> : Arno | H14: ='FC RAFTEN'!AB25 -> 1550
B15: 1500 | F15: 9 | G15: =Pronostiekers!A17 -> : Filip | H15: ='Le Capre Di Montagna'!AB25 -> 1950
B16: 1250 | F16: 10 | G16: =Pronostiekers!A10 -> : Tom* | H16: ='De Freddies'!AB25 -> 1550
B17: 1160 | F17: 11 | G17: =Pronostiekers!A4 -> : Robin*** | H17: ='Squadra Parcheggio'!AB25 -> 900
B18: 1070 | F18: 12 | G18: =Pronostiekers!A14 -> : Pieter | H18: =Paperboys!AB25 -> 900
B19: 990 | F19: 13 | G19: =Pronostiekers!A22 -> : Bart | H19: ='De Roze Janetten'!AB25 -> 1750
B20: 910 | F20: 14 | G20: =Pronostiekers!A11 -> : Ronny* | H20: ='The Dolphen'!AB25 -> 1250
B21: 830 | F21: 15 | G21: =Pronostiekers!A20 -> : Guy | H21: ='De Bakkers'!AB25 -> 1150
B22: 750
B23: 670
B24: 590
B25: 510
B26: 430
B27: 350
B28: 270
B29: 190
B30: 110
B31: 100
B32: 100
B33: 100
B34: 100
B35: 100
B36: 100
B37: 100
B38: 100
B39: 100
B40: 100
B41: 100
B42: 100
B43: 100
B44: 100
B45: 100
B46: 100
B47: 100
B48: 100
B49: 100
B50: 100
B51: 100
B52: 100
B53: 100
B54: 100
B55: 100
B56: 100
B57: 100
B58: 100
B59: 100
B60: 100
B61: 100
B62: 100
B63: 100
B64: 100
B65: 100
B66: 100
B67: 100
B68: 100
B69: 100
B70: 100
B71: 100
B72: 100
B73: 100
B74: 100
B75: 100
B76: 100
B77: 100
B78: 100
B79: 100
B80: 100
B81: 100
B82: 100
B83: 100
B84: 100
B85: 100
B86: 100
B87: 100
B88: 100
B89: 100
B90: 100
B91: 100
B92: 100
B93: 100
B94: 100
B95: 100
B96: 100
B97: 100
B98: 100
B99: 100
B100: 100
B101: 100
B102: 100
B103: 100
B104: 100
B105: 100
B106: 100
B107: 100
B108: 100
B109: 100
B110: 100
B111: 100
B112: 100
B113: 100
B114: 100
B115: 100
B116: 100
B117: 100
B118: 100
B119: 100
B120: 100
B121: 100
B122: 100
B123: 100
B124: 100
B125: 100
B126: 100
B127: 100
B128: 100
B129: 100
B130: 100
B131: 100
B132: 100
B133: 100
B134: 100
B135: 100
B136: 100
B137: 100
B138: 100
B139: 100
B140: 100
B141: 100
B142: 100
B143: 100
B144: 100
B145: 100
B146: 100
B147: 100
B148: 100
B149: 100
B150: 100
B151: 100
B152: 100
B153: 100
B154: 100
B155: 100
B156: 100
B157: 100
B158: 100
B159: 100
B160: 100
B161: 100
B162: 100
B163: 100
B164: 100
B165: 100
B166: 100
B167: 100
B168: 100
B169: 100
B170: 100
B171: 100
B172: 100
B173: 100
B174: 100
B175: 100
B176: 100
B177: 100
B178: 100
B179: 100
B180: 100
B181: 100
B182: 100
B183: 100
B184: 100
B185: 100
B186: 100
B187: 100
B188: 100
B189: 100
B190: 100
B191: 100
B192: 100
B193: 100
B194: 100
B195: 100
B196: 100
B197: 100
B198: 100
B199: 100
B200: 100
B201: 100
B202: 100
B203: 100
B204: 100

Sheet Pronostiekers
A1: : Ollie****
A2: : Joik****
A3: : Sven****
A4: : Robin***
A5: : Raf**
A6: : Luciano**
A7: : Kenny*
A8: : Fré*
A9: : Janes*
A10: : Tom*
A11: : Ronny*
A12: : Tim
A13: : Fred
A14: : Pieter
A15: : Barbara
A16: : Joppe
A17: : Filip
A18: : Bram
A19: : Hannes
A20: : Guy
A21: : Arno
A22: : Bart

Sheet Deelnemende Renners
B1: RIT | C1: 1 | D1: 2 | E1: 3 | F1: 4 | G1: 5 | H1: 6 | I1: 7 | J1: 8 | K1: 9 | L1: 10 | M1: 11 | N1: 12 | O1: 13 | P1: 14 | Q1: 15 | R1: 16 | S1: 17 | T1: 18 | U1: 19 | V1: 20 | W1: 21 | X1: TOTAAL | Z1: Roze
A2: 502 | B2: =IF(A2="","",VLOOKUP(A2,'Rennerslijst Giro'!A$2:B$620,2,0)) -> CONTADOR VELASCO Alberto | D2: 20 | E2: 100 | F2: 600 | G2: 1000 | J2: 900 | K2: 500 | M2: 75 | N2: 1300 | X2: =SUM(C2:W2) -> 4495 | Z2: Berg
A3: 146 | B3: =IF(A3="","",VLOOKUP(A3,'Rennerslijst Giro'!A$2:B$620,2,0)) -> URAN URAN Rigoberto | D3: 250 | F3: 50 | G3: 200 | J3: 700 | N3: 500 | X3: =SUM(C3:W3) -> 1700 | Z3: Punten
A4: 473 | B4: =IF(A4="","",VLOOKUP(A4,'Rennerslijst Giro'!A$2:B$620,2,0)) -> PORTE Richie | D4: 40 | F4: 550 | G4: 900 | H4: 30 | J4: 800 | K4: 450 | N4: 450 | X4: 3220 | Z4: Jongere
A5: 3 | B5: =IF(A5="","",VLOOKUP(A5,'Rennerslijst Giro'!A$2:B$620,2,0)) -> POZZOVIVO Domenico | X5: 0
A6: 509 | B6: =IF(A6="","",VLOOKUP(A6,'Rennerslijst Giro'!A$2:B$620,2,0)) -> KREUZIGER Roman | D6: 400 | E6: 20 | F6: 400 | G6: 250 | J6: 100 | N6: 250 | X6: 1420
A7: 260 | B7: =IF(A7="","",VLOOKUP(A7,'Rennerslijst Giro'!A$2:B$620,2,0)) -> VAN DEN BROECK Jurgen | F7: 150 | J7: 250 | K7: 20 | M7: 150 | N7: 600 | X7: 1170
A8: 83 | B8: =IF(A8="","",VLOOKUP(A8,'Rennerslijst Giro'!A$2:B$620,2,0)) -> PIRAZZI Stefano | G8: 20 | K8: 100 | X8: 120
A9: 242 | B9: =IF(A9="","",VLOOKUP(A9,'Rennerslijst Giro'!A$2:B$620,2,0)) -> MODOLO Sacha | H9: 1100 | L9: 800 | X9: 1900
A10: 396 | B10: =IF(A10="","",VLOOKUP(A10,'Rennerslijst Giro'!A$2:B$620,2,0)) -> MEZGEC Luka | D10: 1000 | H10: 650 | L10: 650 | X10: 2300
A11: 533 | B11: =IF(A11="","",VLOOKUP(A11,'Rennerslijst Giro'!A$2:B$620,2,0)) -> NIZZOLO Giacomo | D11: 800 | H11: 900 | L11: 900 | X11: 2600
A12: 27 | B12: =IF(A12="","",VLOOKUP(A12,'Rennerslijst Giro'!A$2:B$620,2,0)) -> BETANCUR GOMEZ Carlos Alberto | I12: 30 | K12: 800 | M12: 1300 | N12: 650 | X12: 2780
A13: 237 | B13: =IF(A13="","",VLOOKUP(A13,'Rennerslijst Giro'!A$2:B$620,2,0)) -> FERRARI Roberto | X13: 0
A14: 50 | B14: =IF(A14="","",VLOOKUP(A14,'Rennerslijst Giro'!A$2:B$620,2,0)) -> ARU Fabio | D14: 450 | E14: 450 | F14: 800 | G14: 1100 | I14: 200 | J14: 1000 | K14: 550 | L14: 75 | M14: 50 | X14: 4675
A15: 232 | B15: =IF(A15="","",VLOOKUP(A15,'Rennerslijst Giro'!A$2:B$620,2,0)) -> NIEMIEC Przemyslaw | G15: 150 | X15: 150
A16: 451 | B16: =IF(A16="","",VLOOKUP(A16,'Rennerslijst Giro'!A$2:B$620,2,0)) -> KRUIJSWIJK Steven | J16: 10 | K16: 1300 | M16: 800 | N16: 20 | X16: 2130
A17: 322 | B17: =IF(A17="","",VLOOKUP(A17,'Rennerslijst Giro'!A$2:B$620,2,0)) -> MATTHEWS Michael | D17: 700 | E17: 1500 | H17: 200 | K17: 250 | M17: 250 | X17: 2900
A18: 101 | B18: =IF(A18="","",VLOOKUP(A18,'Rennerslijst Giro'!A$2:B$620,2,0)) -> CARUSO Damiano | D18: 30 | E18: 10 | F18: 200 | G18: 600 | I18: 250 | J18: 550 | K18: 75 | N18: 350 | X18: 2065
A19: 424 | B19: =IF(A19="","",VLOOKUP(A19,'Rennerslijst Giro'!A$2:B$620,2,0)) -> ZAKARIN Ilnur | M19: 1500 | X19: 1500
A20: 59 | B20: =IF(A20="","",VLOOKUP(A20,'Rennerslijst Giro'!A$2:B$620,2,0)) -> LANDA MEANA Mikel | F20: 40 | G20: 800 | J20: 1300 | K20: 400 | M20: 30 | N20: 550 | X20: 3120
A21: 236 | B21: =IF(A21="","",VLOOKUP(A21,'Rennerslijst Giro'!A$2:B$620,2,0)) -> ULISSI Diego | I21: 1500 | N21: 1100 | X21: 2600
A22: 85 | B22: =IF(A22="","",VLOOKUP(A22,'Rennerslijst Giro'!A$2:B$620,2,0)) -> RUFFONI Nicola | H22: 600 | L22: 600 | X22: 1200
A23: 478 | B23: =IF(A23="","",VLOOKUP(A23,'Rennerslijst Giro'!A$2:B$620,2,0)) -> KÖNIG Leopold | F23: 30 | G23: 400 | I23: 10 | J23: 350 | M23: 40 | N23: 200 | X23: 1030
A24: 254 | B24: =IF(A24="","",VLOOKUP(A24,'Rennerslijst Giro'!A$2:B$620,2,0)) -> GREIPEL André | D24: 1100 | H24: 1500 | L24: 700 | X24: 3300
A25: 312 | B25: =IF(A25="","",VLOOKUP(A25,'Rennerslijst Giro'!A$2:B$620,2,0)) -> COLLI Daniele | D25: 600 | X25: 600
A26: 319 | B26: =IF(A26="","",VLOOKUP(A26,'Rennerslijst Giro'!A$2:B$620,2,0)) -> STACCHIOTTI Riccardo | X26: 0
A27: 285 | B27: =IF(A27="","",VLOOKUP(A27,'Rennerslijst Giro'!A$2:B$620,2,0)) -> INTXAUSTI ELORRIAGA Beñat | J27: 1500 | M27: 1000 | X27: 2500
A28: 429 | B28: =IF(A28="","",VLOOKUP(A28,'Rennerslijst Giro'!A$2:B$620,2,0)) -> TROFIMOV Yury | F28: 100 | G28: 650 | J28: 40 | N28: 40 | X28: 830
A29: 332 | B29: =IF(A29="","",VLOOKUP(A29,'Rennerslijst Giro'!A$2:B$620,2,0)) -> YATES Simon | X29: 0
A30: 110 | B30: =IF(A30="","",VLOOKUP(A30,'Rennerslijst Giro'!A$2:B$620,2,0)) -> ATAPUMA HURTADO Jhon Darwin | F30: 450 | G30: 550 | J30: 300 | N30: 100 | X30: 1400
A31: 271 | B31: =IF(A31="","",VLOOKUP(A31,'Rennerslijst Giro'!A$2:B$620,2,0)) -> VERVAEKE Louis | X31: 0
A32: 358 | B32: =IF(A32="","",VLOOKUP(A32,'Rennerslijst Giro'!A$2:B$620,2,0)) -> FAVILLI Elia | E32: 350 | X32: 350
A33: 124 | B33: =IF(A33="","",VLOOKUP(A33,'Rennerslijst Giro'!A$2:B$620,2,0)) -> PATERSKI Maciej | M33: 650 | X33: 650
A34: 82 | B34: =IF(A34="","",VLOOKUP(A34,'Rennerslijst Giro'!A$2:B$620,2,0)) -> BATTAGLIN Enrico | E34: 650 | I34: 900 | N34: 900 | X34: 2450
A35: 34 | B35: =IF(A35="","",VLOOKUP(A35,'Rennerslijst Giro'!A$2:B$620,2,0)) -> APPOLLONIO Davide | D35: 650 | H35: 550 | I35: 500 | L35: 550 | X35: 2250
A36: 355 | B36: =IF(A36="","",VLOOKUP(A36,'Rennerslijst Giro'!A$2:B$620,2,0)) -> PETACCHI Alessandro | D36: 900 | H36: 800 | X36: 1700
A37: 477 | B37: =IF(A37="","",VLOOKUP(A37,'Rennerslijst Giro'!A$2:B$620,2,0)) -> VIVIANI Elia | D37: 1500 | H37: 700 | L37: 250 | X37: 2450
A38: 507 | B38: =IF(A38="","",VLOOKUP(A38,'Rennerslijst Giro'!A$2:B$620,2,0)) -> ROGERS Michael | G38: 30 | X38: 30
A39: 368 | B39: =IF(A39="","",VLOOKUP(A39,'Rennerslijst Giro'!A$2:B$620,2,0)) -> HESJEDAL Ryder | G39: 300 | J39: 150 | K39: 600 | M39: 700 | X39: 1750
A40: 207 | B40: =IF(A40="","",VLOOKUP(A40,'Rennerslijst Giro'!A$2:B$620,2,0)) -> PELUCCHI Matteo | H40: 1300 | X40: 1300
A41: 456 | B41: =IF(A41="","",VLOOKUP(A41,'Rennerslijst Giro'!A$2:B$620,2,0)) -> HOFLAND Moreno | D41: 1300 | H41: 500 | L41: 200 | X41: 2000
A42: 63 | B42: =IF(A42="","",VLOOKUP(A42,'Rennerslijst Giro'!A$2:B$620,2,0)) -> KANGERT Tanel | E42: 30 | X42: 30
A43: 298 | B43: =IF(A43="","",VLOOKUP(A43,'Rennerslijst Giro'!A$2:B$620,2,0)) -> ANTON HERNANDEZ Igor | X43: 0
A44: 262 | B44: =IF(A44="","",VLOOKUP(A44,'Rennerslijst Giro'!A$2:B$620,2,0)) -> MONFORT Maxime | F44: 75 | J44: 200 | N44: 50 | X44: 325
A45: 309 | B45: =IF(A45="","",VLOOKUP(A45,'Rennerslijst Giro'!A$2:B$620,2,0)) -> CUNEGO Damiano | F45: 20 | G45: 500 | J45: 600 | K45: 30 | N45: 30 | X45: 1180
A46: 284 | B46: =IF(A46="","",VLOOKUP(A46,'Rennerslijst Giro'!A$2:B$620,2,0)) -> LOBATO DEL VALLE Juan Jose | H46: 350 | I46: 1300 | L46: 400 | M46: 550 | X46: 2600
A47: 87 | B47: =IF(A47="","",VLOOKUP(A47,'Rennerslijst Giro'!A$2:B$620,2,0)) -> BARBIN Enrico | K47: 50 | X47: 50
A48: 431 | B48: =IF(A48="","",VLOOKUP(A48,'Rennerslijst Giro'!A$2:B$620,2,0)) -> PAOLINI Luca | E48: 800 | H48: 10 | X48: 810
A49: 294 | B49: =IF(A49="","",VLOOKUP(A49,'Rennerslijst Giro'!A$2:B$620,2,0)) -> AMADOR BIKKAZAKOVA Andrey | E49: 200 | F49: 250 | G49: 450 | J49: 400 | K49: 200 | M49: 100 | N49: 75 | X49: 1675
A50: 491 | B50: =IF(A50="","",VLOOKUP(A50,'Rennerslijst Giro'!A$2:B$620,2,0)) -> HENAO GOMEZ Sebastian | X50: 0
A51: 213 | B51: =IF(A51="","",VLOOKUP(A51,'Rennerslijst Giro'!A$2:B$620,2,0)) -> SARAMOTINS Aleksejs | X51: 0
A52: 117 | B52: =IF(A52="","",VLOOKUP(A52,'Rennerslijst Giro'!A$2:B$620,2,0)) -> ZABEL Rick | X52: 0
A53: 519 | B53: =IF(A53="","",VLOOKUP(A53,'Rennerslijst Giro'!A$2:B$620,2,0)) -> BASSO Ivan | X53: 0
A54: 549 | B54: =IF(A54="","",VLOOKUP(A54,'Rennerslijst Giro'!A$2:B$620,2,0)) -> VAN POPPEL Boy | X54: 0
A55: 327 | B55: =IF(A55="","",VLOOKUP(A55,'Rennerslijst Giro'!A$2:B$620,2,0)) -> CHAVES RUBIO Jhoan Esteban | F55: 900 | G55: 40 | X55: 940
A56: 30 | B56: =IF(A56="","",VLOOKUP(A56,'Rennerslijst Giro'!A$2:B$620,2,0)) -> PELLIZOTTI Franco | M56: 1100 | X56: 1100
A57: 529 | B57: =IF(A57="","",VLOOKUP(A57,'Rennerslijst Giro'!A$2:B$620,2,0)) -> PAULINHO Sergio Miguel Moreira | X57: 0
A58: 412 | B58: =IF(A58="","",VLOOKUP(A58,'Rennerslijst Giro'!A$2:B$620,2,0)) -> LUDVIGSSON Tobias | X58: 0
A59: 95 | B59: =IF(A59="","",VLOOKUP(A59,'Rennerslijst Giro'!A$2:B$620,2,0)) -> GILBERT Philippe | E59: 1100 | I59: 400 | L59: 40 | M59: 600 | N59: 1500 | X59: 3640
A60: 534 | B60: =IF(A60="","",VLOOKUP(A60,'Rennerslijst Giro'!A$2:B$620,2,0)) -> FELLINE Fabio | E60: 1300 | I60: 700 | K60: 150 | X60: 2150
A61: 333 | B61: =IF(A61="","",VLOOKUP(A61,'Rennerslijst Giro'!A$2:B$620,2,0)) -> WEENING Pieter | X61: 0
A62: 264 | B62: =IF(A62="","",VLOOKUP(A62,'Rennerslijst Giro'!A$2:B$620,2,0)) -> BAK Lars Ytting | X62: 0
A63: 106 | B63: =IF(A63="","",VLOOKUP(A63,'Rennerslijst Giro'!A$2:B$620,2,0)) -> KÜNG Stefan | L63: 10 | X63: 10
A64: 335 | B64: =IF(A64="","",VLOOKUP(A64,'Rennerslijst Giro'!A$2:B$620,2,0)) -> DURBRIDGE Luke | X64: 0
B65: =IF(A65="","",VLOOKUP(A65,'Rennerslijst Giro'!A65:C1039,2)) ->  | X65: 0
B66: =IF(A66="","",VLOOKUP(A66,'Rennerslijst Giro'!A66:C1040,2)) ->  | X66: 0
B67: =IF(A67="","",VLOOKUP(A67,'Rennerslijst Giro'!A67:C1041,2)) ->  | X67: =SUM(C67:W67) -> 0
B68: =IF(A68="","",VLOOKUP(A68,'Rennerslijst Giro'!A68:C1042,2)) ->  | X68: 0
B69: =IF(A69="","",VLOOKUP(A69,'Rennerslijst Giro'!A69:C1043,2)) ->  | X69: 0
B70: =IF(A70="","",VLOOKUP(A70,'Rennerslijst Giro'!A70:C1044,2)) ->  | X70: 0
B71: =IF(A71="","",VLOOKUP(A71,'Rennerslijst Giro'!A71:C1045,2)) ->  | X71: 0
B72: =IF(A72="","",VLOOKUP(A72,'Rennerslijst Giro'!A72:C1046,2)) ->  | X72: 0
B73: =IF(A73="","",VLOOKUP(A73,'Rennerslijst Giro'!A73:C1047,2)) ->  | X73: 0
B74: =IF(A74="","",VLOOKUP(A74,'Rennerslijst Giro'!A74:C1048,2)) ->  | X74: 0
B75: =IF(A75="","",VLOOKUP(A75,'Rennerslijst Giro'!A75:C1049,2)) ->  | X75: 0
B76: =IF(A76="","",VLOOKUP(A76,'Rennerslijst Giro'!A76:C1050,2)) ->  | X76: 0
B77: =IF(A77="","",VLOOKUP(A77,'Rennerslijst Giro'!A77:C1051,2)) ->  | X77: 0
B78: =IF(A78="","",VLOOKUP(A78,'Rennerslijst Giro'!A78:C1052,2)) ->  | X78: 0
B79: =IF(A79="","",VLOOKUP(A79,'Rennerslijst Giro'!A79:C1053,2)) ->  | X79: 0
B80: =IF(A80="","",VLOOKUP(A80,'Rennerslijst Giro'!A80:C1054,2)) ->  | X80: 0
B81: =IF(A81="","",VLOOKUP(A81,'Rennerslijst Giro'!A81:C1055,2)) ->  | X81: 0
B82: =IF(A82="","",VLOOKUP(A82,'Rennerslijst Giro'!A82:C1056,2)) ->  | X82: 0
B83: =IF(A83="","",VLOOKUP(A83,'Rennerslijst Giro'!A83:C1057,2)) ->  | X83: 0
B84: =IF(A84="","",VLOOKUP(A84,'Rennerslijst Giro'!A84:C1058,2)) ->  | X84: 0
B85: =IF(A85="","",VLOOKUP(A85,'Rennerslijst Giro'!A85:C1059,2)) ->  | X85: 0
B86: =IF(A86="","",VLOOKUP(A86,'Rennerslijst Giro'!A86:C1060,2)) ->  | X86: 0
B87: =IF(A87="","",VLOOKUP(A87,'Rennerslijst Giro'!A87:C1061,2)) ->  | X87: 0
B88: =IF(A88="","",VLOOKUP(A88,'Rennerslijst Giro'!A88:C1062,2)) ->  | X88: 0
B89: =IF(A89="","",VLOOKUP(A89,'Rennerslijst Giro'!A89:C1063,2)) ->  | X89: 0
B90: =IF(A90="","",VLOOKUP(A90,'Rennerslijst Giro'!A90:C1064,2)) ->  | X90: 0
B91: =IF(A91="","",VLOOKUP(A91,'Rennerslijst Giro'!A91:C1065,2)) ->  | X91: 0
B92: =IF(A92="","",VLOOKUP(A92,'Rennerslijst Giro'!A92:C1066,2)) ->  | X92: 0
B93: =IF(A93="","",VLOOKUP(A93,'Rennerslijst Giro'!A93:C1067,2)) ->  | X93: 0
B94: =IF(A94="","",VLOOKUP(A94,'Rennerslijst Giro'!A94:C1068,2)) ->  | X94: 0
B95: =IF(A95="","",VLOOKUP(A95,'Rennerslijst Giro'!A95:C1069,2)) ->  | X95: 0
B96: =IF(A96="","",VLOOKUP(A96,'Rennerslijst Giro'!A96:C1070,2)) ->  | X96: 0
B97: =IF(A97="","",VLOOKUP(A97,'Rennerslijst Giro'!A97:C1071,2)) ->  | X97: 0
B98: =IF(A98="","",VLOOKUP(A98,'Rennerslijst Giro'!A98:C1072,2)) ->  | X98: 0
B99: =IF(A99="","",VLOOKUP(A99,'Rennerslijst Giro'!A99:C1073,2)) ->  | X99: 0
B100: =IF(A100="","",VLOOKUP(A100,'Rennerslijst Giro'!A100:C1074,2)) ->  | X100: 0
